Workbook

Sheet Cover
B6: Management information
B7: Policy area: | C7: Further education and skills inspections and outcomes
B8: Theme: | C8: Education, children's services and skills
B9: Published on: | C9: 16 June 2015
B10: Coverage: | C10: England
B11: Period covered: | C11: Latest inspections up to 30 April 2015 (published by 5 May 2015)
B12: Status: | C12: Provisional: Management Information
B13: Statistician: | C13: Sarah Pearce
B14: Public enquiries: | C14: enquiries@ofsted.gov.uk
B15: Press enquiries: | C15: pressenquiries@ofsted.gov.uk
B16: Link to FE and Skills management information web page including publication schedule: | C16: https://www.gov.uk/government/statistical-data-sets/monthly-management-information-ofsteds-further-education-and-skills-inspections-outcomes
B17: Link to official statistics release web page: | C17: https://www.gov.uk/government/collections/further-education-and-skills-inspection-outcomes
B20: © Crown copyright 2015
B22: You may use and re-use this information (not including logos) free of charge in any format or medium,
B23: under the terms of the Open Government Licence.
B24: To view this licence, visit:
B25: http://www.nationalarchives.gov.uk/doc/open-government-licence/
B26: Or write to the Information Policy Team, The National Archives, Kew, London, TW9 4DU
B27: Or email:
B28: psi@nationalarchives.gsi.gov.uk

Sheet Notes
B1: MANAGEMENT INFORMATION - INSPECTION OUTCOMES
B2: Data show inspection judgements for further education and skills providers for the academic year 2014/15.
B3: The data cover outcomes for inspections which have taken place between 1 September 2014 and 30 April 2015, and where the inspection report has been published by 5 May 2015.
B4: The completeness of the data will improve incrementally over the coming months. For example, the position shown here for inspections taking place between September 2014 and August 2015 is not yet complete.
B5: Adult and community learning providers are now known as community learning and skills providers.
B7: INDEX OF TABLES
B8: To access the tables you can either click on the links below or on the tabs at the bottom of the spreadsheet:
B10: Summary of judgements | D10: Summary of latest inspection judgements for providers
B11: Inspection data | D11: Inspection data at provider level
B12: Sector subject area data | D12: Sector subject area data at provider level
B15: Key to judgements: grade 1 is outstanding, grade 2 good, grade 3 requires improvement and grade 4 inadequate.
B16: The 2014/15 academic year refers to the dates between 01/09/2014 - 31/08/2015 inclusive.

Sheet Summary of judgements
A1: Summary of latest judgements
B3: Overall effectiveness of providers inspected since 1 September 2014
D4: 1 | E4: 2 | F4: 3 | G4: 4
B5: Provider type | C5: Total number of providers inspected | D5: Overall effectiveness
D6: Outstanding | E6: Good | F6: Requires improvement | G6: Inadequate | J6: Outstanding | K6: Good | L6: Requires improvement | M6: Inadequate
B7: Academy Converter | C7: 0 | D7: 0 | E7: 0 | F7: 0 | G7: 0 | I7: =B7&" "&"("&C7&")" -> Academy Converter (0) | J7: =D7/$C7*100 ->  | K7: =E7/$C7*100 -> 
B8: Community Learning and Skills | C8: =SUM(D8:G8) -> 40 | D8: =IFERROR(GETPIVOTDATA("Provider Name",'Pivot FE&S'!$A$5,"Provider type","Community Learning and Skills","Overall Effectiveness",1),0) -> 2 | E8: =IFERROR(GETPIVOTDATA("Provider Name",'Pivot FE&S'!$A$5,"Provider type","Community Learning and Skills","Overall Effectiveness",2),0) -> 19 | F8: =IFERROR(GETPIVOTDATA("Provider Name",'Pivot FE&S'!$A$5,"Provider type","Community Learning and Skills","Overall Effectiveness",3),0) -> 12 | G8: =IFERROR(GETPIVOTDATA("Provider Name",'Pivot FE&S'!$A$5,"Provider type","Community Learning and Skills","Overall Effectiveness",4),0) -> 7 | I8: =B8&" "&"("&C8&")" -> Community Learning and Skills (40) | J8: =D8/$C8*100 -> 5 | K8: 47.5 | L8: 30 | M8: 17.5
B9: Employer | C9: =SUM(D9:G9) -> 7 | D9: =IFERROR(GETPIVOTDATA("Provider Name",'Pivot FE&S'!$A$5,"Provider type","Employer","Overall Effectiveness",1),0) -> 2 | E9: =IFERROR(GETPIVOTDATA("Provider Name",'Pivot FE&S'!$A$5,"Provider type","Employer","Overall Effectiveness",2),0) -> 2 | F9: =IFERROR(GETPIVOTDATA("Provider Name",'Pivot FE&S'!$A$5,"Provider type","Employer","Overall Effectiveness",3),0) -> 2 | G9: =IFERROR(GETPIVOTDATA("Provider Name",'Pivot FE&S'!$A$5,"Provider type","Employer","Overall Effectiveness",4),0) -> 1 | I9: =B9&" "&"("&C9&")" -> Employer (7) | J9: 28.57142857 | K9: 28.57142857 | L9: 28.57142857 | M9: 14.28571429
B10: Free School - 16-19 | C10: =SUM(D10:G10) -> 5 | D10: =IFERROR(GETPIVOTDATA("Provider Name",'Pivot FE&S'!$A$5,"Provider_type",$B10,"Overall Effectiveness",D$4),0) -> 0 | E10: =IFERROR(GETPIVOTDATA("Provider Name",'Pivot FE&S'!$A$5,"Provider type","Free School - 16-19","Overall Effectiveness",2),0) -> 1 | F10: =IFERROR(GETPIVOTDATA("Provider Name",'Pivot FE&S'!$A$5,"Provider type","Free School - 16-19","Overall Effectiveness",3),0) -> 2 | G10: =IFERROR(GETPIVOTDATA("Provider Name",'Pivot FE&S'!$A$5,"Provider type","Free School - 16-19","Overall Effectiveness",4),0) -> 2 | I10: =B10&" "&"("&C10&")" -> Free School - 16-19 (5) | J10: 0 | K10: 20 | L10: 40 | M10: 40
B11: General Further Education/Tertiary College | C11: =SUM(D11:G11) -> 37 | D11: =IFERROR(GETPIVOTDATA("Provider Name",'Pivot FE&S'!$A$5,"Provider type","General Further Education/Tertiary College","Overall Effectiveness",1),0) -> 1 | E11: =IFERROR(GETPIVOTDATA("Provider Name",'Pivot FE&S'!$A$5,"Provider type","General Further Education/Tertiary College","Overall Effectiveness",2),0) -> 13 | F11: =IFERROR(GETPIVOTDATA("Provider Name",'Pivot FE&S'!$A$5,"Provider type","General Further Education/Tertiary College","Overall Effectiveness",3),0) -> 18 | G11: =IFERROR(GETPIVOTDATA("Provider Name",'Pivot FE&S'!$A$5,"Provider type","General Further Education/Tertiary College","Overall Effectiveness",4),0) -> 5 | I11: General Further Education/Tertiary College (37) | J11: =D11/$C11*100 -> 2.702702703 | K11: =E11/$C11*100 -> 35.13513514 | L11: =F11/$C11*100 -> 48.64864865 | M11: =G11/$C11*100 -> 13.51351351
B12: Specialist Further Education | C12: =SUM(D12:G12) -> 2 | D12: =IFERROR(GETPIVOTDATA("Provider Name",'Pivot FE&S'!$A$5,"Provider_type",$B12,"Overall Effectiveness",D$4),0) -> 0 | E12: =IFERROR(GETPIVOTDATA("Provider Name",'Pivot FE&S'!$A$5,"Provider type","Specialist Further Education","Overall Effectiveness",2),0) -> 2 | F12: =IFERROR(GETPIVOTDATA("Provider Name",'Pivot FE&S'!$A$5,"Provider_type",$B12,"Overall Effectiveness",F$6),0) -> 0 | G12: =IFERROR(GETPIVOTDATA("Provider Name",'Pivot FE&S'!$A$5,"Provider_type",$B12,"Overall Effectiveness",G$4),0) -> 0 | I12: =B12&" "&"("&C12&")" -> Specialist Further Education (2) | J12: =D12/$C12*100 -> 0 | K12: =E12/$C12*100 -> 100 | L12: =F12/$C12*100 -> 0 | M12: =G12/$C12*100 -> 0
B13: Higher Education Institution | C13: 2 | D13: =IFERROR(GETPIVOTDATA("Provider Name",'Pivot FE&S'!$A$5,"Provider type","Higher Education Institution","Overall Effectiveness",1),0) -> 2 | E13: =IFERROR(GETPIVOTDATA("Provider Name",'Pivot FE&S'!$A$5,"Provider_type",$B13,"Overall Effectiveness",E$6),0) -> 0 | F13: =IFERROR(GETPIVOTDATA("Provider Name",'Pivot FE&S'!$A$5,"Provider_type",$B13,"Overall Effectiveness",F$6),0) -> 0 | G13: =IFERROR(GETPIVOTDATA("Provider Name",'Pivot FE&S'!$A$5,"Provider_type",$B13,"Overall Effectiveness",G$4),0) -> 0 | I13: =B13&" "&"("&C13&")" -> Higher Education Institution (2) | J13: =D13/$C13*100 -> 100 | K13: =E13/$C13*100 -> 0 | L13: =F13/$C13*100 -> 0 | M13: =G13/$C13*100 -> 0
B14: Independent Learning Provider | C14: 73 | D14: =IFERROR(GETPIVOTDATA("Provider Name",'Pivot FE&S'!$A$5,"Provider type","Independent Learning Provider","Overall Effectiveness",1),0) -> 3 | E14: =IFERROR(GETPIVOTDATA("Provider Name",'Pivot FE&S'!$A$5,"Provider type","Independent Learning Provider","Overall Effectiveness",2),0) -> 31 | F14: =IFERROR(GETPIVOTDATA("Provider Name",'Pivot FE&S'!$A$5,"Provider type","Independent Learning Provider","Overall Effectiveness",3),0) -> 31 | G14: =IFERROR(GETPIVOTDATA("Provider Name",'Pivot FE&S'!$A$5,"Provider type","Independent Learning Provider","Overall Effectiveness",4),0) -> 8 | I14: Independent Learning Provider (73) | J14: 4.109589041 | K14: 42.46575342 | L14: 42.46575342 | M14: 10.95890411
B15: National Careers Service | C15: 0 | D15: =IFERROR(GETPIVOTDATA("Provider Name",'Pivot FE&S'!$A$5,"Provider_type",$B15,"Overall Effectiveness",D$4),0) -> 0 | E15: =IFERROR(GETPIVOTDATA("Provider Name",'Pivot FE&S'!$A$5,"Provider_type",$B15,"Overall Effectiveness",E$6),0) -> 0 | F15: =IFERROR(GETPIVOTDATA("Provider Name",'Pivot FE&S'!$A$5,"Provider_type",$B15,"Overall Effectiveness",F$6),0) -> 0 | G15: =IFERROR(GETPIVOTDATA("Provider Name",'Pivot FE&S'!$A$5,"Provider_type",$B15,"Overall Effectiveness",G$4),0) -> 0 | I15: =B15&" "&"("&C15&")" -> National Careers Service (0) | J15: =D15/$C15*100 ->  | K15: =E15/$C15*100 ->  | L15: =F15/$C15*100 ->  | M15: =G15/$C15*100 -> 
B16: Independent Specialist College | C16: 6 | D16: =IFERROR(GETPIVOTDATA("Provider Name",'Pivot FE&S'!$A$5,"Provider_type",$B16,"Overall Effectiveness",D$4),0) -> 0 | E16: =IFERROR(GETPIVOTDATA("Provider Name",'Pivot FE&S'!$A$5,"Provider type","Independent Specialist College","Overall Effectiveness",2),0) -> 3 | F16: =IFERROR(GETPIVOTDATA("Provider Name",'Pivot FE&S'!$A$5,"Provider type","Independent Specialist College","Overall Effectiveness",3),0) -> 2 | G16: =IFERROR(GETPIVOTDATA("Provider Name",'Pivot FE&S'!$A$5,"Provider type","Independent Specialist College","Overall Effectiveness",4),0) -> 1 | I16: Independent Specialist College (6) | J16: 0 | K16: 50 | L16: 33.33333333 | M16: 16.66666667
B17: Sixth Form College | C17: 9 | D17: =IFERROR(GETPIVOTDATA("Provider Name",'Pivot FE&S'!$A$5,"Provider_type",$B17,"Overall Effectiveness",D$4),0) -> 0 | E17: =IFERROR(GETPIVOTDATA("Provider Name",'Pivot FE&S'!$A$5,"Provider type","Sixth Form College","Overall Effectiveness",2),0) -> 2 | F17: =IFERROR(GETPIVOTDATA("Provider Name",'Pivot FE&S'!$A$5,"Provider type","Sixth Form College","Overall Effectiveness",3),0) -> 5 | G17: =IFERROR(GETPIVOTDATA("Provider Name",'Pivot FE&S'!$A$5,"Provider type","Sixth Form College","Overall Effectiveness",4),0) -> 2 | I17: Sixth Form College (9) | J17: 0 | K17: 22.22222222 | L17: 55.55555556 | M17: 22.22222222
B18: Total | C18: =SUM(C7:C17) -> 181 | D18: =SUM(D7:D17) -> 10 | E18: =SUM(E7:E17) -> 73 | F18: =SUM(F7:F17) -> 72 | G18: =SUM(G7:G17) -> 26 | I18: =B18&" "&"("&C18&")" -> Total (181) | J18: =D18/$C18*100 -> 5.524861878 | K18: =E18/$C18*100 -> 40.33149171 | L18: =F18/$C18*100 -> 39.77900552 | M18: =G18/$C18*100 -> 14.36464088
N22: Where the number of inspections is small, percentages should be viewed with caution.
N23: Percentages are rounded and may not add to 100.
T24: Source: Ofsted inspection data
B27: Outcomes for learners for providers inspected since 1 September 2014
B29: Provider type | C29: Total number of providers inspected | D29: Outcomes for learners
D30: Outstanding | E30: Good | F30: Requires improvement | G30: Inadequate | J30: Outstanding | K30: Good | L30: Requires improvement | M30: Inadequate
B31: Academy Converter | C31: =SUM(D31:G31) -> 0 | D31: =IFERROR(GETPIVOTDATA("Provider Name",'Pivot FE&S'!$A$23,"Provider_type",$B31,"Outcome for learners",D$4),0) -> 0 | E31: =IFERROR(GETPIVOTDATA("Provider Name",'Pivot FE&S'!$A$23,"Provider_type",$B31,"Outcome for learners",E$4),0) -> 0 | F31: =IFERROR(GETPIVOTDATA("Provider Name",'Pivot FE&S'!$A$23,"Provider_type",$B31,"Outcome for learners",F$4),0) -> 0 | G31: =IFERROR(GETPIVOTDATA("Provider Name",'Pivot FE&S'!$A$23,"Provider_type",$B31,"Outcome for learners",G$4),0) -> 0 | I31: =B31&" "&"("&C31&")" -> Academy Converter (0) | J31: =D31/$C31*100 ->  | K31: =E31/$C31*100 -> 
B32: Community Learning and Skills | C32: =SUM(D32:G32) -> 40 | D32: =IFERROR(GETPIVOTDATA("Provider Name",'Pivot FE&S'!$A$21,"Provider type","Community Learning and Skills","Outcome for Learners",1),0) -> 2 | E32: =IFERROR(GETPIVOTDATA("Provider Name",'Pivot FE&S'!$A$21,"Provider type","Community Learning and Skills","Outcome for Learners",2),0) -> 19 | F32: =IFERROR(GETPIVOTDATA("Provider Name",'Pivot FE&S'!$A$21,"Provider type","Community Learning and Skills","Outcome for Learners",3),0) -> 15 | G32: =IFERROR(GETPIVOTDATA("Provider Name",'Pivot FE&S'!$A$21,"Provider type","Community Learning and Skills","Outcome for Learners",4),0) -> 4 | I32: =B32&" "&"("&C32&")" -> Community Learning and Skills (40) | J32: =D32/$C32*100 -> 5 | K32: 47.5 | L32: 37.5 | M32: 10
B33: Employer | C33: =SUM(D33:G33) -> 7 | D33: =IFERROR(GETPIVOTDATA("Provider Name",'Pivot FE&S'!$A$21,"Provider type","Employer","Outcome for Learners",1),0) -> 2 | E33: =IFERROR(GETPIVOTDATA("Provider Name",'Pivot FE&S'!$A$21,"Provider type","Employer","Outcome for Learners",2),0) -> 1 | F33: =IFERROR(GETPIVOTDATA("Provider Name",'Pivot FE&S'!$A$21,"Provider type","Employer","Outcome for Learners",3),0) -> 3 | G33: =IFERROR(GETPIVOTDATA("Provider Name",'Pivot FE&S'!$A$21,"Provider type","Employer","Outcome for Learners",4),0) -> 1 | I33: =B33&" "&"("&C33&")" -> Employer (7) | J33: 28.57142857 | K33: 14.28571429 | L33: 42.85714286 | M33: 14.28571429
B34: Free School - 16-19 | C34: =SUM(D34:G34) -> 5 | D34: =IFERROR(GETPIVOTDATA("Provider Name",'Pivot FE&S'!$A$21,"Provider type",B$32,"Outcome for Learners",D$6),0) -> 0 | E34: =IFERROR(GETPIVOTDATA("Provider Name",'Pivot FE&S'!$A$21,"Provider type","Free School - 16-19","Outcome for Learners",2),0) -> 1 | F34: =IFERROR(GETPIVOTDATA("Provider Name",'Pivot FE&S'!$A$21,"Provider type","Free School - 16-19","Outcome for Learners",3),0) -> 2 | G34: =IFERROR(GETPIVOTDATA("Provider Name",'Pivot FE&S'!$A$21,"Provider type","Free School - 16-19","Outcome for Learners",4),0) -> 2 | I34: =B34&" "&"("&C34&")" -> Free School - 16-19 (5) | J34: 0 | K34: 20 | L34: 40 | M34: 40
B35: General Further Education/Tertiary College | C35: 37 | D35: =IFERROR(GETPIVOTDATA("Provider Name",'Pivot FE&S'!$A$21,"Provider type","General Further Education/Tertiary College","Outcome for Learners",1),0) -> 1 | E35: =IFERROR(GETPIVOTDATA("Provider Name",'Pivot FE&S'!$A$21,"Provider type","General Further Education/Tertiary College","Outcome for Learners",2),0) -> 10 | F35: =IFERROR(GETPIVOTDATA("Provider Name",'Pivot FE&S'!$A$21,"Provider type","General Further Education/Tertiary College","Outcome for Learners",3),0) -> 21 | G35: =IFERROR(GETPIVOTDATA("Provider Name",'Pivot FE&S'!$A$21,"Provider type","General Further Education/Tertiary College","Outcome for Learners",4),0) -> 5 | I35: General Further Education/Tertiary College (37) | J35: =D35/$C35*100 -> 2.702702703 | K35: =E35/$C35*100 -> 27.02702703 | L35: =F35/$C35*100 -> 56.75675676 | M35: =G35/$C35*100 -> 13.51351351
B36: Specialist Further Education | C36: 2 | D36: =IFERROR(GETPIVOTDATA("Provider Name",'Pivot FE&S'!$A$23,"Provider_type",$B36,"Outcome for learners",D$4),0) -> 0 | E36: =IFERROR(GETPIVOTDATA("Provider Name",'Pivot FE&S'!$A$21,"Provider type","Specialist Further Education","Outcome for Learners",2),0) -> 2 | F36: =IFERROR(GETPIVOTDATA("Provider Name",'Pivot FE&S'!$A$23,"Provider_type",$B36,"Outcome for learners",F$4),0) -> 0 | G36: =IFERROR(GETPIVOTDATA("Provider Name",'Pivot FE&S'!$A$23,"Provider_type",$B36,"Outcome for learners",G$4),0) -> 0 | I36: =B36&" "&"("&C36&")" -> Specialist Further Education (2) | J36: =D36/$C36*100 -> 0 | K36: =E36/$C36*100 -> 100 | L36: =F36/$C36*100 -> 0 | M36: =G36/$C36*100 -> 0
B37: Higher Education Institution | C37: 2 | D37: =IFERROR(GETPIVOTDATA("Provider Name",'Pivot FE&S'!$A$21,"Provider type","Higher Education Institution","Outcome for Learners",1),0) -> 2 | E37: =IFERROR(GETPIVOTDATA("Provider Name",'Pivot FE&S'!$A$23,"Provider_type",$B37,"Outcome for learners",E$4),0) -> 0 | F37: =IFERROR(GETPIVOTDATA("Provider Name",'Pivot FE&S'!$A$23,"Provider_type",$B37,"Outcome for learners",F$4),0) -> 0 | G37: =IFERROR(GETPIVOTDATA("Provider Name",'Pivot FE&S'!$A$23,"Provider_type",$B37,"Outcome for learners",G$4),0) -> 0 | I37: =B37&" "&"("&C37&")" -> Higher Education Institution (2) | J37: =D37/$C37*100 -> 100 | K37: =E37/$C37*100 -> 0 | L37: =F37/$C37*100 -> 0 | M37: =G37/$C37*100 -> 0
B38: Independent Learning Provider | C38: 73 | D38: =IFERROR(GETPIVOTDATA("Provider Name",'Pivot FE&S'!$A$21,"Provider type","Independent Learning Provider","Outcome for Learners",1),0) -> 3 | E38: =IFERROR(GETPIVOTDATA("Provider Name",'Pivot FE&S'!$A$21,"Provider type","Independent Learning Provider","Outcome for Learners",2),0) -> 34 | F38: =IFERROR(GETPIVOTDATA("Provider Name",'Pivot FE&S'!$A$21,"Provider type","Independent Learning Provider","Outcome for Learners",3),0) -> 29 | G38: =IFERROR(GETPIVOTDATA("Provider Name",'Pivot FE&S'!$A$21,"Provider type","Independent Learning Provider","Outcome for Learners",4),0) -> 7 | I38: Independent Learning Provider (73) | J38: 4.109589041 | K38: 46.57534247 | L38: 39.7260274 | M38: 9.589041096
B39: National Careers Service | C39: 0 | D39: =IFERROR(GETPIVOTDATA("Provider Name",'Pivot FE&S'!$A$23,"Provider_type",$B39,"Outcome for learners",D$4),0) -> 0 | E39: =IFERROR(GETPIVOTDATA("Provider Name",'Pivot FE&S'!$A$23,"Provider_type",$B39,"Outcome for learners",E$4),0) -> 0 | F39: =IFERROR(GETPIVOTDATA("Provider Name",'Pivot FE&S'!$A$23,"Provider_type",$B39,"Outcome for learners",F$4),0) -> 0 | G39: =IFERROR(GETPIVOTDATA("Provider Name",'Pivot FE&S'!$A$23,"Provider_type",$B39,"Outcome for learners",G$4),0) -> 0 | I39: =B39&" "&"("&C39&")" -> National Careers Service (0) | J39: =D39/$C39*100 ->  | K39: =E39/$C39*100 ->  | L39: =F39/$C39*100 ->  | M39: =G39/$C39*100 -> 
B40: Independent Specialist College | C40: 6 | D40: =IFERROR(GETPIVOTDATA("Provider Name",'Pivot FE&S'!$A$23,"Provider_type",$B40,"Outcome for learners",D$4),0) -> 0 | E40: =IFERROR(GETPIVOTDATA("Provider Name",'Pivot FE&S'!$A$21,"Provider type","Independent Specialist College","Outcome for Learners",2),0) -> 3 | F40: =IFERROR(GETPIVOTDATA("Provider Name",'Pivot FE&S'!$A$21,"Provider type","Independent Specialist College","Outcome for Learners",3),0) -> 3 | G40: =IFERROR(GETPIVOTDATA("Provider Name",'Pivot FE&S'!$A$23,"Provider_type",$B40,"Outcome for learners",G$4),0) -> 0 | I40: Independent Specialist College (6) | J40: 0 | K40: 50 | L40: 50 | M40: 0
B41: Sixth Form College | C41: =SUM(D41:G41) -> 9 | D41: =IFERROR(GETPIVOTDATA("Provider Name",'Pivot FE&S'!$A$23,"Provider_type",$B41,"Outcome for learners",D$4),0) -> 0 | E41: =IFERROR(GETPIVOTDATA("Provider Name",'Pivot FE&S'!$A$21,"Provider type","Sixth Form College","Outcome for Learners",2),0) -> 2 | F41: =IFERROR(GETPIVOTDATA("Provider Name",'Pivot FE&S'!$A$21,"Provider type","Sixth Form College","Outcome for Learners",3),0) -> 5 | G41: =IFERROR(GETPIVOTDATA("Provider Name",'Pivot FE&S'!$A$21,"Provider type","Sixth Form College","Outcome for Learners",4),0) -> 2 | I41: Sixth Form College (9) | J41: =D41/$C41*100 -> 0 | K41: =E41/$C41*100 -> 22.22222222 | L41: 55.55555556 | M41: 22.22222222
B42: Total | C42: =SUM(C31:C41) -> 181 | D42: =SUM(D31:D41) -> 10 | E42: =SUM(E31:E41) -> 72 | F42: 78 | G42: 21 | I42: =B42&" "&"("&C42&")" -> Total (181) | J42: =D42/$C42*100 -> 5.524861878 | K42: =E42/$C42*100 -> 39.77900552 | L42: =F42/$C42*100 -> 43.09392265 | M42: =G42/$C42*100 -> 11.60220994
N46: Where the number of inspections is small, percentages should be viewed with caution.
N47: Percentages are rounded and may not add to 100.
T48: Source: Ofsted inspection data
B52: Teaching, learning and assessment for providers inspected since 1 September 2014
B54: Provider type | C54: Total number of providers inspected | D54: Teaching, learning and assessment
D55: Outstanding | E55: Good | F55: Requires improvement | G55: Inadequate | J55: Outstanding | K55: Good | L55: Requires improvement | M55: Inadequate
B56: Academy Converter | C56: =SUM(D56:G56) -> 0 | D56: =IFERROR(GETPIVOTDATA("Provider Name",'Pivot FE&S'!$A$45,"Provider_type",$B56,"Teaching",D$4),0) -> 0 | E56: =IFERROR(GETPIVOTDATA("Provider Name",'Pivot FE&S'!$A$45,"Provider_type",$B56,"Teaching",E$4),0) -> 0 | F56: =IFERROR(GETPIVOTDATA("Provider Name",'Pivot FE&S'!$A$45,"Provider_type",$B56,"Teaching",F$4),0) -> 0 | G56: =IFERROR(GETPIVOTDATA("Provider Name",'Pivot FE&S'!$A$45,"Provider_type",$B56,"Teaching",G$4),0) -> 0 | I56: =B56&" "&"("&C56&")" -> Academy Converter (0) | J56: =D56/$C56*100 ->  | K56: =E56/$C56*100 -> 
B57: Community Learning and Skills | C57: =SUM(D57:G57) -> 40 | D57: =IFERROR(GETPIVOTDATA("Provider Name",'Pivot FE&S'!$A$42,"Provider type","Community Learning and Skills","Teaching",1),0) -> 2 | E57: =IFERROR(GETPIVOTDATA("Provider Name",'Pivot FE&S'!$A$42,"Provider type","Community Learning and Skills","Teaching",2),0) -> 21 | F57: =IFERROR(GETPIVOTDATA("Provider Name",'Pivot FE&S'!$A$42,"Provider type","Community Learning and Skills","Teaching",3),0) -> 14 | G57: =IFERROR(GETPIVOTDATA("Provider Name",'Pivot FE&S'!$A$42,"Provider type","Community Learning and Skills","Teaching",4),0) -> 3 | I57: Community Learning and Skills (40) | J57: =D57/$C57*100 -> 5 | K57: 52.5 | L57: 35 | M57: 7.5
B58: Employer | C58: =SUM(D58:G58) -> 7 | D58: =IFERROR(GETPIVOTDATA("Provider Name",'Pivot FE&S'!$A$42,"Provider type","Employer","Teaching",1),0) -> 2 | E58: =IFERROR(GETPIVOTDATA("Provider Name",'Pivot FE&S'!$A$42,"Provider type","Employer","Teaching",2),0) -> 2 | F58: =IFERROR(GETPIVOTDATA("Provider Name",'Pivot FE&S'!$A$42,"Provider type","Employer","Teaching",3),0) -> 2 | G58: =IFERROR(GETPIVOTDATA("Provider Name",'Pivot FE&S'!$A$42,"Provider type","Employer","Teaching",4),0) -> 1 | I58: Employer (7) | J58: 28.57142857 | K58: 28.57142857 | L58: 28.57142857 | M58: 14.28571429
B59: Free School - 16-19 | C59: =SUM(D59:G59) -> 5 | D59: =IFERROR(GETPIVOTDATA("Provider Name",'Pivot FE&S'!$A$45,"Provider_type",$B59,"Teaching",D$4),0) -> 0 | E59: =IFERROR(GETPIVOTDATA("Provider Name",'Pivot FE&S'!$A$42,"Provider type","Free School - 16-19","Teaching",2),0) -> 1 | F59: =IFERROR(GETPIVOTDATA("Provider Name",'Pivot FE&S'!$A$42,"Provider type","Free School - 16-19","Teaching",3),0) -> 2 | G59: =IFERROR(GETPIVOTDATA("Provider Name",'Pivot FE&S'!$A$42,"Provider type","Free School - 16-19","Teaching",4),0) -> 2 | I59: Free School - 16-19 (5) | J59: 0 | K59: 20 | L59: 40 | M59: 40
B60: General Further Education/Tertiary College | C60: 37 | D60: =IFERROR(GETPIVOTDATA("Provider Name",'Pivot FE&S'!$A$42,"Provider type","General Further Education/Tertiary College","Teaching",1),0) -> 1 | E60: =IFERROR(GETPIVOTDATA("Provider Name",'Pivot FE&S'!$A$42,"Provider type","General Further Education/Tertiary College","Teaching",2),0) -> 14 | F60: =IFERROR(GETPIVOTDATA("Provider Name",'Pivot FE&S'!$A$42,"Provider type","General Further Education/Tertiary College","Teaching",3),0) -> 18 | G60: =IFERROR(GETPIVOTDATA("Provider Name",'Pivot FE&S'!$A$42,"Provider type","General Further Education/Tertiary College","Teaching",4),0) -> 4 | I60: General Further Education/Tertiary College (37) | J60: =D60/$C60*100 -> 2.702702703 | K60: 37.83783784 | L60: =F60/$C60*100 -> 48.64864865 | M60: 10.81081081
B61: Specialist Further Education | C61: 2 | D61: =IFERROR(GETPIVOTDATA("Provider Name",'Pivot FE&S'!$A$45,"Provider_type",$B61,"Teaching",D$4),0) -> 0 | E61: =IFERROR(GETPIVOTDATA("Provider Name",'Pivot FE&S'!$A$42,"Provider type","Specialist Further Education","Teaching",2),0) -> 2 | F61: =IFERROR(GETPIVOTDATA("Provider Name",'Pivot FE&S'!$A$45,"Provider_type",$B61,"Teaching",F$4),0) -> 0 | G61: =IFERROR(GETPIVOTDATA("Provider Name",'Pivot FE&S'!$A$45,"Provider_type",$B61,"Teaching",G$4),0) -> 0 | I61: =B61&" "&"("&C61&")" -> Specialist Further Education (2) | J61: =D61/$C61*100 -> 0 | K61: =E61/$C61*100 -> 100 | L61: =F61/$C61*100 -> 0 | M61: =G61/$C61*100 -> 0
B62: Higher Education Institution | C62: 2 | D62: =IFERROR(GETPIVOTDATA("Provider Name",'Pivot FE&S'!$A$42,"Provider type","Higher Education Institution","Teaching",1),0) -> 2 | E62: =IFERROR(GETPIVOTDATA("Provider Name",'Pivot FE&S'!$A$45,"Provider_type",$B62,"Teaching",E$4),0) -> 0 | F62: =IFERROR(GETPIVOTDATA("Provider Name",'Pivot FE&S'!$A$45,"Provider_type",$B62,"Teaching",F$4),0) -> 0 | G62: =IFERROR(GETPIVOTDATA("Provider Name",'Pivot FE&S'!$A$45,"Provider_type",$B62,"Teaching",G$4),0) -> 0 | I62: =B62&" "&"("&C62&")" -> Higher Education Institution (2) | J62: =D62/$C62*100 -> 100 | K62: =E62/$C62*100 -> 0 | L62: =F62/$C62*100 -> 0 | M62: =G62/$C62*100 -> 0
B63: Independent Learning Provider | C63: 73 | D63: =IFERROR(GETPIVOTDATA("Provider Name",'Pivot FE&S'!$A$42,"Provider type","Independent Learning Provider","Teaching",1),0) -> 3 | E63: =IFERROR(GETPIVOTDATA("Provider Name",'Pivot FE&S'!$A$42,"Provider type","Independent Learning Provider","Teaching",2),0) -> 36 | F63: =IFERROR(GETPIVOTDATA("Provider Name",'Pivot FE&S'!$A$42,"Provider type","Independent Learning Provider","Teaching",3),0) -> 27 | G63: =IFERROR(GETPIVOTDATA("Provider Name",'Pivot FE&S'!$A$42,"Provider type","Independent Learning Provider","Teaching",4),0) -> 7 | I63: Independent Learning Provider (73) | J63: 4.109589041 | K63: 49.31506849 | L63: 36.98630137 | M63: 9.589041096
B64: National Careers Service | C64: 0 | D64: =IFERROR(GETPIVOTDATA("Provider Name",'Pivot FE&S'!$A$45,"Provider_type",$B64,"Teaching",D$4),0) -> 0 | E64: =IFERROR(GETPIVOTDATA("Provider Name",'Pivot FE&S'!$A$45,"Provider_type",$B64,"Teaching",E$4),0) -> 0 | F64: =IFERROR(GETPIVOTDATA("Provider Name",'Pivot FE&S'!$A$45,"Provider_type",$B64,"Teaching",F$4),0) -> 0 | G64: =IFERROR(GETPIVOTDATA("Provider Name",'Pivot FE&S'!$A$45,"Provider_type",$B64,"Teaching",G$4),0) -> 0 | I64: =B64&" "&"("&C64&")" -> National Careers Service (0) | J64: =D64/$C64*100 ->  | K64: =E64/$C64*100 ->  | L64: =F64/$C64*100 ->  | M64: =G64/$C64*100 -> 
B65: Independent Specialist College | C65: 6 | D65: =IFERROR(GETPIVOTDATA("Provider Name",'Pivot FE&S'!$A$45,"Provider_type",$B65,"Teaching",D$4),0) -> 0 | E65: =IFERROR(GETPIVOTDATA("Provider Name",'Pivot FE&S'!$A$42,"Provider type","Independent Specialist College","Teaching",2),0) -> 3 | F65: =IFERROR(GETPIVOTDATA("Provider Name",'Pivot FE&S'!$A$42,"Provider type","Independent Specialist College","Teaching",3),0) -> 2 | G65: =IFERROR(GETPIVOTDATA("Provider Name",'Pivot FE&S'!$A$42,"Provider type","Independent Specialist College","Teaching",4),0) -> 1 | I65: Independent Specialist College (6) | J65: 0 | K65: 50 | L65: 33.33333333 | M65: 16.66666667
B66: Sixth Form College | C66: 9 | D66: =IFERROR(GETPIVOTDATA("Provider Name",'Pivot FE&S'!$A$45,"Provider_type",$B66,"Teaching",D$4),0) -> 0 | E66: =IFERROR(GETPIVOTDATA("Provider Name",'Pivot FE&S'!$A$42,"Provider type","Sixth Form College","Teaching",2),0) -> 2 | F66: =IFERROR(GETPIVOTDATA("Provider Name",'Pivot FE&S'!$A$42,"Provider type","Sixth Form College","Teaching",3),0) -> 6 | G66: =IFERROR(GETPIVOTDATA("Provider Name",'Pivot FE&S'!$A$42,"Provider type","Sixth Form College","Teaching",4),0) -> 1 | I66: Sixth Form College (9) | J66: 0 | K66: 22.22222222 | L66: 66.66666667 | M66: 11.11111111
B67: Total | C67: =SUM(C56:C66) -> 181 | D67: =SUM(D56:D66) -> 10 | E67: 81 | F67: 71 | G67: 19 | I67: Total (181) | J67: =D67/$C67*100 -> 5.524861878 | K67: 44.75138122 | L67: 39.22651934 | M67: 10.49723757
N71: Where the number of inspections is small, percentages should be viewed with caution.
N72: Percentages are rounded and may not add to 100.
T73: Source: Ofsted inspection data
B76: Leadership and management for providers inspected since 1 September 2014
B78: Provider type | C78: Total number of providers inspected | D78: Leadership and management
D79: Outstanding | E79: Good | F79: Requires improvement | G79: Inadequate | J79: Outstanding | K79: Good | L79: Requires improvement | M79: Inadequate
B80: Academy Converter | C80: =SUM(D80:G80) -> 0 | D80: =IFERROR(GETPIVOTDATA("Provider Name",'Pivot FE&S'!$A$63,"Provider_type",$B80,"Leadership and management",D$4),0) -> 0 | E80: =IFERROR(GETPIVOTDATA("Provider Name",'Pivot FE&S'!$A$63,"Provider_type",$B80,"Leadership and management",E$4),0) -> 0 | F80: =IFERROR(GETPIVOTDATA("Provider Name",'Pivot FE&S'!$A$63,"Provider_type",$B80,"Leadership and management",F$4),0) -> 0 | G80: =IFERROR(GETPIVOTDATA("Provider Name",'Pivot FE&S'!$A$63,"Provider_type",$B80,"Leadership and management",G$4),0) -> 0 | I80: =B80&" "&"("&C80&")" -> Academy Converter (0) | J80: =D80/$C80*100 ->  | K80: =E80/$C80*100 ->  | L80: =F80/$C80*100 ->  | M80: =G80/$C80*100 -> 
B81: Community Learning and Skills | C81: =SUM(D81:G81) -> 40 | D81: =IFERROR(GETPIVOTDATA("Provider Name",'Pivot FE&S'!$A$63,"Provider type","Community Learning and Skills","Leadership and Management",1),0) -> 4 | E81: =IFERROR(GETPIVOTDATA("Provider Name",'Pivot FE&S'!$A$63,"Provider type","Community Learning and Skills","Leadership and Management",2),0) -> 17 | F81: =IFERROR(GETPIVOTDATA("Provider Name",'Pivot FE&S'!$A$63,"Provider type","Community Learning and Skills","Leadership and Management",3),0) -> 12 | G81: =IFERROR(GETPIVOTDATA("Provider Name",'Pivot FE&S'!$A$63,"Provider type","Community Learning and Skills","Leadership and Management",4),0) -> 7 | I81: Community Learning and Skills (40) | J81: 10 | K81: 42.5 | L81: 30 | M81: 17.5
B82: Employer | C82: =SUM(D82:G82) -> 7 | D82: =IFERROR(GETPIVOTDATA("Provider Name",'Pivot FE&S'!$A$63,"Provider type","Employer","Leadership and Management",1),0) -> 2 | E82: =IFERROR(GETPIVOTDATA("Provider Name",'Pivot FE&S'!$A$63,"Provider type","Employer","Leadership and Management",2),0) -> 2 | F82: =IFERROR(GETPIVOTDATA("Provider Name",'Pivot FE&S'!$A$63,"Provider type","Employer","Leadership and Management",3),0) -> 2 | G82: =IFERROR(GETPIVOTDATA("Provider Name",'Pivot FE&S'!$A$63,"Provider type","Employer","Leadership and Management",4),0) -> 1 | I82: Employer (7) | J82: 28.57142857 | K82: 28.57142857 | L82: 28.57142857 | M82: 14.28571429
B83: Free School - 16-19 | C83: =SUM(D83:G83) -> 5 | D83: =IFERROR(GETPIVOTDATA("Provider Name",'Pivot FE&S'!$A$63,"Provider_type",$B83,"Leadership and management",D$4),0) -> 0 | E83: =IFERROR(GETPIVOTDATA("Provider Name",'Pivot FE&S'!$A$63,"Provider type","Free School - 16-19","Leadership and Management",2),0) -> 1 | F83: =IFERROR(GETPIVOTDATA("Provider Name",'Pivot FE&S'!$A$63,"Provider type","Free School - 16-19","Leadership and Management",3),0) -> 2 | G83: =IFERROR(GETPIVOTDATA("Provider Name",'Pivot FE&S'!$A$63,"Provider type","Free School - 16-19","Leadership and Management",4),0) -> 2 | I83: Free School - 16-19 (5) | J83: 0 | K83: 20 | L83: 40 | M83: 40
B84: General Further Education/Tertiary College | C84: 37 | D84: =IFERROR(GETPIVOTDATA("Provider Name",'Pivot FE&S'!$A$63,"Provider type","General Further Education/Tertiary College","Leadership and Management",1),0) -> 2 | E84: =IFERROR(GETPIVOTDATA("Provider Name",'Pivot FE&S'!$A$63,"Provider type","General Further Education/Tertiary College","Leadership and Management",2),0) -> 15 | F84: =IFERROR(GETPIVOTDATA("Provider Name",'Pivot FE&S'!$A$63,"Provider type","General Further Education/Tertiary College","Leadership and Management",3),0) -> 15 | G84: =IFERROR(GETPIVOTDATA("Provider Name",'Pivot FE&S'!$A$63,"Provider type","General Further Education/Tertiary College","Leadership and Management",4),0) -> 5 | I84: General Further Education/Tertiary College (37) | J84: 5.405405405 | K84: 40.54054054 | L84: 40.54054054 | M84: 13.51351351
B85: Specialist Further Education | C85: 2 | D85: =IFERROR(GETPIVOTDATA("Provider Name",'Pivot FE&S'!$A$63,"Provider_type",$B85,"Leadership and management",D$4),0) -> 0 | E85: =IFERROR(GETPIVOTDATA("Provider Name",'Pivot FE&S'!$A$63,"Provider type","Specialist Further Education","Leadership and Management",2),0) -> 1 | F85: =IFERROR(GETPIVOTDATA("Provider Name",'Pivot FE&S'!$A$63,"Provider type","Specialist Further Education","Leadership and Management",3),0) -> 1 | G85: =IFERROR(GETPIVOTDATA("Provider Name",'Pivot FE&S'!$A$63,"Provider type","Specialist Further Education","Leadership and Management",4),0) -> 0 | I85: Specialist Further Education (2) | J85: 0 | K85: 50 | L85: 50 | M85: 0
B86: Higher Education Institution | C86: 2 | D86: =IFERROR(GETPIVOTDATA("Provider Name",'Pivot FE&S'!$A$63,"Provider type","Higher Education Institution","Leadership and Management",1),0) -> 2 | E86: =IFERROR(GETPIVOTDATA("Provider Name",'Pivot FE&S'!$A$63,"Provider_type",$B86,"Leadership and management",E$4),0) -> 0 | F86: =IFERROR(GETPIVOTDATA("Provider Name",'Pivot FE&S'!$A$63,"Provider_type",$B86,"Leadership and management",F$4),0) -> 0 | G86: =IFERROR(GETPIVOTDATA("Provider Name",'Pivot FE&S'!$A$63,"Provider_type",$B86,"Leadership and management",G$4),0) -> 0 | I86: Higher Education Institution (2) | J86: 100 | K86: 0 | L86: 0 | M86: 0
B87: Independent Learning Provider | C87: 73 | D87: =IFERROR(GETPIVOTDATA("Provider Name",'Pivot FE&S'!$A$63,"Provider type","Independent Learning Provider","Leadership and Management",1),0) -> 4 | E87: =IFERROR(GETPIVOTDATA("Provider Name",'Pivot FE&S'!$A$63,"Provider type","Independent Learning Provider","Leadership and Management",2),0) -> 30 | F87: =IFERROR(GETPIVOTDATA("Provider Name",'Pivot FE&S'!$A$63,"Provider type","Independent Learning Provider","Leadership and Management",3),0) -> 31 | G87: =IFERROR(GETPIVOTDATA("Provider Name",'Pivot FE&S'!$A$63,"Provider type","Independent Learning Provider","Leadership and Management",4),0) -> 8 | I87: Independent Learning Provider (73) | J87: 5.479452055 | K87: 41.09589041 | L87: 42.46575342 | M87: 10.95890411
B88: National Careers Service | C88: 0 | D88: =IFERROR(GETPIVOTDATA("Provider Name",'Pivot FE&S'!$A$63,"Provider_type",$B88,"Leadership and management",D$4),0) -> 0 | E88: =IFERROR(GETPIVOTDATA("Provider Name",'Pivot FE&S'!$A$63,"Provider_type",$B88,"Leadership and management",E$4),0) -> 0 | F88: =IFERROR(GETPIVOTDATA("Provider Name",'Pivot FE&S'!$A$63,"Provider_type",$B88,"Leadership and management",F$4),0) -> 0 | G88: =IFERROR(GETPIVOTDATA("Provider Name",'Pivot FE&S'!$A$63,"Provider_type",$B88,"Leadership and management",G$4),0) -> 0 | I88: National Careers Service (0)
B89: Independent Specialist College | C89: 6 | D89: =IFERROR(GETPIVOTDATA("Provider Name",'Pivot FE&S'!$A$63,"Provider_type",$B89,"Leadership and management",D$4),0) -> 0 | E89: =IFERROR(GETPIVOTDATA("Provider Name",'Pivot FE&S'!$A$63,"Provider type","Independent Specialist College","Leadership and Management",2),0) -> 3 | F89: =IFERROR(GETPIVOTDATA("Provider Name",'Pivot FE&S'!$A$63,"Provider type","Independent Specialist College","Leadership and Management",3),0) -> 2 | G89: =IFERROR(GETPIVOTDATA("Provider Name",'Pivot FE&S'!$A$63,"Provider type","Independent Specialist College","Leadership and Management",4),0) -> 1 | I89: Independent Specialist College (6) | J89: 0 | K89: 50 | L89: 33.33333333 | M89: 16.66666667
B90: Sixth Form College | C90: 9 | D90: =IFERROR(GETPIVOTDATA("Provider Name",'Pivot FE&S'!$A$63,"Provider type","Sixth Form College","Leadership and Management",1),0) -> 1 | E90: =IFERROR(GETPIVOTDATA("Provider Name",'Pivot FE&S'!$A$63,"Provider type","Sixth Form College","Leadership and Management",2),0) -> 1 | F90: =IFERROR(GETPIVOTDATA("Provider Name",'Pivot FE&S'!$A$63,"Provider type","Sixth Form College","Leadership and Management",3),0) -> 5 | G90: =IFERROR(GETPIVOTDATA("Provider Name",'Pivot FE&S'!$A$63,"Provider type","Sixth Form College","Leadership and Management",4),0) -> 2 | I90: Sixth Form College (9) | J90: 11.11111111 | K90: 11.11111111 | L90: 55.55555556 | M90: 22.22222222
B91: Total | C91: =SUM(C80:C90) -> 181 | D91: =SUM(D80:D90) -> 15 | E91: 70 | F91: 70 | G91: 26 | I91: Total (181) | J91: 8.287292818 | K91: 38.67403315 | L91: 38.67403315 | M91: 14.36464088
N97: Where the number of inspections is small, percentages should be viewed with caution.
N98: Percentages are rounded and may not add to 100.
T99: Source: Ofsted inspection data
B100: Sector subject area judgements for providers inspected since 1 September 2014
B102: Sector subject area | C102: Total number of judgements made | D102: Overall sector subject area judgements
D103: Outstanding | E103: Good | F103: Requires improvement | G103: Inadequate
B104: Accounting and Finance | C104: =SUM(D104:G104) -> 16 | D104: =IFERROR(GETPIVOTDATA("URN",'Pivot FE&S'!$A$107,"SSA 2 descriptor",$B104,"Outcome",1),0) -> 2 | E104: =IFERROR(GETPIVOTDATA("URN",'Pivot FE&S'!$A$107,"SSA 2 descriptor",$B104,"Outcome",2),0) -> 7 | F104: =IFERROR(GETPIVOTDATA("URN",'Pivot FE&S'!$A$107,"SSA 2 descriptor",$B104,"Outcome",3),0) -> 6 | G104: =IFERROR(GETPIVOTDATA("URN",'Pivot FE&S'!$A$107,"SSA 2 descriptor",$B104,"Outcome",4),0) -> 1
B105: Administration | C105: =SUM(D105:G105) -> 53 | D105: =IFERROR(GETPIVOTDATA("URN",'Pivot FE&S'!$A$107,"SSA 2 descriptor",$B105,"Outcome",1),0) -> 1 | E105: =IFERROR(GETPIVOTDATA("URN",'Pivot FE&S'!$A$107,"SSA 2 descriptor",$B105,"Outcome",2),0) -> 31 | F105: =IFERROR(GETPIVOTDATA("URN",'Pivot FE&S'!$A$107,"SSA 2 descriptor",$B105,"Outcome",3),0) -> 20 | G105: =IFERROR(GETPIVOTDATA("URN",'Pivot FE&S'!$A$107,"SSA 2 descriptor",$B105,"Outcome",4),0) -> 1
B106: Agriculture | C106: 3 | D106: =IFERROR(GETPIVOTDATA("URN",'Pivot FE&S'!$A$107,"SSA 2 descriptor",$B106,"Outcome",1),0) -> 0 | E106: =IFERROR(GETPIVOTDATA("URN",'Pivot FE&S'!$A$107,"SSA 2 descriptor",$B106,"Outcome",2),0) -> 1 | F106: =IFERROR(GETPIVOTDATA("URN",'Pivot FE&S'!$A$107,"SSA 2 descriptor",$B106,"Outcome",3),0) -> 2 | G106: =IFERROR(GETPIVOTDATA("URN",'Pivot FE&S'!$A$107,"SSA 2 descriptor",$B106,"Outcome",4),0) -> 0
B107: Animal Care and Veterinary Science | C107: 3 | D107: =IFERROR(GETPIVOTDATA("URN",'Pivot FE&S'!$A$107,"SSA 2 descriptor",$B107,"Outcome",1),0) -> 0 | E107: =IFERROR(GETPIVOTDATA("URN",'Pivot FE&S'!$A$107,"SSA 2 descriptor",$B107,"Outcome",2),0) -> 3 | F107: =IFERROR(GETPIVOTDATA("URN",'Pivot FE&S'!$A$107,"SSA 2 descriptor",$B107,"Outcome",3),0) -> 0 | G107: =IFERROR(GETPIVOTDATA("URN",'Pivot FE&S'!$A$107,"SSA 2 descriptor",$B107,"Outcome",4),0) -> 0
B108: Archaeology and Archaeological Sciences | C108: 0 | D108: =IFERROR(GETPIVOTDATA("URN",'Pivot FE&S'!$A$107,"SSA 2 descriptor",$B108,"Outcome",1),0) -> 0 | E108: =IFERROR(GETPIVOTDATA("URN",'Pivot FE&S'!$A$107,"SSA 2 descriptor",$B108,"Outcome",2),0) -> 0 | F108: =IFERROR(GETPIVOTDATA("URN",'Pivot FE&S'!$A$107,"SSA 2 descriptor",$B108,"Outcome",3),0) -> 0 | G108: =IFERROR(GETPIVOTDATA("URN",'Pivot FE&S'!$A$107,"SSA 2 descriptor",$B108,"Outcome",4),0) -> 0
B109: Beauty Therapy | C109: 2 | D109: =IFERROR(GETPIVOTDATA("URN",'Pivot FE&S'!$A$107,"SSA 2 descriptor",$B109,"Outcome",1),0) -> 0 | E109: =IFERROR(GETPIVOTDATA("URN",'Pivot FE&S'!$A$107,"SSA 2 descriptor",$B109,"Outcome",2),0) -> 2 | F109: =IFERROR(GETPIVOTDATA("URN",'Pivot FE&S'!$A$107,"SSA 2 descriptor",$B109,"Outcome",3),0) -> 0 | G109: =IFERROR(GETPIVOTDATA("URN",'Pivot FE&S'!$A$107,"SSA 2 descriptor",$B109,"Outcome",4),0) -> 0
B110: Building and Construction | C110: 15 | D110: =IFERROR(GETPIVOTDATA("URN",'Pivot FE&S'!$A$107,"SSA 2 descriptor",$B110,"Outcome",1),0) -> 0 | E110: =IFERROR(GETPIVOTDATA("URN",'Pivot FE&S'!$A$107,"SSA 2 descriptor",$B110,"Outcome",2),0) -> 5 | F110: =IFERROR(GETPIVOTDATA("URN",'Pivot FE&S'!$A$107,"SSA 2 descriptor",$B110,"Outcome",3),0) -> 7 | G110: =IFERROR(GETPIVOTDATA("URN",'Pivot FE&S'!$A$107,"SSA 2 descriptor",$B110,"Outcome",4),0) -> 3
B111: Building Services | C111: 2 | D111: =IFERROR(GETPIVOTDATA("URN",'Pivot FE&S'!$A$107,"SSA 2 descriptor",$B111,"Outcome",1),0) -> 0 | E111: =IFERROR(GETPIVOTDATA("URN",'Pivot FE&S'!$A$107,"SSA 2 descriptor",$B111,"Outcome",2),0) -> 2 | F111: =IFERROR(GETPIVOTDATA("URN",'Pivot FE&S'!$A$107,"SSA 2 descriptor",$B111,"Outcome",3),0) -> 0 | G111: =IFERROR(GETPIVOTDATA("URN",'Pivot FE&S'!$A$107,"SSA 2 descriptor",$B111,"Outcome",4),0) -> 0
B112: Business | C112: 8 | D112: =IFERROR(GETPIVOTDATA("URN",'Pivot FE&S'!$A$107,"SSA 2 descriptor",$B112,"Outcome",1),0) -> 1 | E112: =IFERROR(GETPIVOTDATA("URN",'Pivot FE&S'!$A$107,"SSA 2 descriptor",$B112,"Outcome",2),0) -> 3 | F112: =IFERROR(GETPIVOTDATA("URN",'Pivot FE&S'!$A$107,"SSA 2 descriptor",$B112,"Outcome",3),0) -> 4 | G112: =IFERROR(GETPIVOTDATA("URN",'Pivot FE&S'!$A$107,"SSA 2 descriptor",$B112,"Outcome",4),0) -> 0
B113: Business Management | C113: 40 | D113: =IFERROR(GETPIVOTDATA("URN",'Pivot FE&S'!$A$107,"SSA 2 descriptor",$B113,"Outcome",1),0) -> 0 | E113: =IFERROR(GETPIVOTDATA("URN",'Pivot FE&S'!$A$107,"SSA 2 descriptor",$B113,"Outcome",2),0) -> 19 | F113: =IFERROR(GETPIVOTDATA("URN",'Pivot FE&S'!$A$107,"SSA 2 descriptor",$B113,"Outcome",3),0) -> 19 | G113: =IFERROR(GETPIVOTDATA("URN",'Pivot FE&S'!$A$107,"SSA 2 descriptor",$B113,"Outcome",4),0) -> 2
B114: Communications Technology | C114: 1 | D114: =IFERROR(GETPIVOTDATA("URN",'Pivot FE&S'!$A$107,"SSA 2 descriptor",$B114,"Outcome",1),0) -> 0 | E114: =IFERROR(GETPIVOTDATA("URN",'Pivot FE&S'!$A$107,"SSA 2 descriptor",$B114,"Outcome",2),0) -> 1 | F114: =IFERROR(GETPIVOTDATA("URN",'Pivot FE&S'!$A$107,"SSA 2 descriptor",$B114,"Outcome",3),0) -> 0 | G114: =IFERROR(GETPIVOTDATA("URN",'Pivot FE&S'!$A$107,"SSA 2 descriptor",$B114,"Outcome",4),0) -> 0
B115: Community Learning | C115: 4 | D115: =IFERROR(GETPIVOTDATA("URN",'Pivot FE&S'!$A$107,"SSA 2 descriptor",$B115,"Outcome",1),0) -> 0 | E115: =IFERROR(GETPIVOTDATA("URN",'Pivot FE&S'!$A$107,"SSA 2 descriptor",$B115,"Outcome",2),0) -> 2 | F115: =IFERROR(GETPIVOTDATA("URN",'Pivot FE&S'!$A$107,"SSA 2 descriptor",$B115,"Outcome",3),0) -> 1 | G115: =IFERROR(GETPIVOTDATA("URN",'Pivot FE&S'!$A$107,"SSA 2 descriptor",$B115,"Outcome",4),0) -> 1
B116: Community development | C116: 1 | D116: =IFERROR(GETPIVOTDATA("URN",'Pivot FE&S'!$A$107,"SSA 2 descriptor",$B116,"Outcome",1),0) -> 0 | E116: =IFERROR(GETPIVOTDATA("URN",'Pivot FE&S'!$A$107,"SSA 2 descriptor",$B116,"Outcome",2),0) -> 0 | F116: =IFERROR(GETPIVOTDATA("URN",'Pivot FE&S'!$A$107,"SSA 2 descriptor",$B116,"Outcome",3),0) -> 1 | G116: =IFERROR(GETPIVOTDATA("URN",'Pivot FE&S'!$A$107,"SSA 2 descriptor",$B116,"Outcome",4),0) -> 0
B117: Construction Crafts | C117: 5 | D117: =IFERROR(GETPIVOTDATA("URN",'Pivot FE&S'!$A$107,"SSA 2 descriptor",$B117,"Outcome",1),0) -> 0 | E117: =IFERROR(GETPIVOTDATA("URN",'Pivot FE&S'!$A$107,"SSA 2 descriptor",$B117,"Outcome",2),0) -> 3 | F117: =IFERROR(GETPIVOTDATA("URN",'Pivot FE&S'!$A$107,"SSA 2 descriptor",$B117,"Outcome",3),0) -> 2 | G117: =IFERROR(GETPIVOTDATA("URN",'Pivot FE&S'!$A$107,"SSA 2 descriptor",$B117,"Outcome",4),0) -> 0
B118: Customer service | C118: 7 | D118: =IFERROR(GETPIVOTDATA("URN",'Pivot FE&S'!$A$107,"SSA 2 descriptor",$B118,"Outcome",1),0) -> 0 | E118: =IFERROR(GETPIVOTDATA("URN",'Pivot FE&S'!$A$107,"SSA 2 descriptor",$B118,"Outcome",2),0) -> 4 | F118: =IFERROR(GETPIVOTDATA("URN",'Pivot FE&S'!$A$107,"SSA 2 descriptor",$B118,"Outcome",3),0) -> 0 | G118: =IFERROR(GETPIVOTDATA("URN",'Pivot FE&S'!$A$107,"SSA 2 descriptor",$B118,"Outcome",4),0) -> 3
B119: Early Years and Playwork | C119: 30 | D119: =IFERROR(GETPIVOTDATA("URN",'Pivot FE&S'!$A$107,"SSA 2 descriptor",$B119,"Outcome",1),0) -> 4 | E119: =IFERROR(GETPIVOTDATA("URN",'Pivot FE&S'!$A$107,"SSA 2 descriptor",$B119,"Outcome",2),0) -> 14 | F119: =IFERROR(GETPIVOTDATA("URN",'Pivot FE&S'!$A$107,"SSA 2 descriptor",$B119,"Outcome",3),0) -> 12 | G119: =IFERROR(GETPIVOTDATA("URN",'Pivot FE&S'!$A$107,"SSA 2 descriptor",$B119,"Outcome",4),0) -> 0
B120: Employability Training | C120: 28 | D120: =IFERROR(GETPIVOTDATA("URN",'Pivot FE&S'!$A$107,"SSA 2 descriptor",$B120,"Outcome",1),0) -> 1 | E120: =IFERROR(GETPIVOTDATA("URN",'Pivot FE&S'!$A$107,"SSA 2 descriptor",$B120,"Outcome",2),0) -> 14 | F120: =IFERROR(GETPIVOTDATA("URN",'Pivot FE&S'!$A$107,"SSA 2 descriptor",$B120,"Outcome",3),0) -> 10 | G120: =IFERROR(GETPIVOTDATA("URN",'Pivot FE&S'!$A$107,"SSA 2 descriptor",$B120,"Outcome",4),0) -> 3
B121: Engineering | C121: 22 | D121: =IFERROR(GETPIVOTDATA("URN",'Pivot FE&S'!$A$107,"SSA 2 descriptor",$B121,"Outcome",1),0) -> 4 | E121: =IFERROR(GETPIVOTDATA("URN",'Pivot FE&S'!$A$107,"SSA 2 descriptor",$B121,"Outcome",2),0) -> 9 | F121: =IFERROR(GETPIVOTDATA("URN",'Pivot FE&S'!$A$107,"SSA 2 descriptor",$B121,"Outcome",3),0) -> 9 | G121: =IFERROR(GETPIVOTDATA("URN",'Pivot FE&S'!$A$107,"SSA 2 descriptor",$B121,"Outcome",4),0) -> 0
B122: English | C122: 10 | D122: =IFERROR(GETPIVOTDATA("URN",'Pivot FE&S'!$A$107,"SSA 2 descriptor",$B122,"Outcome",1),0) -> 1 | E122: =IFERROR(GETPIVOTDATA("URN",'Pivot FE&S'!$A$107,"SSA 2 descriptor",$B122,"Outcome",2),0) -> 1 | F122: =IFERROR(GETPIVOTDATA("URN",'Pivot FE&S'!$A$107,"SSA 2 descriptor",$B122,"Outcome",3),0) -> 7 | G122: =IFERROR(GETPIVOTDATA("URN",'Pivot FE&S'!$A$107,"SSA 2 descriptor",$B122,"Outcome",4),0) -> 1
B123: Environmental Conservation | C123: 1 | D123: =IFERROR(GETPIVOTDATA("URN",'Pivot FE&S'!$A$107,"SSA 2 descriptor",$B123,"Outcome",1),0) -> 0 | E123: =IFERROR(GETPIVOTDATA("URN",'Pivot FE&S'!$A$107,"SSA 2 descriptor",$B123,"Outcome",2),0) -> 0 | F123: =IFERROR(GETPIVOTDATA("URN",'Pivot FE&S'!$A$107,"SSA 2 descriptor",$B123,"Outcome",3),0) -> 1 | G123: =IFERROR(GETPIVOTDATA("URN",'Pivot FE&S'!$A$107,"SSA 2 descriptor",$B123,"Outcome",4),0) -> 0
B124: Equine Studies | C124: 1 | D124: =IFERROR(GETPIVOTDATA("URN",'Pivot FE&S'!$A$107,"SSA 2 descriptor",$B124,"Outcome",1),0) -> 0 | E124: =IFERROR(GETPIVOTDATA("URN",'Pivot FE&S'!$A$107,"SSA 2 descriptor",$B124,"Outcome",2),0) -> 1 | F124: =IFERROR(GETPIVOTDATA("URN",'Pivot FE&S'!$A$107,"SSA 2 descriptor",$B124,"Outcome",3),0) -> 0 | G124: =IFERROR(GETPIVOTDATA("URN",'Pivot FE&S'!$A$107,"SSA 2 descriptor",$B124,"Outcome",4),0) -> 0
B125: ESOL | C125: 9 | D125: =IFERROR(GETPIVOTDATA("URN",'Pivot FE&S'!$A$107,"SSA 2 descriptor",$B125,"Outcome",1),0) -> 1 | E125: =IFERROR(GETPIVOTDATA("URN",'Pivot FE&S'!$A$107,"SSA 2 descriptor",$B125,"Outcome",2),0) -> 5 | F125: =IFERROR(GETPIVOTDATA("URN",'Pivot FE&S'!$A$107,"SSA 2 descriptor",$B125,"Outcome",3),0) -> 2 | G125: =IFERROR(GETPIVOTDATA("URN",'Pivot FE&S'!$A$107,"SSA 2 descriptor",$B125,"Outcome",4),0) -> 1
B126: Family Learning | C126: 3 | D126: =IFERROR(GETPIVOTDATA("URN",'Pivot FE&S'!$A$107,"SSA 2 descriptor",$B126,"Outcome",1),0) -> 0 | E126: =IFERROR(GETPIVOTDATA("URN",'Pivot FE&S'!$A$107,"SSA 2 descriptor",$B126,"Outcome",2),0) -> 2 | F126: =IFERROR(GETPIVOTDATA("URN",'Pivot FE&S'!$A$107,"SSA 2 descriptor",$B126,"Outcome",3),0) -> 1 | G126: =IFERROR(GETPIVOTDATA("URN",'Pivot FE&S'!$A$107,"SSA 2 descriptor",$B126,"Outcome",4),0) -> 0
B127: Forestry | C127: 1 | D127: =IFERROR(GETPIVOTDATA("URN",'Pivot FE&S'!$A$107,"SSA 2 descriptor",$B127,"Outcome",1),0) -> 0 | E127: =IFERROR(GETPIVOTDATA("URN",'Pivot FE&S'!$A$107,"SSA 2 descriptor",$B127,"Outcome",2),0) -> 1 | F127: =IFERROR(GETPIVOTDATA("URN",'Pivot FE&S'!$A$107,"SSA 2 descriptor",$B127,"Outcome",3),0) -> 0 | G127: =IFERROR(GETPIVOTDATA("URN",'Pivot FE&S'!$A$107,"SSA 2 descriptor",$B127,"Outcome",4),0) -> 0
B128: Foundation English | C128: 29 | D128: =IFERROR(GETPIVOTDATA("URN",'Pivot FE&S'!$A$107,"SSA 2 descriptor",$B128,"Outcome",1),0) -> 0 | E128: =IFERROR(GETPIVOTDATA("URN",'Pivot FE&S'!$A$107,"SSA 2 descriptor",$B128,"Outcome",2),0) -> 9 | F128: =IFERROR(GETPIVOTDATA("URN",'Pivot FE&S'!$A$107,"SSA 2 descriptor",$B128,"Outcome",3),0) -> 16 | G128: =IFERROR(GETPIVOTDATA("URN",'Pivot FE&S'!$A$107,"SSA 2 descriptor",$B128,"Outcome",4),0) -> 4
B129: Foundation English and Mathematics | C129: 12 | D129: =IFERROR(GETPIVOTDATA("URN",'Pivot FE&S'!$A$107,"SSA 2 descriptor",$B129,"Outcome",1),0) -> 0 | E129: =IFERROR(GETPIVOTDATA("URN",'Pivot FE&S'!$A$107,"SSA 2 descriptor",$B129,"Outcome",2),0) -> 9 | F129: =IFERROR(GETPIVOTDATA("URN",'Pivot FE&S'!$A$107,"SSA 2 descriptor",$B129,"Outcome",3),0) -> 3 | G129: =IFERROR(GETPIVOTDATA("URN",'Pivot FE&S'!$A$107,"SSA 2 descriptor",$B129,"Outcome",4),0) -> 0
B130: Foundation mathematics | C130: 26 | D130: =IFERROR(GETPIVOTDATA("URN",'Pivot FE&S'!$A$107,"SSA 2 descriptor",$B130,"Outcome",1),0) -> 0 | E130: =IFERROR(GETPIVOTDATA("URN",'Pivot FE&S'!$A$107,"SSA 2 descriptor",$B130,"Outcome",2),0) -> 9 | F130: =IFERROR(GETPIVOTDATA("URN",'Pivot FE&S'!$A$107,"SSA 2 descriptor",$B130,"Outcome",3),0) -> 12 | G130: =IFERROR(GETPIVOTDATA("URN",'Pivot FE&S'!$A$107,"SSA 2 descriptor",$B130,"Outcome",4),0) -> 5
B131: Hairdressing | C131: 8 | D131: =IFERROR(GETPIVOTDATA("URN",'Pivot FE&S'!$A$107,"SSA 2 descriptor",$B131,"Outcome",1),0) -> 0 | E131: =IFERROR(GETPIVOTDATA("URN",'Pivot FE&S'!$A$107,"SSA 2 descriptor",$B131,"Outcome",2),0) -> 4 | F131: =IFERROR(GETPIVOTDATA("URN",'Pivot FE&S'!$A$107,"SSA 2 descriptor",$B131,"Outcome",3),0) -> 1 | G131: =IFERROR(GETPIVOTDATA("URN",'Pivot FE&S'!$A$107,"SSA 2 descriptor",$B131,"Outcome",4),0) -> 3
B132: Hairdressing and beauty therapy | C132: 15 | D132: =IFERROR(GETPIVOTDATA("URN",'Pivot FE&S'!$A$107,"SSA 2 descriptor",$B132,"Outcome",1),0) -> 1 | E132: =IFERROR(GETPIVOTDATA("URN",'Pivot FE&S'!$A$107,"SSA 2 descriptor",$B132,"Outcome",2),0) -> 5 | F132: =IFERROR(GETPIVOTDATA("URN",'Pivot FE&S'!$A$107,"SSA 2 descriptor",$B132,"Outcome",3),0) -> 8 | G132: =IFERROR(GETPIVOTDATA("URN",'Pivot FE&S'!$A$107,"SSA 2 descriptor",$B132,"Outcome",4),0) -> 1
B133: Health and Social Care | C133: 60 | D133: =IFERROR(GETPIVOTDATA("URN",'Pivot FE&S'!$A$107,"SSA 2 descriptor",$B133,"Outcome",1),0) -> 4 | E133: =IFERROR(GETPIVOTDATA("URN",'Pivot FE&S'!$A$107,"SSA 2 descriptor",$B133,"Outcome",2),0) -> 33 | F133: =IFERROR(GETPIVOTDATA("URN",'Pivot FE&S'!$A$107,"SSA 2 descriptor",$B133,"Outcome",3),0) -> 22 | G133: =IFERROR(GETPIVOTDATA("URN",'Pivot FE&S'!$A$107,"SSA 2 descriptor",$B133,"Outcome",4),0) -> 1
B134: Health, Public Services and Care | C134: 1 | D134: =IFERROR(GETPIVOTDATA("URN",'Pivot FE&S'!$A$107,"SSA 2 descriptor",$B134,"Outcome",1),0) -> 0 | E134: =IFERROR(GETPIVOTDATA("URN",'Pivot FE&S'!$A$107,"SSA 2 descriptor",$B134,"Outcome",2),0) -> 1 | F134: =IFERROR(GETPIVOTDATA("URN",'Pivot FE&S'!$A$107,"SSA 2 descriptor",$B134,"Outcome",3),0) -> 0 | G134: =IFERROR(GETPIVOTDATA("URN",'Pivot FE&S'!$A$107,"SSA 2 descriptor",$B134,"Outcome",4),0) -> 0
B135: History | C135: 1 | D135: =IFERROR(GETPIVOTDATA("URN",'Pivot FE&S'!$A$107,"SSA 2 descriptor",$B135,"Outcome",1),0) -> 1 | E135: =IFERROR(GETPIVOTDATA("URN",'Pivot FE&S'!$A$107,"SSA 2 descriptor",$B135,"Outcome",2),0) -> 0 | F135: =IFERROR(GETPIVOTDATA("URN",'Pivot FE&S'!$A$107,"SSA 2 descriptor",$B135,"Outcome",3),0) -> 0 | G135: =IFERROR(GETPIVOTDATA("URN",'Pivot FE&S'!$A$107,"SSA 2 descriptor",$B135,"Outcome",4),0) -> 0
B136: Horticulture and Forestry | C136: 1 | D136: =IFERROR(GETPIVOTDATA("URN",'Pivot FE&S'!$A$107,"SSA 2 descriptor","Horticulture","Outcome",1),0)+IFERROR(GETPIVOTDATA("URN",'Pivot FE&S'!$A$107,"SSA 2 descriptor","Forestry","Outcome",1),0) -> 0 | E136: 1 | F136: =IFERROR(GETPIVOTDATA("URN",'Pivot FE&S'!$A$107,"SSA 2 descriptor","Horticulture","Outcome",3),0)+IFERROR(GETPIVOTDATA("URN",'Pivot FE&S'!$A$107,"SSA 2 descriptor","Forestry","Outcome",3),0) -> 0 | G136: =IFERROR(GETPIVOTDATA("URN",'Pivot FE&S'!$A$107,"SSA 2 descriptor","Horticulture","Outcome",4),0)+IFERROR(GETPIVOTDATA("URN",'Pivot FE&S'!$A$107,"SSA 2 descriptor","Forestry","Outcome",4),0) -> 0
B137: Horticulture | C137: 1 | D137: =IFERROR(GETPIVOTDATA("URN",'Pivot FE&S'!$A$107,"SSA 2 descriptor","Horticulture","Outcome",1),0)+IFERROR(GETPIVOTDATA("URN",'Pivot FE&S'!$A$107,"SSA 2 descriptor","Forestry","Outcome",1),0) -> 0 | E137: 1 | F137: =IFERROR(GETPIVOTDATA("URN",'Pivot FE&S'!$A$107,"SSA 2 descriptor","Horticulture","Outcome",3),0)+IFERROR(GETPIVOTDATA("URN",'Pivot FE&S'!$A$107,"SSA 2 descriptor","Forestry","Outcome",3),0) -> 0 | G137: =IFERROR(GETPIVOTDATA("URN",'Pivot FE&S'!$A$107,"SSA 2 descriptor","Horticulture","Outcome",4),0)+IFERROR(GETPIVOTDATA("URN",'Pivot FE&S'!$A$107,"SSA 2 descriptor","Forestry","Outcome",4),0) -> 0
B138: Hospitality and Catering | C138: 11 | D138: =IFERROR(GETPIVOTDATA("URN",'Pivot FE&S'!$A$107,"SSA 2 descriptor",$B138,"Outcome",1),0) -> 0 | E138: =IFERROR(GETPIVOTDATA("URN",'Pivot FE&S'!$A$107,"SSA 2 descriptor",$B138,"Outcome",2),0) -> 9 | F138: =IFERROR(GETPIVOTDATA("URN",'Pivot FE&S'!$A$107,"SSA 2 descriptor",$B138,"Outcome",3),0) -> 2 | G138: =IFERROR(GETPIVOTDATA("URN",'Pivot FE&S'!$A$107,"SSA 2 descriptor",$B138,"Outcome",4),0) -> 0
B139: ICT for practitioners | C139: 13 | D139: =IFERROR(GETPIVOTDATA("URN",'Pivot FE&S'!$A$107,"SSA 2 descriptor",$B139,"Outcome",1),0) -> 3 | E139: =IFERROR(GETPIVOTDATA("URN",'Pivot FE&S'!$A$107,"SSA 2 descriptor",$B139,"Outcome",2),0) -> 7 | F139: =IFERROR(GETPIVOTDATA("URN",'Pivot FE&S'!$A$107,"SSA 2 descriptor",$B139,"Outcome",3),0) -> 2 | G139: =IFERROR(GETPIVOTDATA("URN",'Pivot FE&S'!$A$107,"SSA 2 descriptor",$B139,"Outcome",4),0) -> 1
B140: ICT for Users | C140: 15 | D140: =IFERROR(GETPIVOTDATA("URN",'Pivot FE&S'!$A$107,"SSA 2 descriptor",$B140,"Outcome",1),0) -> 1 | E140: =IFERROR(GETPIVOTDATA("URN",'Pivot FE&S'!$A$107,"SSA 2 descriptor",$B140,"Outcome",2),0) -> 10 | F140: =IFERROR(GETPIVOTDATA("URN",'Pivot FE&S'!$A$107,"SSA 2 descriptor",$B140,"Outcome",3),0) -> 4 | G140: =IFERROR(GETPIVOTDATA("URN",'Pivot FE&S'!$A$107,"SSA 2 descriptor",$B140,"Outcome",4),0) -> 0
B141: Independent living and leisure skills | C141: 15 | D141: =IFERROR(GETPIVOTDATA("URN",'Pivot FE&S'!$A$107,"SSA 2 descriptor",$B141,"Outcome",1),0) -> 3 | E141: =IFERROR(GETPIVOTDATA("URN",'Pivot FE&S'!$A$107,"SSA 2 descriptor",$B141,"Outcome",2),0) -> 7 | F141: =IFERROR(GETPIVOTDATA("URN",'Pivot FE&S'!$A$107,"SSA 2 descriptor",$B141,"Outcome",3),0) -> 4 | G141: =IFERROR(GETPIVOTDATA("URN",'Pivot FE&S'!$A$107,"SSA 2 descriptor",$B141,"Outcome",4),0) -> 1
B142: Information and Communication Technology | C142: 0 | D142: =IFERROR(GETPIVOTDATA("URN",'Pivot FE&S'!$A$107,"SSA 2 descriptor",$B142,"Outcome",1),0) -> 0 | E142: =IFERROR(GETPIVOTDATA("URN",'Pivot FE&S'!$A$107,"SSA 2 descriptor",$B142,"Outcome",2),0) -> 0 | F142: =IFERROR(GETPIVOTDATA("URN",'Pivot FE&S'!$A$107,"SSA 2 descriptor",$B142,"Outcome",3),0) -> 0 | G142: =IFERROR(GETPIVOTDATA("URN",'Pivot FE&S'!$A$107,"SSA 2 descriptor",$B142,"Outcome",4),0) -> 0
B143: Languages, Literature and Culture | C143: 0 | D143: =IFERROR(GETPIVOTDATA("URN",'Pivot FE&S'!$A$107,"SSA 2 descriptor",$B143,"Outcome",1),0) -> 0 | E143: =IFERROR(GETPIVOTDATA("URN",'Pivot FE&S'!$A$107,"SSA 2 descriptor",$B143,"Outcome",2),0) -> 0 | F143: =IFERROR(GETPIVOTDATA("URN",'Pivot FE&S'!$A$107,"SSA 2 descriptor",$B143,"Outcome",3),0) -> 0 | G143: =IFERROR(GETPIVOTDATA("URN",'Pivot FE&S'!$A$107,"SSA 2 descriptor",$B143,"Outcome",4),0) -> 0
B144: Law and Legal Services | C144: 6 | D144: =IFERROR(GETPIVOTDATA("URN",'Pivot FE&S'!$A$107,"SSA 2 descriptor",$B144,"Outcome",1),0) -> 0 | E144: =IFERROR(GETPIVOTDATA("URN",'Pivot FE&S'!$A$107,"SSA 2 descriptor",$B144,"Outcome",2),0) -> 3 | F144: =IFERROR(GETPIVOTDATA("URN",'Pivot FE&S'!$A$107,"SSA 2 descriptor",$B144,"Outcome",3),0) -> 2 | G144: =IFERROR(GETPIVOTDATA("URN",'Pivot FE&S'!$A$107,"SSA 2 descriptor",$B144,"Outcome",4),0) -> 1
B145: Manufacturing Technologies | C145: =SUM(D145:G145) -> 20 | D145: =IFERROR(GETPIVOTDATA("URN",'Pivot FE&S'!$A$107,"SSA 2 descriptor",$B145,"Outcome",1),0) -> 1 | E145: =IFERROR(GETPIVOTDATA("URN",'Pivot FE&S'!$A$107,"SSA 2 descriptor",$B145,"Outcome",2),0) -> 12 | F145: =IFERROR(GETPIVOTDATA("URN",'Pivot FE&S'!$A$107,"SSA 2 descriptor",$B145,"Outcome",3),0) -> 7 | G145: =IFERROR(GETPIVOTDATA("URN",'Pivot FE&S'!$A$107,"SSA 2 descriptor",$B145,"Outcome",4),0) -> 0
B146: Marketing and Sales | C146: 2 | D146: =IFERROR(GETPIVOTDATA("URN",'Pivot FE&S'!$A$107,"SSA 2 descriptor",$B146,"Outcome",1),0) -> 0 | E146: =IFERROR(GETPIVOTDATA("URN",'Pivot FE&S'!$A$107,"SSA 2 descriptor",$B146,"Outcome",2),0) -> 1 | F146: =IFERROR(GETPIVOTDATA("URN",'Pivot FE&S'!$A$107,"SSA 2 descriptor",$B146,"Outcome",3),0) -> 1 | G146: =IFERROR(GETPIVOTDATA("URN",'Pivot FE&S'!$A$107,"SSA 2 descriptor",$B146,"Outcome",4),0) -> 0
B147: Mathematics and Statistics | C147: 18 | D147: =IFERROR(GETPIVOTDATA("URN",'Pivot FE&S'!$A$107,"SSA 2 descriptor",$B147,"Outcome",1),0) -> 1 | E147: =IFERROR(GETPIVOTDATA("URN",'Pivot FE&S'!$A$107,"SSA 2 descriptor",$B147,"Outcome",2),0) -> 4 | F147: =IFERROR(GETPIVOTDATA("URN",'Pivot FE&S'!$A$107,"SSA 2 descriptor",$B147,"Outcome",3),0) -> 12 | G147: =IFERROR(GETPIVOTDATA("URN",'Pivot FE&S'!$A$107,"SSA 2 descriptor",$B147,"Outcome",4),0) -> 1
B148: Media and Communication | C148: 7 | D148: =IFERROR(GETPIVOTDATA("URN",'Pivot FE&S'!$A$107,"SSA 2 descriptor",$B148,"Outcome",1),0) -> 1 | E148: =IFERROR(GETPIVOTDATA("URN",'Pivot FE&S'!$A$107,"SSA 2 descriptor",$B148,"Outcome",2),0) -> 3 | F148: =IFERROR(GETPIVOTDATA("URN",'Pivot FE&S'!$A$107,"SSA 2 descriptor",$B148,"Outcome",3),0) -> 3 | G148: =IFERROR(GETPIVOTDATA("URN",'Pivot FE&S'!$A$107,"SSA 2 descriptor",$B148,"Outcome",4),0) -> 0
B149: Modern foreign languages | C149: 3 | D149: =IFERROR(GETPIVOTDATA("URN",'Pivot FE&S'!$A$107,"SSA 2 descriptor",$B149,"Outcome",1),0) -> 0 | E149: =IFERROR(GETPIVOTDATA("URN",'Pivot FE&S'!$A$107,"SSA 2 descriptor",$B149,"Outcome",2),0) -> 1 | F149: =IFERROR(GETPIVOTDATA("URN",'Pivot FE&S'!$A$107,"SSA 2 descriptor",$B149,"Outcome",3),0) -> 1 | G149: =IFERROR(GETPIVOTDATA("URN",'Pivot FE&S'!$A$107,"SSA 2 descriptor",$B149,"Outcome",4),0) -> 1
B150: Motor vehicle | C150: 10 | D150: =IFERROR(GETPIVOTDATA("URN",'Pivot FE&S'!$A$107,"SSA 2 descriptor",$B150,"Outcome",1),0) -> 1 | E150: =IFERROR(GETPIVOTDATA("URN",'Pivot FE&S'!$A$107,"SSA 2 descriptor",$B150,"Outcome",2),0) -> 4 | F150: =IFERROR(GETPIVOTDATA("URN",'Pivot FE&S'!$A$107,"SSA 2 descriptor",$B150,"Outcome",3),0) -> 5 | G150: =IFERROR(GETPIVOTDATA("URN",'Pivot FE&S'!$A$107,"SSA 2 descriptor",$B150,"Outcome",4),0) -> 0
B151: National Careers Service | C151: 0 | D151: =IFERROR(GETPIVOTDATA("URN",'Pivot FE&S'!$A$107,"SSA 2 descriptor",$B151,"Outcome",1),0) -> 0 | E151: =IFERROR(GETPIVOTDATA("URN",'Pivot FE&S'!$A$107,"SSA 2 descriptor",$B151,"Outcome",2),0) -> 0 | F151: =IFERROR(GETPIVOTDATA("URN",'Pivot FE&S'!$A$107,"SSA 2 descriptor",$B151,"Outcome",3),0) -> 0 | G151: =IFERROR(GETPIVOTDATA("URN",'Pivot FE&S'!$A$107,"SSA 2 descriptor",$B151,"Outcome",4),0) -> 0
B152: Nursing and Dental Health | C152: 3 | D152: =IFERROR(GETPIVOTDATA("URN",'Pivot FE&S'!$A$107,"SSA 2 descriptor",$B152,"Outcome",1),0) -> 1 | E152: =IFERROR(GETPIVOTDATA("URN",'Pivot FE&S'!$A$107,"SSA 2 descriptor",$B152,"Outcome",2),0) -> 0 | F152: =IFERROR(GETPIVOTDATA("URN",'Pivot FE&S'!$A$107,"SSA 2 descriptor",$B152,"Outcome",3),0) -> 2 | G152: =IFERROR(GETPIVOTDATA("URN",'Pivot FE&S'!$A$107,"SSA 2 descriptor",$B152,"Outcome",4),0) -> 0
B153: Performing Arts | C153: 14 | D153: =IFERROR(GETPIVOTDATA("URN",'Pivot FE&S'!$A$107,"SSA 2 descriptor",$B153,"Outcome",1),0) -> 3 | E153: =IFERROR(GETPIVOTDATA("URN",'Pivot FE&S'!$A$107,"SSA 2 descriptor",$B153,"Outcome",2),0) -> 10 | F153: =IFERROR(GETPIVOTDATA("URN",'Pivot FE&S'!$A$107,"SSA 2 descriptor",$B153,"Outcome",3),0) -> 1 | G153: =IFERROR(GETPIVOTDATA("URN",'Pivot FE&S'!$A$107,"SSA 2 descriptor",$B153,"Outcome",4),0) -> 0
B154: Philosophy | C154: 0 | D154: =IFERROR(GETPIVOTDATA("URN",'Pivot FE&S'!$A$107,"SSA 2 descriptor",$B154,"Outcome",1),0) -> 0 | E154: =IFERROR(GETPIVOTDATA("URN",'Pivot FE&S'!$A$107,"SSA 2 descriptor",$B154,"Outcome",2),0) -> 0 | F154: =IFERROR(GETPIVOTDATA("URN",'Pivot FE&S'!$A$107,"SSA 2 descriptor",$B154,"Outcome",3),0) -> 0 | G154: =IFERROR(GETPIVOTDATA("URN",'Pivot FE&S'!$A$107,"SSA 2 descriptor",$B154,"Outcome",4),0) -> 0
B155: Politics | C155: 0 | D155: =IFERROR(GETPIVOTDATA("URN",'Pivot FE&S'!$A$107,"SSA 2 descriptor",$B155,"Outcome",1),0) -> 0 | E155: =IFERROR(GETPIVOTDATA("URN",'Pivot FE&S'!$A$107,"SSA 2 descriptor",$B155,"Outcome",2),0) -> 0 | F155: =IFERROR(GETPIVOTDATA("URN",'Pivot FE&S'!$A$107,"SSA 2 descriptor",$B155,"Outcome",3),0) -> 0 | G155: =IFERROR(GETPIVOTDATA("URN",'Pivot FE&S'!$A$107,"SSA 2 descriptor",$B155,"Outcome",4),0) -> 0
B156: Psychology | C156: 2 | D156: =IFERROR(GETPIVOTDATA("URN",'Pivot FE&S'!$A$107,"SSA 2 descriptor",$B156,"Outcome",1),0) -> 0 | E156: =IFERROR(GETPIVOTDATA("URN",'Pivot FE&S'!$A$107,"SSA 2 descriptor",$B156,"Outcome",2),0) -> 2 | F156: =IFERROR(GETPIVOTDATA("URN",'Pivot FE&S'!$A$107,"SSA 2 descriptor",$B156,"Outcome",3),0) -> 0 | G156: =IFERROR(GETPIVOTDATA("URN",'Pivot FE&S'!$A$107,"SSA 2 descriptor",$B156,"Outcome",4),0) -> 0
B157: Public Services | C157: 10 | D157: =IFERROR(GETPIVOTDATA("URN",'Pivot FE&S'!$A$107,"SSA 2 descriptor",$B157,"Outcome",1),0) -> 2 | E157: =IFERROR(GETPIVOTDATA("URN",'Pivot FE&S'!$A$107,"SSA 2 descriptor",$B157,"Outcome",2),0) -> 6 | F157: =IFERROR(GETPIVOTDATA("URN",'Pivot FE&S'!$A$107,"SSA 2 descriptor",$B157,"Outcome",3),0) -> 2 | G157: =IFERROR(GETPIVOTDATA("URN",'Pivot FE&S'!$A$107,"SSA 2 descriptor",$B157,"Outcome",4),0) -> 0
B158: Retailing and Wholesaling | C158: 5 | D158: =IFERROR(GETPIVOTDATA("URN",'Pivot FE&S'!$A$107,"SSA 2 descriptor",$B158,"Outcome",1),0) -> 0 | E158: =IFERROR(GETPIVOTDATA("URN",'Pivot FE&S'!$A$107,"SSA 2 descriptor",$B158,"Outcome",2),0) -> 4 | F158: =IFERROR(GETPIVOTDATA("URN",'Pivot FE&S'!$A$107,"SSA 2 descriptor",$B158,"Outcome",3),0) -> 1 | G158: =IFERROR(GETPIVOTDATA("URN",'Pivot FE&S'!$A$107,"SSA 2 descriptor",$B158,"Outcome",4),0) -> 0
B159: Service Enterprises | C159: 1 | D159: =IFERROR(GETPIVOTDATA("URN",'Pivot FE&S'!$A$107,"SSA 2 descriptor",$B159,"Outcome",1),0) -> 0 | E159: =IFERROR(GETPIVOTDATA("URN",'Pivot FE&S'!$A$107,"SSA 2 descriptor",$B159,"Outcome",2),0) -> 1 | F159: =IFERROR(GETPIVOTDATA("URN",'Pivot FE&S'!$A$107,"SSA 2 descriptor",$B159,"Outcome",3),0) -> 0 | G159: =IFERROR(GETPIVOTDATA("URN",'Pivot FE&S'!$A$107,"SSA 2 descriptor",$B159,"Outcome",4),0) -> 0
B160: Science | C160: 21 | D160: =IFERROR(GETPIVOTDATA("URN",'Pivot FE&S'!$A$107,"SSA 2 descriptor",$B160,"Outcome",1),0) -> 0 | E160: =IFERROR(GETPIVOTDATA("URN",'Pivot FE&S'!$A$107,"SSA 2 descriptor",$B160,"Outcome",2),0) -> 7 | F160: =IFERROR(GETPIVOTDATA("URN",'Pivot FE&S'!$A$107,"SSA 2 descriptor",$B160,"Outcome",3),0) -> 12 | G160: =IFERROR(GETPIVOTDATA("URN",'Pivot FE&S'!$A$107,"SSA 2 descriptor",$B160,"Outcome",4),0) -> 2
B161: Science and Mathematics | C161: 1 | D161: =IFERROR(GETPIVOTDATA("URN",'Pivot FE&S'!$A$107,"SSA 2 descriptor",$B161,"Outcome",1),0) -> 0 | E161: =IFERROR(GETPIVOTDATA("URN",'Pivot FE&S'!$A$107,"SSA 2 descriptor",$B161,"Outcome",2),0) -> 0 | F161: =IFERROR(GETPIVOTDATA("URN",'Pivot FE&S'!$A$107,"SSA 2 descriptor",$B161,"Outcome",3),0) -> 0 | G161: =IFERROR(GETPIVOTDATA("URN",'Pivot FE&S'!$A$107,"SSA 2 descriptor",$B161,"Outcome",4),0) -> 1
B162: Social Sciences | C162: 4 | D162: =IFERROR(GETPIVOTDATA("URN",'Pivot FE&S'!$A$107,"SSA 2 descriptor",$B162,"Outcome",1),0) -> 0 | E162: =IFERROR(GETPIVOTDATA("URN",'Pivot FE&S'!$A$107,"SSA 2 descriptor",$B162,"Outcome",2),0) -> 1 | F162: =IFERROR(GETPIVOTDATA("URN",'Pivot FE&S'!$A$107,"SSA 2 descriptor",$B162,"Outcome",3),0) -> 3 | G162: =IFERROR(GETPIVOTDATA("URN",'Pivot FE&S'!$A$107,"SSA 2 descriptor",$B162,"Outcome",4),0) -> 0
B163: Sociology and Social Policy | C163: 1 | D163: =IFERROR(GETPIVOTDATA("URN",'Pivot FE&S'!$A$107,"SSA 2 descriptor",$B163,"Outcome",1),0) -> 0 | E163: =IFERROR(GETPIVOTDATA("URN",'Pivot FE&S'!$A$107,"SSA 2 descriptor",$B163,"Outcome",2),0) -> 1 | F163: =IFERROR(GETPIVOTDATA("URN",'Pivot FE&S'!$A$107,"SSA 2 descriptor",$B163,"Outcome",3),0) -> 0 | G163: =IFERROR(GETPIVOTDATA("URN",'Pivot FE&S'!$A$107,"SSA 2 descriptor",$B163,"Outcome",4),0) -> 0
B164: Sport | C164: 13 | D164: =IFERROR(GETPIVOTDATA("URN",'Pivot FE&S'!$A$107,"SSA 2 descriptor",$B164,"Outcome",1),0) -> 3 | E164: =IFERROR(GETPIVOTDATA("URN",'Pivot FE&S'!$A$107,"SSA 2 descriptor",$B164,"Outcome",2),0) -> 8 | F164: =IFERROR(GETPIVOTDATA("URN",'Pivot FE&S'!$A$107,"SSA 2 descriptor",$B164,"Outcome",3),0) -> 2 | G164: =IFERROR(GETPIVOTDATA("URN",'Pivot FE&S'!$A$107,"SSA 2 descriptor",$B164,"Outcome",4),0) -> 0
B165: Sport, Leisure and Recreation | C165: 4 | D165: =IFERROR(GETPIVOTDATA("URN",'Pivot FE&S'!$A$107,"SSA 2 descriptor",$B165,"Outcome",1),0) -> 1 | E165: =IFERROR(GETPIVOTDATA("URN",'Pivot FE&S'!$A$107,"SSA 2 descriptor",$B165,"Outcome",2),0) -> 3 | F165: =IFERROR(GETPIVOTDATA("URN",'Pivot FE&S'!$A$107,"SSA 2 descriptor",$B165,"Outcome",3),0) -> 0 | G165: =IFERROR(GETPIVOTDATA("URN",'Pivot FE&S'!$A$107,"SSA 2 descriptor",$B165,"Outcome",4),0) -> 0
B166: Teaching and Lecturing | C166: 2 | D166: =IFERROR(GETPIVOTDATA("URN",'Pivot FE&S'!$A$107,"SSA 2 descriptor",$B166,"Outcome",1),0) -> 0 | E166: =IFERROR(GETPIVOTDATA("URN",'Pivot FE&S'!$A$107,"SSA 2 descriptor",$B166,"Outcome",2),0) -> 0 | F166: =IFERROR(GETPIVOTDATA("URN",'Pivot FE&S'!$A$107,"SSA 2 descriptor",$B166,"Outcome",3),0) -> 2 | G166: =IFERROR(GETPIVOTDATA("URN",'Pivot FE&S'!$A$107,"SSA 2 descriptor",$B166,"Outcome",4),0) -> 0
B167: Theology and Religious Studies | C167: 1 | D167: =IFERROR(GETPIVOTDATA("URN",'Pivot FE&S'!$A$107,"SSA 2 descriptor",$B167,"Outcome",1),0) -> 1 | E167: =IFERROR(GETPIVOTDATA("URN",'Pivot FE&S'!$A$107,"SSA 2 descriptor",$B167,"Outcome",2),0) -> 0 | F167: =IFERROR(GETPIVOTDATA("URN",'Pivot FE&S'!$A$107,"SSA 2 descriptor",$B167,"Outcome",3),0) -> 0 | G167: =IFERROR(GETPIVOTDATA("URN",'Pivot FE&S'!$A$107,"SSA 2 descriptor",$B167,"Outcome",4),0) -> 0
B168: Training to Provide Learning Support | C168: 1 | D168: =IFERROR(GETPIVOTDATA("URN",'Pivot FE&S'!$A$107,"SSA 2 descriptor",$B168,"Outcome",1),0) -> 0 | E168: =IFERROR(GETPIVOTDATA("URN",'Pivot FE&S'!$A$107,"SSA 2 descriptor",$B168,"Outcome",2),0) -> 0 | F168: =IFERROR(GETPIVOTDATA("URN",'Pivot FE&S'!$A$107,"SSA 2 descriptor",$B168,"Outcome",3),0) -> 1 | G168: =IFERROR(GETPIVOTDATA("URN",'Pivot FE&S'!$A$107,"SSA 2 descriptor",$B168,"Outcome",4),0) -> 0
B169: Transportation operations and maintenance | C169: 6 | D169: =IFERROR(GETPIVOTDATA("URN",'Pivot FE&S'!$A$107,"SSA 2 descriptor",$B169,"Outcome",1),0) -> 1 | E169: =IFERROR(GETPIVOTDATA("URN",'Pivot FE&S'!$A$107,"SSA 2 descriptor",$B169,"Outcome",2),0) -> 0 | F169: =IFERROR(GETPIVOTDATA("URN",'Pivot FE&S'!$A$107,"SSA 2 descriptor",$B169,"Outcome",3),0) -> 3 | G169: =IFERROR(GETPIVOTDATA("URN",'Pivot FE&S'!$A$107,"SSA 2 descriptor",$B169,"Outcome",4),0) -> 2
B170: Travel and Tourism | C170: 2 | D170: =IFERROR(GETPIVOTDATA("URN",'Pivot FE&S'!$A$107,"SSA 2 descriptor",$B170,"Outcome",1),0) -> 1 | E170: =IFERROR(GETPIVOTDATA("URN",'Pivot FE&S'!$A$107,"SSA 2 descriptor",$B170,"Outcome",2),0) -> 0 | F170: =IFERROR(GETPIVOTDATA("URN",'Pivot FE&S'!$A$107,"SSA 2 descriptor",$B170,"Outcome",3),0) -> 1 | G170: =IFERROR(GETPIVOTDATA("URN",'Pivot FE&S'!$A$107,"SSA 2 descriptor",$B170,"Outcome",4),0) -> 0
B171: Visual Arts | C171: 26 | D171: =IFERROR(GETPIVOTDATA("URN",'Pivot FE&S'!$A$107,"SSA 2 descriptor",$B171,"Outcome",1),0) -> 6 | E171: =IFERROR(GETPIVOTDATA("URN",'Pivot FE&S'!$A$107,"SSA 2 descriptor",$B171,"Outcome",2),0) -> 14 | F171: =IFERROR(GETPIVOTDATA("URN",'Pivot FE&S'!$A$107,"SSA 2 descriptor",$B171,"Outcome",3),0) -> 6 | G171: =IFERROR(GETPIVOTDATA("URN",'Pivot FE&S'!$A$107,"SSA 2 descriptor",$B171,"Outcome",4),0) -> 0
B172: Warehousing and Distribution | C172: 7 | D172: =IFERROR(GETPIVOTDATA("URN",'Pivot FE&S'!$A$107,"SSA 2 descriptor",$B172,"Outcome",1),0) -> 1 | E172: =IFERROR(GETPIVOTDATA("URN",'Pivot FE&S'!$A$107,"SSA 2 descriptor",$B172,"Outcome",2),0) -> 4 | F172: =IFERROR(GETPIVOTDATA("URN",'Pivot FE&S'!$A$107,"SSA 2 descriptor",$B172,"Outcome",3),0) -> 2 | G172: =IFERROR(GETPIVOTDATA("URN",'Pivot FE&S'!$A$107,"SSA 2 descriptor",$B172,"Outcome",4),0) -> 0
B173: Total | C173: =SUM(C104:C172) -> 663 | D173: =SUM(D104:D172) -> 52 | E173: =SUM(E104:E172) -> 324 | F173: 247 | G173: 40

Sheet Pivot FE&S (hidden)
A3: Overall effectiveness of providers inspected between 1 September 2014 and 30 April 2015
A5: Count of Provider Name | B5: Column Labels
A6: Row Labels | B6: 1 | C6: 2 | D6: 3 | E6: 4 | F6: Grand Total
A7: Community Learning and Skills | B7: 2 | C7: 19 | D7: 12 | E7: 7 | F7: 40
A8: Employer | B8: 2 | C8: 2 | D8: 2 | E8: 1 | F8: 7
A9: Free School - 16-19 | C9: 1 | D9: 2 | E9: 2 | F9: 5
A10: General Further Education/Tertiary College | B10: 1 | C10: 13 | D10: 18 | E10: 5 | F10: 37
A11: Higher Education Institution | B11: 2 | F11: 2
A12: Independent Learning Provider | B12: 3 | C12: 31 | D12: 31 | E12: 8 | F12: 73
A13: Independent Specialist College | C13: 3 | D13: 2 | E13: 1 | F13: 6
A14: Sixth Form College | C14: 2 | D14: 5 | E14: 2 | F14: 9
A15: Specialist Further Education | C15: 2 | F15: 2
A16: Grand Total | B16: 10 | C16: 73 | D16: 72 | E16: 26 | F16: 181
A19: Outcomes for learners
A21: Count of Provider Name | B21: Column Labels
A22: Row Labels | B22: 1 | C22: 2 | D22: 3 | E22: 4 | F22: Grand Total
A23: Community Learning and Skills | B23: 2 | C23: 19 | D23: 15 | E23: 4 | F23: 40
A24: Employer | B24: 2 | C24: 1 | D24: 3 | E24: 1 | F24: 7
A25: Free School - 16-19 | C25: 1 | D25: 2 | E25: 2 | F25: 5
A26: General Further Education/Tertiary College | B26: 1 | C26: 10 | D26: 21 | E26: 5 | F26: 37
A27: Higher Education Institution | B27: 2 | F27: 2
A28: Independent Learning Provider | B28: 3 | C28: 34 | D28: 29 | E28: 7 | F28: 73
A29: Independent Specialist College | C29: 3 | D29: 3 | F29: 6
A30: Sixth Form College | C30: 2 | D30: 5 | E30: 2 | F30: 9
A31: Specialist Further Education | C31: 2 | F31: 2
A32: Grand Total | B32: 10 | C32: 72 | D32: 78 | E32: 21 | F32: 181
A40: Teaching and learning
A42: Count of Provider Name | B42: Column Labels
A43: Row Labels | B43: 1 | C43: 2 | D43: 3 | E43: 4 | F43: Grand Total
A44: Community Learning and Skills | B44: 2 | C44: 21 | D44: 14 | E44: 3 | F44: 40
A45: Employer | B45: 2 | C45: 2 | D45: 2 | E45: 1 | F45: 7
A46: Free School - 16-19 | C46: 1 | D46: 2 | E46: 2 | F46: 5
A47: General Further Education/Tertiary College | B47: 1 | C47: 14 | D47: 18 | E47: 4 | F47: 37
A48: Higher Education Institution | B48: 2 | F48: 2
A49: Independent Learning Provider | B49: 3 | C49: 36 | D49: 27 | E49: 7 | F49: 73
A50: Independent Specialist College | C50: 3 | D50: 2 | E50: 1 | F50: 6
A51: Sixth Form College | C51: 2 | D51: 6 | E51: 1 | F51: 9
A52: Specialist Further Education | C52: 2 | F52: 2
A53: Grand Total | B53: 10 | C53: 81 | D53: 71 | E53: 19 | F53: 181
A61: Leadership and management
A63: Count of Provider Name | B63: Column Labels
A64: Row Labels | B64: 1 | C64: 2 | D64: 3 | E64: 4 | F64: Grand Total
A65: Community Learning and Skills | B65: 4 | C65: 17 | D65: 12 | E65: 7 | F65: 40
A66: Employer | B66: 2 | C66: 2 | D66: 2 | E66: 1 | F66: 7
A67: Free School - 16-19 | C67: 1 | D67: 2 | E67: 2 | F67: 5
A68: General Further Education/Tertiary College | B68: 2 | C68: 15 | D68: 15 | E68: 5 | F68: 37
A69: Higher Education Institution | B69: 2 | F69: 2
A70: Independent Learning Provider | B70: 4 | C70: 30 | D70: 31 | E70: 8 | F70: 73
A71: Independent Specialist College | C71: 3 | D71: 2 | E71: 1 | F71: 6
A72: Sixth Form College | B72: 1 | C72: 1 | D72: 5 | E72: 2 | F72: 9
A73: Specialist Further Education | C73: 1 | D73: 1 | F73: 2
A74: Grand Total | B74: 15 | C74: 70 | D74: 70 | E74: 26 | F74: 181
A82: SSA Descriptor 1
A84: Count of URN | B84: Column Labels
A85: Row Labels | B85: 1 | C85: 2 | D85: 3 | E85: 4 | F85: Grand Total
A86: Arts, Media and Publishing | B86: 10 | C86: 27 | D86: 10 | F86: 47
A87: Business, Administration and Law | B87: 4 | C87: 68 | D87: 52 | E87: 8 | F87: 132
A88: Construction, Planning and the Built Environment | C88: 10 | D88: 9 | E88: 3 | F88: 22
A89: Education and Training | D89: 3 | F89: 3
A90: Engineering and Manufacturing Technologies | B90: 7 | C90: 25 | D90: 24 | E90: 2 | F90: 58
A91: Health, Public Services and Care | B91: 10 | C91: 50 | D91: 38 | E91: 1 | F91: 99
A92: Information and Communication Technology | B92: 4 | C92: 18 | D92: 6 | E92: 1 | F92: 29
A93: Languages, Literature and Culture | B93: 1 | C93: 2 | D93: 8 | E93: 2 | F93: 13
A94: Preparation for Life and Work | B94: 5 | C94: 55 | D94: 48 | E94: 15 | F94: 123
A95: Retail and Commercial Enterprise | B95: 2 | C95: 29 | D95: 14 | E95: 4 | F95: 49
A96: Science and Mathematics | B96: 1 | C96: 12 | D96: 24 | E96: 4 | F96: 41
A97: Social Sciences | C97: 3 | D97: 3 | F97: 6
A98: Leisure, Travel and Tourism | B98: 6 | C98: 15 | D98: 3 | F98: 24
A99: Family Learning | C99: 2 | D99: 1 | F99: 3
A100: Agriculture, Horticulture and Animal Care | C100: 8 | D100: 3 | F100: 11
A101: Humanities | B101: 2 | F101: 2
A102: Community Development | D102: 1 | F102: 1
A103: Grand Total | B103: 52 | C103: 324 | D103: 247 | E103: 40 | F103: 663
A105: SSA Descriptor 2
A107: Count of URN | B107: Column Labels
A108: Row Labels | B108: 1 | C108: 2 | D108: 3 | E108: 4 | F108: Grand Total
A109: Accounting and Finance | B109: 2 | C109: 7 | D109: 6 | E109: 1 | F109: 16
A110: Administration | B110: 1 | C110: 31 | D110: 20 | E110: 1 | F110: 53
A111: Agriculture | C111: 1 | D111: 2 | F111: 3
A112: Animal Care and Veterinary Science | C112: 3 | F112: 3
A113: Beauty Therapy | C113: 2 | F113: 2
A114: Building and Construction | C114: 5 | D114: 7 | E114: 3 | F114: 15
A115: Building Services | C115: 2 | F115: 2
A116: Business | B116: 1 | C116: 3 | D116: 4 | F116: 8
A117: Business Management | C117: 19 | D117: 19 | E117: 2 | F117: 40
A118: Communications Technology | C118: 1 | F118: 1
A119: Community Development | D119: 1 | F119: 1
A120: Community Learning | C120: 2 | D120: 1 | E120: 1 | F120: 4
A121: Construction Crafts | C121: 3 | D121: 2 | F121: 5
A122: Customer service | C122: 4 | E122: 3 | F122: 7
A123: Early Years and Playwork | B123: 4 | C123: 14 | D123: 12 | F123: 30
A124: Employability Training | B124: 1 | C124: 14 | D124: 10 | E124: 3 | F124: 28
A125: Engineering | B125: 4 | C125: 9 | D125: 9 | F125: 22
A126: English | B126: 1 | C126: 1 | D126: 7 | E126: 1 | F126: 10
A127: Environmental Conservation | D127: 1 | F127: 1
A128: Equine Studies | C128: 1 | F128: 1
A129: ESOL | B129: 1 | C129: 5 | D129: 2 | E129: 1 | F129: 9
A130: Family Learning | C130: 2 | D130: 1 | F130: 3
A131: Forestry | C131: 1 | F131: 1
A132: Foundation English | C132: 9 | D132: 16 | E132: 4 | F132: 29
A133: Foundation English and Mathematics | C133: 9 | D133: 3 | F133: 12
A134: Foundation mathematics | C134: 9 | D134: 12 | E134: 5 | F134: 26
A135: Hairdressing | C135: 4 | D135: 1 | E135: 3 | F135: 8
A136: Hairdressing and beauty therapy | B136: 1 | C136: 5 | D136: 8 | E136: 1 | F136: 15
A137: Health and Social Care | B137: 4 | C137: 33 | D137: 22 | E137: 1 | F137: 60
A138: Health, Public Services and Care | C138: 1 | F138: 1
A139: History | B139: 1 | F139: 1
A140: Horticulture | C140: 1 | F140: 1
A141: Horticulture and Forestry | C141: 1 | F141: 1
A142: Hospitality and Catering | C142: 9 | D142: 2 | F142: 11
A143: ICT for practitioners | B143: 3 | C143: 7 | D143: 2 | E143: 1 | F143: 13
A144: ICT for Users | B144: 1 | C144: 10 | D144: 4 | F144: 15
A145: Independent living and leisure skills | B145: 3 | C145: 7 | D145: 4 | E145: 1 | F145: 15
A146: Law and Legal Services | C146: 3 | D146: 2 | E146: 1 | F146: 6
A147: Manufacturing Technologies | B147: 1 | C147: 12 | D147: 7 | F147: 20
A148: Marketing and Sales | C148: 1 | D148: 1 | F148: 2
A149: Mathematics and Statistics | B149: 1 | C149: 4 | D149: 12 | E149: 1 | F149: 18
A150: Media and Communication | B150: 1 | C150: 3 | D150: 3 | F150: 7
A151: Modern foreign languages | C151: 1 | D151: 1 | E151: 1 | F151: 3
A152: Motor vehicle | B152: 1 | C152: 4 | D152: 5 | F152: 10
A153: Nursing and Dental Health | B153: 1 | D153: 2 | F153: 3
A154: Performing Arts | B154: 3 | C154: 10 | D154: 1 | F154: 14
A155: Psychology | C155: 2 | F155: 2
A156: Public Services | B156: 2 | C156: 6 | D156: 2 | F156: 10
A157: Retailing and Wholesaling | C157: 4 | D157: 1 | F157: 5
A158: Science | C158: 7 | D158: 12 | E158: 2 | F158: 21
A159: Science and Mathematics | E159: 1 | F159: 1
A160: Service Enterprises | C160: 1 | F160: 1
A161: Social Sciences | C161: 1 | D161: 3 | F161: 4
A162: Sociology and Social Policy | C162: 1 | F162: 1
A163: Sport | B163: 3 | C163: 8 | D163: 2 | F163: 13
A164: Sport, Leisure and Recreation | B164: 1 | C164: 3 | F164: 4
A165: Teaching and Lecturing | D165: 2 | F165: 2
A166: Theology and Religious Studies | B166: 1 | F166: 1
A167: Training to Provide Learning Support | D167: 1 | F167: 1
A168: Transportation operations and maintenance | B168: 1 | D168: 3 | E168: 2 | F168: 6
A169: Travel and Tourism | B169: 1 | D169: 1 | F169: 2
A170: Visual Arts | B170: 6 | C170: 14 | D170: 6 | F170: 26
A171: Warehousing and Distribution | B171: 1 | C171: 4 | D171: 2 | F171: 7
A172: Grand Total | B172: 52 | C172: 324 | D172: 247 | E172: 40 | F172: 663
A175: Count of URN | B175: Column Labels
A176: Row Labels | B176: Improved | C176: Same | D176: Declined | E176: No previous inspection | F176: Grand Total
A177: Community Learning and Skills | B177: 11 | C177: 11 | D177: 17 | E177: 1 | F177: 40
A178: Grand Total | B178: 11 | C178: 11 | D178: 17 | E178: 1 | F178: 40
A190: Provider type | B190: (All)
A192: Count of URN | B192: Column Labels
A193: Row Labels | B193: 1 | C193: 2 | D193: 3 | E193: 4 | F193: Grand Total
A194: Improved | B194: 6 | C194: 28 | D194: 2 | F194: 36
A195: 2 | B195: 6 | F195: 6
A196: 3 | C196: 27 | F196: 27
A197: 4 | C197: 1 | D197: 2 | F197: 3
A198: Same | B198: 1 | C198: 27 | D198: 25 | E198: 1 | F198: 54
A199: 1 | B199: 1 | F199: 1
A200: 2 | C200: 27 | F200: 27
A201: 3 | D201: 25 | F201: 25
A202: 4 | E202: 1 | F202: 1
A203: Declined | C203: 7 | D203: 31 | E203: 21 | F203: 59
A204: 1 | C204: 7 | D204: 2 | E204: 3 | F204: 12
A205: 2 | D205: 29 | E205: 10 | F205: 39
A206: 3 | E206: 8 | F206: 8
A207: No previous inspection | B207: 3 | C207: 11 | D207: 14 | E207: 4 | F207: 32
A208: NULL | B208: 3 | C208: 11 | D208: 14 | E208: 4 | F208: 32
A209: Grand Total | B209: 10 | C209: 73 | D209: 72 | E209: 26 | F209: 181

Sheet Inspection data
A1: Inspection outcomes for further education and skills providers inspected from 1 September 2014
A5: Report | B5: Provider Name | C5: URN | D5: Provider type | E5: Ofsted Region | F5: Local Authority | G5: REE Type of School | H5: Inspection type | I5: Inspection number | J5: Inspection start date | K5: Inspection end date | L5: Inspection status | M5: Inspection report published | N5: Previous inspection number | O5: Previous inspection date | P5: Previous overall effectiveness | Q5: Overall Effectiveness | R5: 14-16 Overall Effectiveness Part Time | S5: 14-16 Overall Effectiveness Full Time | T5: Traineeships Overall Effectiveness | U5: 16-19 study programmes Overall Effectiveness | V5: 19+ Overall Effectiveness | W5: Apprenticeships Overall Effectiveness | X5: Community Learning Overall Effectiveness | Y5: National Careers Services Overall Effectiveness | Z5: Employability Overall Effectiveness | AA5: Outcome for Learners | AB5: 14-16 Outcome for Learners Part Time | AC5: 14-16 Outcome for Learners Full Time | AD5: Traineeships Outcome for Learners | AE5: 16-19 study programmes Outcome for Learners | AF5: 19+ Outcome for Learners | AG5: Apprenticeships Outcome for Learners | AH5: Community Learning Outcome for Learners | AI5: National Careers Services Outcome for Learners | AJ5: Employability Outcome for Learners | AK5: Teaching, learning and assessment | AL5: 14-16 Teaching Part Time | AM5: 14-16 Teaching Full Time | AN5: Traineeships Teaching | AO5: 16-19 study programmes Teaching | AP5: 19+ Teaching | AQ5: Apprenticeships Teaching | AR5: Community Learning Teaching | AS5: National Careers Services Teaching | AT5: Employability Teaching | AU5: Leadership and Management | AV5: 14-16 Leadership and Management Part Time | AW5: 14-16 Leadership and Management Full Time | AX5: Traineeships Leadership and Management | AY5: 16-19 study programmes Leadership and Management | AZ5: 19+ Leadership and Management | BA5: Apprenticeships Leadership and Management | BB5: Community Learning Leadership and Management | BC5: National Careers Services Leadership and Management | BD5: Employability Leadership and Management | BE5: How well all learners are safeguarded | BF5: 14-16 How well all learners are safeguarded Part Time | BG5: 14-16 How well all learners are safeguarded Full Time | BH5: Traineeships How well all learners are safeguarded | BI5: 16-19 study programmes How well all learners are safeguarded | BJ5: 19+ How well all learners are safeguarded | BK5: Apprenticeships How well all learners are safeguarded | BL5: Community Learning How well all learners are safeguarded | BM5: National Careers Services How well all learners are safeguarded | BN5: Employability How well all learners are safeguarded | BO5: Current overall effectiveness outcome against Previous overall effectiveness outcome
A6: =IF(C6 <> "", HYPERLINK(CONCATENATE("http://reports.ofsted.gov.uk/inspection-reports/find-inspection-report/provider/ELS/",C6),"Report"),"") -> Report | B6: Redcar & Cleveland Adult Learning Service | C6: 54087 | D6: Community Learning and Skills | E6: North East, Yorkshire & Humber | F6: Redcar and Cleveland | G6: ACL Local Authority | H6: Adult and Community - full (regional) | I6: 446665 | J6: 2014-09-23 | K6: 2014-09-26 | L6: Published | M6: 2014-10-29 | N6: 329358 | O6: 2008-11-28 | P6: 2 | Q6: 2 | R6: - | S6: - | T6: - | U6: 2 | V6: 2 | W6: 2 | X6: 2 | Y6: - | Z6: - | AA6: 2 | AB6: - | AC6: - | AD6: - | AE6: 2 | AF6: 2 | AG6: 2 | AH6: 2 | AI6: - | AJ6: - | AK6: 2 | AL6: - | AM6: - | AN6: - | AO6: 2 | AP6: 2 | AQ6: 2 | AR6: 2 | AS6: - | AT6: - | AU6: 2 | AV6: - | AW6: - | AX6: - | AY6: 2 | AZ6: 2 | BA6: 2 | BB6: 2 | BC6: - | BD6: - | BE6: 2 | BF6: - | BG6: - | BH6: - | BI6: 2 | BJ6: 2 | BK6: 2 | BL6: 2 | BM6: - | BN6: - | BO6: =IF(P6="Null","No previous inspection",IF(Q6>P6,"Declined", IF(Q6=P6,"Same",IF(Q6<P6,"Improved")))) -> Same
A7: Report | B7: Beacon Employment | C7: 59072 | D7: Community Learning and Skills | E7: West Midlands | F7: Worcestershire | G7: ACL Voluntary organisation | H7: WBL - full (regional) | I7: 434036 | J7: 2014-09-23 | K7: 2014-09-26 | L7: Published | M7: 2014-10-29 | N7: 385726 | O7: 2012-02-17 | P7: 3 | Q7: 4 | R7: - | S7: - | T7: - | U7: 4 | V7: - | W7: - | X7: - | Y7: - | Z7: 4 | AA7: 4 | AB7: - | AC7: - | AD7: - | AE7: 4 | AF7: - | AG7: - | AH7: - | AI7: - | AJ7: 4 | AK7: 4 | AL7: - | AM7: - | AN7: - | AO7: 4 | AP7: - | AQ7: - | AR7: - | AS7: - | AT7: 4 | AU7: 4 | AV7: - | AW7: - | AX7: - | AY7: 4 | AZ7: - | BA7: - | BB7: - | BC7: - | BD7: 4 | BE7: 4 | BF7: - | BG7: - | BH7: - | BI7: 4 | BJ7: - | BK7: - | BL7: - | BM7: - | BN7: 4 | BO7: Declined
A8: Report | B8: Luton Borough Council | C8: 53201 | D8: Community Learning and Skills | E8: East of England | F8: Luton | G8: ACL Local Authority | H8: Adult and community - full (national) | I8: 434069 | J8: 2014-09-29 | K8: 2014-10-03 | L8: Published | M8: 2014-11-07 | N8: 387972 | O8: 2012-06-15 | P8: 3 | Q8: 2 | R8: - | S8: - | T8: - | U8: - | V8: - | W8: 2 | X8: 2 | Y8: - | Z8: - | AA8: 2 | AB8: - | AC8: - | AD8: - | AE8: - | AF8: - | AG8: 2 | AH8: 2 | AI8: - | AJ8: - | AK8: 2 | AL8: - | AM8: - | AN8: - | AO8: - | AP8: - | AQ8: 2 | AR8: 2 | AS8: - | AT8: - | AU8: 2 | AV8: - | AW8: - | AX8: - | AY8: - | AZ8: - | BA8: 2 | BB8: 2 | BC8: - | BD8: - | BE8: 2 | BF8: - | BG8: - | BH8: - | BI8: - | BJ8: - | BK8: 2 | BL8: 2 | BM8: - | BN8: - | BO8: Improved
A9: Report | B9: The Marine Society College of the Sea | C9: 130414 | D9: Community Learning and Skills | E9: London | F9: Lambeth | G9: ACL Specialist Designated Institute | H9: Adult and Community - full (regional) | I9: 446670 | J9: 2014-10-08 | K9: 2014-10-10 | L9: Published | M9: 2014-11-24 | N9: 330817 | O9: 2009-02-06 | P9: 2 | Q9: 4 | R9: - | S9: - | T9: - | U9: - | V9: - | W9: - | X9: 4 | Y9: - | Z9: - | AA9: 4 | AB9: - | AC9: - | AD9: - | AE9: - | AF9: - | AG9: - | AH9: 4 | AI9: - | AJ9: - | AK9: 4 | AL9: - | AM9: - | AN9: - | AO9: - | AP9: - | AQ9: - | AR9: 4 | AS9: - | AT9: - | AU9: 4 | AV9: - | AW9: - | AX9: - | AY9: - | AZ9: - | BA9: - | BB9: 4 | BC9: - | BD9: - | BE9: 3 | BF9: - | BG9: - | BH9: - | BI9: - | BJ9: - | BK9: - | BL9: 3 | BM9: - | BN9: - | BO9: Declined
A10: Report | B10: Southend-on-Sea Borough Council | C10: 54519 | D10: Community Learning and Skills | E10: East of England | F10: Southend-On-Sea | G10: ACL Local Authority | H10: Adult and Community - full (regional) | I10: 446666 | J10: 2014-10-06 | K10: 2014-10-10 | L10: Published | M10: 2014-11-12 | N10: 329818 | O10: 2008-11-07 | P10: 2 | Q10: 2 | R10: - | S10: - | T10: - | U10: 2 | V10: 2 | W10: 2 | X10: 2 | Y10: - | Z10: 2 | AA10: 2 | AB10: - | AC10: - | AD10: - | AE10: 2 | AF10: 2 | AG10: 2 | AH10: 2 | AI10: - | AJ10: 2 | AK10: 2 | AL10: - | AM10: - | AN10: - | AO10: 2 | AP10: 2 | AQ10: 2 | AR10: 2 | AS10: - | AT10: 2 | AU10: 2 | AV10: - | AW10: - | AX10: - | AY10: 2 | AZ10: 2 | BA10: 2 | BB10: 2 | BC10: - | BD10: 2 | BE10: 3 | BF10: - | BG10: - | BH10: - | BI10: 3 | BJ10: 3 | BK10: 3 | BL10: 3 | BM10: - | BN10: 3 | BO10: Same
A11: Report | B11: Waverley Training Services | C11: 55287 | D11: Community Learning and Skills | E11: South East | F11: Surrey | G11: ACL Local Authority | H11: WBL - requires improvement | I11: 430262 | J11: 2014-10-06 | K11: 2014-10-10 | L11: Published | M11: 2014-11-18 | N11: 410697 | O11: 2013-04-26 | P11: 3 | Q11: 3 | R11: - | S11: - | T11: - | U11: 3 | V11: - | W11: 3 | X11: - | Y11: - | Z11: 3 | AA11: 3 | AB11: - | AC11: - | AD11: - | AE11: 2 | AF11: - | AG11: 3 | AH11: - | AI11: - | AJ11: 3 | AK11: 3 | AL11: - | AM11: - | AN11: - | AO11: 3 | AP11: - | AQ11: 3 | AR11: - | AS11: - | AT11: 3 | AU11: 3 | AV11: - | AW11: - | AX11: - | AY11: 3 | AZ11: - | BA11: 3 | BB11: - | BC11: - | BD11: 3 | BE11: 3 | BF11: - | BG11: - | BH11: - | BI11: 3 | BJ11: - | BK11: 3 | BL11: - | BM11: - | BN11: 3 | BO11: Same
A12: Report | B12: Safe in Tees Valley Limited | C12: 54245 | D12: Community Learning and Skills | E12: North East, Yorkshire & Humber | F12: Stockton-on-Tees | G12: ACL Voluntary organisation | H12: WBL - full (regional) | I12: 451617 | J12: 2014-10-15 | K12: 2014-10-17 | L12: Published | M12: 2014-11-19 | N12: 409409 | O12: 2012-11-28 | P12: 2 | Q12: 4 | R12: - | S12: - | T12: - | U12: 4 | V12: - | W12: - | X12: - | Y12: - | Z12: - | AA12: 4 | AB12: - | AC12: - | AD12: - | AE12: 4 | AF12: - | AG12: - | AH12: - | AI12: - | AJ12: - | AK12: 4 | AL12: - | AM12: - | AN12: - | AO12: 4 | AP12: - | AQ12: - | AR12: - | AS12: - | AT12: - | AU12: 4 | AV12: - | AW12: - | AX12: - | AY12: 4 | AZ12: - | BA12: - | BB12: - | BC12: - | BD12: - | BE12: 4 | BF12: - | BG12: - | BH12: - | BI12: 4 | BJ12: - | BK12: - | BL12: - | BM12: - | BN12: - | BO12: Declined
A13: Report | B13: Havering London Borough Council | C13: 53127 | D13: Community Learning and Skills | E13: London | F13: Havering | G13: ACL Local Authority | H13: Adult and community - full (national) | I13: 434068 | J13: 2014-10-13 | K13: 2014-10-17 | L13: Published | M13: 2014-12-04 | N13: 387987 | O13: 2012-05-04 | P13: 3 | Q13: 2 | R13: - | S13: - | T13: - | U13: - | V13: 2 | W13: 3 | X13: 2 | Y13: - | Z13: 2 | AA13: 2 | AB13: - | AC13: - | AD13: - | AE13: - | AF13: 2 | AG13: 3 | AH13: 2 | AI13: - | AJ13: 2 | AK13: 2 | AL13: - | AM13: - | AN13: - | AO13: - | AP13: 2 | AQ13: 3 | AR13: 2 | AS13: - | AT13: 2 | AU13: 2 | AV13: - | AW13: - | AX13: - | AY13: - | AZ13: 2 | BA13: 2 | BB13: 2 | BC13: - | BD13: 2 | BE13: 2 | BF13: - | BG13: - | BH13: - | BI13: - | BJ13: 2 | BK13: 2 | BL13: 2 | BM13: - | BN13: 2 | BO13: Improved
A14: Report | B14: Warrington Borough Council | C14: 55268 | D14: Community Learning and Skills | E14: North West | F14: Warrington | G14: ACL Local Authority | H14: Adult and Community - full (regional) | I14: 446668 | J14: 2014-10-14 | K14: 2014-10-17 | L14: Published | M14: 2014-12-16 | N14: 354472 | O14: 2010-10-15 | P14: 2 | Q14: 4 | R14: - | S14: - | T14: - | U14: - | V14: - | W14: 4 | X14: 3 | Y14: - | Z14: - | AA14: 4 | AB14: - | AC14: - | AD14: - | AE14: - | AF14: - | AG14: 4 | AH14: 3 | AI14: - | AJ14: - | AK14: 3 | AL14: - | AM14: - | AN14: - | AO14: - | AP14: - | AQ14: 4 | AR14: 3 | AS14: - | AT14: - | AU14: 4 | AV14: - | AW14: - | AX14: - | AY14: - | AZ14: - | BA14: 4 | BB14: 3 | BC14: - | BD14: - | BE14: 3 | BF14: - | BG14: - | BH14: - | BI14: - | BJ14: - | BK14: 3 | BL14: 3 | BM14: - | BN14: - | BO14: Declined
A15: Report | B15: Morthyng Group Limited | C15: 53422 | D15: Community Learning and Skills | E15: North East, Yorkshire & Humber | F15: Rotherham | G15: ACL Voluntary organisation | H15: WBL - full (regional) | I15: 452205 | J15: 2014-10-13 | K15: 2014-10-17 | L15: Published | M15: 2014-11-19 | N15: 363209 | O15: 2011-11-25 | P15: 2 | Q15: 2 | R15: - | S15: - | T15: - | U15: 2 | V15: - | W15: - | X15: - | Y15: - | Z15: - | AA15: 2 | AB15: - | AC15: - | AD15: - | AE15: 2 | AF15: - | AG15: - | AH15: - | AI15: - | AJ15: - | AK15: 2 | AL15: - | AM15: - | AN15: - | AO15: 2 | AP15: - | AQ15: - | AR15: - | AS15: - | AT15: - | AU15: 2 | AV15: - | AW15: - | AX15: - | AY15: 2 | AZ15: - | BA15: - | BB15: - | BC15: - | BD15: - | BE15: 1 | BF15: - | BG15: - | BH15: - | BI15: 1 | BJ15: - | BK15: - | BL15: - | BM15: - | BN15: - | BO15: Same
A16: Report | B16: Skills for Health Limited | C16: 58437 | D16: Community Learning and Skills | E16: South West | F16: Bristol City of | G16: ACL Voluntary organisation | H16: WBL - requires improvement | I16: 430257 | J16: 2014-10-20 | K16: 2014-10-24 | L16: Published | M16: 2014-11-28 | N16: 410651 | O16: 2013-04-26 | P16: 3 | Q16: 2 | R16: - | S16: - | T16: - | U16: - | V16: 2 | W16: 2 | X16: - | Y16: - | Z16: - | AA16: 2 | AB16: - | AC16: - | AD16: - | AE16: - | AF16: 2 | AG16: 2 | AH16: - | AI16: - | AJ16: - | AK16: 2 | AL16: - | AM16: - | AN16: - | AO16: - | AP16: 2 | AQ16: 2 | AR16: - | AS16: - | AT16: - | AU16: 2 | AV16: - | AW16: - | AX16: - | AY16: - | AZ16: 2 | BA16: 2 | BB16: - | BC16: - | BD16: - | BE16: 2 | BF16: - | BG16: - | BH16: - | BI16: - | BJ16: 2 | BK16: 2 | BL16: - | BM16: - | BN16: - | BO16: Improved
A17: Report | B17: Manor Training and Resource Centre Limited | C17: 53239 | D17: Community Learning and Skills | E17: North East, Yorkshire & Humber | F17: Sheffield | G17: ACL Voluntary organisation | H17: Adult and Community - full (regional) | I17: 446664 | J17: 2014-10-22 | K17: 2014-10-24 | L17: Published | M17: 2014-11-28 | N17: 363486 | O17: 2010-11-12 | P17: 2 | Q17: 3 | R17: - | S17: - | T17: - | U17: 3 | V17: - | W17: - | X17: - | Y17: - | Z17: - | AA17: 3 | AB17: - | AC17: - | AD17: - | AE17: 3 | AF17: - | AG17: - | AH17: - | AI17: - | AJ17: - | AK17: 3 | AL17: - | AM17: - | AN17: - | AO17: 3 | AP17: - | AQ17: - | AR17: - | AS17: - | AT17: - | AU17: 3 | AV17: - | AW17: - | AX17: - | AY17: 3 | AZ17: - | BA17: - | BB17: - | BC17: - | BD17: - | BE17: 3 | BF17: - | BG17: - | BH17: - | BI17: 3 | BJ17: - | BK17: - | BL17: - | BM17: - | BN17: - | BO17: Declined
A18: Report | B18: Lancashire Adult Learning | C18: 52911 | D18: Community Learning and Skills | E18: North West | F18: Lancashire | G18: ACL Local Authority | H18: Adult and community - full (national) | I18: 446661 | J18: 2014-11-03 | K18: 2014-11-07 | L18: Published | M18: 2014-12-10 | N18: 330961 | O18: 2009-02-06 | P18: 2 | Q18: 4 | R18: - | S18: - | T18: 4 | U18: - | V18: 4 | W18: 4 | X18: 4 | Y18: - | Z18: 4 | AA18: 3 | AB18: - | AC18: - | AD18: 3 | AE18: - | AF18: 3 | AG18: 3 | AH18: 3 | AI18: - | AJ18: 3 | AK18: 3 | AL18: - | AM18: - | AN18: 3 | AO18: - | AP18: 3 | AQ18: 3 | AR18: 3 | AS18: - | AT18: 3 | AU18: 4 | AV18: - | AW18: - | AX18: 4 | AY18: - | AZ18: 4 | BA18: 4 | BB18: 4 | BC18: - | BD18: 4 | BE18: 3 | BF18: - | BG18: - | BH18: 3 | BI18: - | BJ18: 3 | BK18: 3 | BL18: 3 | BM18: - | BN18: 3 | BO18: Declined
A19: Report | B19: North Yorkshire County Council | C19: 50229 | D19: Community Learning and Skills | E19: North East, Yorkshire & Humber | F19: North Yorkshire | G19: ACL Local Authority | H19: ACL - requires improvement | I19: 446660 | J19: 2014-11-03 | K19: 2014-11-07 | L19: Published | M19: 2014-12-10 | N19: 408465 | O19: 2013-05-24 | P19: 3 | Q19: 2 | R19: - | S19: - | T19: - | U19: 2 | V19: 2 | W19: 3 | X19: 2 | Y19: - | Z19: 2 | AA19: 2 | AB19: - | AC19: - | AD19: - | AE19: 2 | AF19: 2 | AG19: 3 | AH19: 2 | AI19: - | AJ19: 2 | AK19: 2 | AL19: - | AM19: - | AN19: - | AO19: 2 | AP19: 2 | AQ19: 3 | AR19: 2 | AS19: - | AT19: 2 | AU19: 2 | AV19: - | AW19: - | AX19: - | AY19: 2 | AZ19: 2 | BA19: 3 | BB19: 2 | BC19: - | BD19: 2 | BE19: 3 | BF19: - | BG19: - | BH19: - | BI19: 3 | BJ19: 3 | BK19: 3 | BL19: 3 | BM19: - | BN19: 3 | BO19: Improved
A20: Report | B20: Wokingham Council | C20: 50246 | D20: Community Learning and Skills | E20: South East | F20: Wokingham | G20: ACL Local Authority | H20: Adult and Community - full (regional) | I20: 452599 | J20: 2014-11-11 | K20: 2014-11-13 | L20: Published | M20: 2014-12-23 | N20: 354479 | O20: 2010-11-26 | P20: 2 | Q20: 3 | R20: - | S20: - | T20: - | U20: - | V20: - | W20: - | X20: 3 | Y20: - | Z20: - | AA20: 3 | AB20: - | AC20: - | AD20: - | AE20: - | AF20: - | AG20: - | AH20: 3 | AI20: - | AJ20: - | AK20: 2 | AL20: - | AM20: - | AN20: - | AO20: - | AP20: - | AQ20: - | AR20: 2 | AS20: - | AT20: - | AU20: 3 | AV20: - | AW20: - | AX20: - | AY20: - | AZ20: - | BA20: - | BB20: 3 | BC20: - | BD20: - | BE20: 3 | BF20: - | BG20: - | BH20: - | BI20: - | BJ20: - | BK20: - | BL20: 3 | BM20: - | BN20: - | BO20: Declined
A21: Report | B21: Adult Community Learning Essex | C21: 51766 | D21: Community Learning and Skills | E21: East of England | F21: Essex | G21: ACL Local Authority | H21: Adult and Community - full (regional) | I21: 423415 | J21: 2014-11-10 | K21: 2014-11-14 | L21: Published | M21: 2014-12-19 | N21: 331440 | O21: 2009-06-05 | P21: 1 | Q21: 3 | R21: - | S21: - | T21: - | U21: - | V21: 3 | W21: 3 | X21: 3 | Y21: - | Z21: - | AA21: 3 | AB21: - | AC21: - | AD21: - | AE21: - | AF21: 3 | AG21: 3 | AH21: 3 | AI21: - | AJ21: - | AK21: 3 | AL21: - | AM21: - | AN21: - | AO21: - | AP21: 3 | AQ21: 2 | AR21: 2 | AS21: - | AT21: - | AU21: 3 | AV21: - | AW21: - | AX21: - | AY21: - | AZ21: 3 | BA21: 3 | BB21: 3 | BC21: - | BD21: - | BE21: 2 | BF21: - | BG21: - | BH21: - | BI21: - | BJ21: 2 | BK21: 2 | BL21: 2 | BM21: - | BN21: - | BO21: Declined
A22: Report | B22: Haringey London Borough Council | C22: 53124 | D22: Community Learning and Skills | E22: London | F22: Haringey | G22: ACL Local Authority | H22: ACL - requires improvement | I22: 430294 | J22: 2014-11-10 | K22: 2014-11-14 | L22: Published | M22: 2014-12-19 | N22: 410633 | O22: 2013-05-17 | P22: 3 | Q22: 3 | R22: - | S22: - | T22: - | U22: - | V22: - | W22: - | X22: 3 | Y22: - | Z22: - | AA22: 3 | AB22: - | AC22: - | AD22: - | AE22: - | AF22: - | AG22: - | AH22: 3 | AI22: - | AJ22: - | AK22: 3 | AL22: - | AM22: - | AN22: - | AO22: - | AP22: - | AQ22: - | AR22: 3 | AS22: - | AT22: - | AU22: 3 | AV22: - | AW22: - | AX22: - | AY22: - | AZ22: - | BA22: - | BB22: 3 | BC22: - | BD22: - | BE22: 3 | BF22: - | BG22: - | BH22: - | BI22: - | BJ22: - | BK22: - | BL22: 3 | BM22: - | BN22: - | BO22: Same
A23: Report | B23: The Cornwall Council | C23: 51349 | D23: Community Learning and Skills | E23: South West | F23: Cornwall | G23: ACL Local Authority | H23: ACL - requires improvement | I23: 430293 | J23: 2014-11-17 | K23: 2014-11-21 | L23: Published | M23: 2015-01-14 | N23: 410630 | O23: 2013-06-07 | P23: 3 | Q23: 2 | R23: - | S23: - | T23: - | U23: - | V23: 2 | W23: - | X23: 2 | Y23: - | Z23: - | AA23: 2 | AB23: - | AC23: - | AD23: - | AE23: - | AF23: 2 | AG23: - | AH23: 2 | AI23: - | AJ23: - | AK23: 2 | AL23: - | AM23: - | AN23: - | AO23: - | AP23: 2 | AQ23: - | AR23: 2 | AS23: - | AT23: - | AU23: 2 | AV23: - | AW23: - | AX23: - | AY23: - | AZ23: 2 | BA23: - | BB23: 2 | BC23: - | BD23: - | BE23: 3 | BF23: - | BG23: - | BH23: - | BI23: - | BJ23: 3 | BK23: - | BL23: 3 | BM23: - | BN23: - | BO23: Improved
A24: Report | B24: Roots and Shoots | C24: 54175 | D24: Community Learning and Skills | E24: London | F24: Lambeth | G24: ACL Voluntary organisation | H24: WBL - full (regional) | I24: 434051 | J24: 2014-11-24 | K24: 2014-11-27 | L24: Published | M24: 2015-01-15 | N24: 376248 | O24: 2011-12-01 | P24: 1 | Q24: 2 | R24: - | S24: - | T24: - | U24: 2 | V24: - | W24: - | X24: - | Y24: - | Z24: - | AA24: 2 | AB24: - | AC24: - | AD24: - | AE24: 2 | AF24: - | AG24: - | AH24: - | AI24: - | AJ24: - | AK24: 2 | AL24: - | AM24: - | AN24: - | AO24: 2 | AP24: - | AQ24: - | AR24: - | AS24: - | AT24: - | AU24: 2 | AV24: - | AW24: - | AX24: - | AY24: 2 | AZ24: - | BA24: - | BB24: - | BC24: - | BD24: - | BE24: 2 | BF24: - | BG24: - | BH24: - | BI24: 2 | BJ24: - | BK24: - | BL24: - | BM24: - | BN24: - | BO24: Declined
A25: Report | B25: Sunderland City Metropolitan Borough Council | C25: 54666 | D25: Community Learning and Skills | E25: North East, Yorkshire & Humber | F25: Sunderland | G25: ACL Local Authority | H25: Adult and Community - full (regional) | I25: 446667 | J25: 2014-11-24 | K25: 2014-11-28 | L25: Published | M25: 2014-12-24 | N25: 320960 | O25: 2008-11-28 | P25: 2 | Q25: 2 | R25: - | S25: - | T25: - | U25: - | V25: 2 | W25: 2 | X25: 2 | Y25: - | Z25: 2 | AA25: 2 | AB25: - | AC25: - | AD25: - | AE25: - | AF25: 2 | AG25: 2 | AH25: 2 | AI25: - | AJ25: 2 | AK25: 2 | AL25: - | AM25: - | AN25: - | AO25: - | AP25: 2 | AQ25: 2 | AR25: 2 | AS25: - | AT25: 2 | AU25: 2 | AV25: - | AW25: - | AX25: - | AY25: - | AZ25: 2 | BA25: 2 | BB25: 2 | BC25: - | BD25: 2 | BE25: 2 | BF25: - | BG25: - | BH25: - | BI25: - | BJ25: 2 | BK25: 2 | BL25: 2 | BM25: - | BN25: 2 | BO25: Same
A26: Report | B26: London Learning Consortium Community Interest Company | C26: 58611 | D26: Community Learning and Skills | E26: London | F26: Croydon | G26: ACL Voluntary organisation | H26: WBL - requires improvement | I26: 430254 | J26: 2014-11-24 | K26: 2014-11-28 | L26: Published | M26: 2015-01-13 | N26: 399131 | O26: 2013-06-28 | P26: 3 | Q26: 2 | R26: - | S26: - | T26: - | U26: - | V26: 2 | W26: 2 | X26: - | Y26: - | Z26: - | AA26: 2 | AB26: - | AC26: - | AD26: - | AE26: - | AF26: 2 | AG26: 2 | AH26: - | AI26: - | AJ26: - | AK26: 2 | AL26: - | AM26: - | AN26: - | AO26: - | AP26: 2 | AQ26: 2 | AR26: - | AS26: - | AT26: - | AU26: 2 | AV26: - | AW26: - | AX26: - | AY26: - | AZ26: 2 | BA26: 2 | BB26: - | BC26: - | BD26: - | BE26: 2 | BF26: - | BG26: - | BH26: - | BI26: - | BJ26: 2 | BK26: 2 | BL26: - | BM26: - | BN26: - | BO26: Improved
A27: Report | B27: Hounslow Adult and Community Education | C27: 53132 | D27: Community Learning and Skills | E27: London | F27: Hounslow | G27: ACL Local Authority | H27: Adult and Community - full (regional) | I27: 446662 | J27: 2014-12-01 | K27: 2014-12-05 | L27: Published | M27: 2015-01-14 | N27: 329193 | O27: 2008-12-05 | P27: 2 | Q27: 2 | R27: - | S27: - | T27: - | U27: - | V27: 2 | W27: - | X27: 2 | Y27: - | Z27: - | AA27: 2 | AB27: - | AC27: - | AD27: - | AE27: - | AF27: 2 | AG27: - | AH27: 2 | AI27: - | AJ27: - | AK27: 2 | AL27: - | AM27: - | AN27: - | AO27: - | AP27: 2 | AQ27: - | AR27: 2 | AS27: - | AT27: - | AU27: 2 | AV27: - | AW27: - | AX27: - | AY27: - | AZ27: 2 | BA27: - | BB27: 2 | BC27: - | BD27: - | BE27: 2 | BF27: - | BG27: - | BH27: - | BI27: - | BJ27: 2 | BK27: - | BL27: 2 | BM27: - | BN27: - | BO27: Same
A28: Report | B28: Worcestershire County Council | C28: 55422 | D28: Community Learning and Skills | E28: West Midlands | F28: Worcestershire | G28: ACL Local Authority | H28: Adult and Community - full (regional) | I28: 451949 | J28: 2014-12-02 | K28: 2014-12-05 | L28: Published | M28: 2015-01-07 | N28: 375496 | O28: 2011-11-18 | P28: 2 | Q28: 3 | R28: - | S28: - | T28: 3 | U28: 4 | V28: 2 | W28: - | X28: 2 | Y28: - | Z28: - | AA28: 3 | AB28: - | AC28: - | AD28: 3 | AE28: 4 | AF28: 3 | AG28: - | AH28: 2 | AI28: - | AJ28: - | AK28: 3 | AL28: - | AM28: - | AN28: 3 | AO28: 3 | AP28: 2 | AQ28: - | AR28: 2 | AS28: - | AT28: - | AU28: 3 | AV28: - | AW28: - | AX28: 3 | AY28: 4 | AZ28: 2 | BA28: - | BB28: 2 | BC28: - | BD28: - | BE28: 2 | BF28: - | BG28: - | BH28: 2 | BI28: 2 | BJ28: 2 | BK28: - | BL28: 2 | BM28: - | BN28: - | BO28: Declined
A29: Report | B29: Wandsworth London Borough Council | C29: 53152 | D29: Community Learning and Skills | E29: London | F29: Wandsworth | G29: ACL Local Authority | H29: Adult and Community - full (regional) | I29: 446663 | J29: 2014-12-08 | K29: 2014-12-12 | L29: Published | M29: 2015-01-21 | N29: 345790 | O29: 2010-04-30 | P29: 2 | Q29: 4 | R29: - | S29: - | T29: - | U29: - | V29: - | W29: 4 | X29: 4 | Y29: - | Z29: - | AA29: 3 | AB29: - | AC29: - | AD29: - | AE29: - | AF29: - | AG29: 3 | AH29: 2 | AI29: - | AJ29: - | AK29: 3 | AL29: - | AM29: - | AN29: - | AO29: - | AP29: - | AQ29: 3 | AR29: 2 | AS29: - | AT29: - | AU29: 4 | AV29: - | AW29: - | AX29: - | AY29: - | AZ29: - | BA29: 4 | BB29: 4 | BC29: - | BD29: - | BE29: 4 | BF29: - | BG29: - | BH29: - | BI29: - | BJ29: - | BK29: 4 | BL29: 4 | BM29: - | BN29: - | BO29: Declined
A30: Report | B30: Wolverhampton Adult Education Service | C30: 55413 | D30: Community Learning and Skills | E30: West Midlands | F30: Wolverhampton | G30: ACL Local Authority | H30: Adult and Community - full (regional) | I30: 446669 | J30: 2014-12-08 | K30: 2014-12-12 | L30: Published | M30: 2015-01-15 | N30: 331468 | O30: 2009-01-23 | P30: 2 | Q30: 1 | R30: - | S30: - | T30: - | U30: 1 | V30: 1 | W30: - | X30: 1 | Y30: - | Z30: 1 | AA30: 1 | AB30: - | AC30: - | AD30: - | AE30: 1 | AF30: 1 | AG30: - | AH30: 1 | AI30: - | AJ30: 1 | AK30: 1 | AL30: - | AM30: - | AN30: - | AO30: 1 | AP30: 1 | AQ30: - | AR30: 1 | AS30: - | AT30: 1 | AU30: 1 | AV30: - | AW30: - | AX30: - | AY30: 1 | AZ30: 1 | BA30: - | BB30: 1 | BC30: - | BD30: 1 | BE30: 2 | BF30: - | BG30: - | BH30: - | BI30: 2 | BJ30: 2 | BK30: - | BL30: 2 | BM30: - | BN30: 2 | BO30: Improved
A31: Report | B31: East London Advanced Technology Training | C31: 51646 | D31: Community Learning and Skills | E31: London | F31: Hackney | G31: ACL Voluntary organisation | H31: Adult and Community - full (regional) | I31: 452602 | J31: 2015-01-14 | K31: 2015-01-16 | L31: Published | M31: 2015-02-20 | N31: 334063 | O31: 2009-04-24 | P31: 2 | Q31: 1 | R31: - | S31: - | T31: - | U31: - | V31: 1 | W31: - | X31: - | Y31: - | Z31: - | AA31: 1 | AB31: - | AC31: - | AD31: - | AE31: - | AF31: 1 | AG31: - | AH31: - | AI31: - | AJ31: - | AK31: 1 | AL31: - | AM31: - | AN31: - | AO31: - | AP31: 1 | AQ31: - | AR31: - | AS31: - | AT31: - | AU31: 1 | AV31: - | AW31: - | AX31: - | AY31: - | AZ31: 1 | BA31: - | BB31: - | BC31: - | BD31: - | BE31: 2 | BF31: - | BG31: - | BH31: - | BI31: - | BJ31: 2 | BK31: - | BL31: - | BM31: - | BN31: - | BO31: Improved
A32: Report | B32: County Training | C32: 54373 | D32: Community Learning and Skills | E32: West Midlands | F32: Shropshire | G32: ACL Voluntary organisation | H32: ACL - requires improvement | I32: 440287 | J32: 2015-01-19 | K32: 2015-01-23 | L32: Published | M32: 2015-03-03 | N32: 423424 | O32: 2013-11-01 | P32: 3 | Q32: 2 | R32: - | S32: - | T32: - | U32: 2 | V32: 2 | W32: 2 | X32: 2 | Y32: - | Z32: 2 | AA32: 2 | AB32: - | AC32: - | AD32: - | AE32: 2 | AF32: 2 | AG32: 2 | AH32: 2 | AI32: - | AJ32: 2 | AK32: 2 | AL32: - | AM32: - | AN32: - | AO32: 2 | AP32: 2 | AQ32: 2 | AR32: 2 | AS32: - | AT32: 2 | AU32: 1 | AV32: - | AW32: - | AX32: - | AY32: 1 | AZ32: 1 | BA32: 1 | BB32: 1 | BC32: - | BD32: 1 | BE32: 1 | BF32: - | BG32: - | BH32: - | BI32: 1 | BJ32: 1 | BK32: 1 | BL32: 1 | BM32: - | BN32: 1 | BO32: Improved
A33: Report | B33: Durham County Council | C33: 50219 | D33: Community Learning and Skills | E33: North East, Yorkshire & Humber | F33: Durham | G33: ACL Local Authority | H33: ACL - requires improvement | I33: 434393 | J33: 2015-01-19 | K33: 2015-01-23 | L33: Published | M33: 2015-03-06 | N33: 423431 | O33: 2013-10-11 | P33: 3 | Q33: 2 | R33: - | S33: - | T33: - | U33: - | V33: 2 | W33: 1 | X33: 2 | Y33: - | Z33: - | AA33: 2 | AB33: - | AC33: - | AD33: - | AE33: - | AF33: 2 | AG33: 1 | AH33: 2 | AI33: - | AJ33: - | AK33: 2 | AL33: - | AM33: - | AN33: - | AO33: - | AP33: 2 | AQ33: 1 | AR33: 2 | AS33: - | AT33: - | AU33: 2 | AV33: - | AW33: - | AX33: - | AY33: - | AZ33: 2 | BA33: 2 | BB33: 2 | BC33: - | BD33: - | BE33: 2 | BF33: - | BG33: - | BH33: - | BI33: - | BJ33: 2 | BK33: 2 | BL33: 2 | BM33: - | BN33: - | BO33: Improved
A34: Report | B34: The Mary Ward Centre (AE Centre) | C34: 130404 | D34: Community Learning and Skills | E34: London | F34: Camden | G34: ACL Specialist Designated Institute | H34: Adult and Community - full (regional) | I34: 452634 | J34: 2015-01-19 | K34: 2015-01-23 | L34: Published | M34: 2015-02-27 | N34: 330812 | O34: 2009-02-27 | P34: 2 | Q34: 2 | R34: - | S34: - | T34: - | U34: - | V34: - | W34: - | X34: 2 | Y34: - | Z34: - | AA34: 2 | AB34: - | AC34: - | AD34: - | AE34: - | AF34: - | AG34: - | AH34: 2 | AI34: - | AJ34: - | AK34: 2 | AL34: - | AM34: - | AN34: - | AO34: - | AP34: - | AQ34: - | AR34: 2 | AS34: - | AT34: - | AU34: 2 | AV34: - | AW34: - | AX34: - | AY34: - | AZ34: - | BA34: - | BB34: 2 | BC34: - | BD34: - | BE34: 2 | BF34: - | BG34: - | BH34: - | BI34: - | BJ34: - | BK34: - | BL34: 2 | BM34: - | BN34: - | BO34: Same
A35: =IF(C35 <> "", HYPERLINK(CONCATENATE("http://reports.ofsted.gov.uk/inspection-reports/find-inspection-report/provider/ELS/",C35),"Report"),"") -> Report | B35: NCC Adult Education Services | C35: 53545 | D35: Community Learning and Skills | E35: East of England | F35: Norfolk | G35: ACL Local Authority | H35: Adult and Community - full (regional) | I35: 452610 | J35: 2015-01-19 | K35: 2015-01-23 | L35: Published | M35: 2015-03-09 | N35: 375495 | O35: 2011-11-25 | P35: 2 | Q35: 4 | R35: - | S35: - | T35: - | U35: - | V35: 4 | W35: - | X35: 4 | Y35: - | Z35: - | AA35: 3 | AB35: - | AC35: - | AD35: - | AE35: - | AF35: 3 | AG35: - | AH35: 3 | AI35: - | AJ35: - | AK35: 3 | AL35: - | AM35: - | AN35: - | AO35: - | AP35: 3 | AQ35: - | AR35: 3 | AS35: - | AT35: - | AU35: 4 | AV35: - | AW35: - | AX35: - | AY35: - | AZ35: 4 | BA35: - | BB35: 4 | BC35: - | BD35: - | BE35: 2 | BF35: - | BG35: - | BH35: - | BI35: - | BJ35: 2 | BK35: - | BL35: 2 | BM35: - | BN35: - | BO35: =IF(P35="Null","No previous inspection",IF(Q35>P35,"Declined", IF(Q35=P35,"Same",IF(Q35<P35,"Improved")))) -> Declined
A36: Report | B36: Nottingham City Council | C36: 53664 | D36: Community Learning and Skills | E36: East Midlands | F36: Nottingham | G36: ACL Local Authority | H36: Adult and Community - full (regional) | I36: 423419 | J36: 2015-02-04 | K36: 2015-02-06 | L36: Published | M36: 2015-03-13 | N36: 329892 | O36: 2008-11-28 | P36: 2 | Q36: 2 | R36: - | S36: - | T36: - | U36: - | V36: - | W36: - | X36: 2 | Y36: - | Z36: - | AA36: 2 | AB36: - | AC36: - | AD36: - | AE36: - | AF36: - | AG36: - | AH36: 2 | AI36: - | AJ36: - | AK36: 2 | AL36: - | AM36: - | AN36: - | AO36: - | AP36: - | AQ36: - | AR36: 2 | AS36: - | AT36: - | AU36: 2 | AV36: - | AW36: - | AX36: - | AY36: - | AZ36: - | BA36: - | BB36: 2 | BC36: - | BD36: - | BE36: 2 | BF36: - | BG36: - | BH36: - | BI36: - | BJ36: - | BK36: - | BL36: 2 | BM36: - | BN36: - | BO36: Same
A37: Report | B37: Training 2000 Limited | C37: 55045 | D37: Community Learning and Skills | E37: North West | F37: Blackburn with Darwen | G37: ACL Voluntary organisation | H37: WBL - full (regional) | I37: 452982 | J37: 2015-02-02 | K37: 2015-02-06 | L37: Published | M37: 2015-03-12 | N37: 363206 | O37: 2011-03-25 | P37: 2 | Q37: 2 | R37: - | S37: - | T37: - | U37: 2 | V37: - | W37: 1 | X37: - | Y37: - | Z37: - | AA37: 2 | AB37: - | AC37: - | AD37: - | AE37: 2 | AF37: - | AG37: 2 | AH37: - | AI37: - | AJ37: - | AK37: 2 | AL37: - | AM37: - | AN37: - | AO37: 2 | AP37: - | AQ37: 1 | AR37: - | AS37: - | AT37: - | AU37: 1 | AV37: - | AW37: - | AX37: - | AY37: 2 | AZ37: - | BA37: 1 | BB37: - | BC37: - | BD37: - | BE37: 1 | BF37: - | BG37: - | BH37: - | BI37: 1 | BJ37: - | BK37: 1 | BL37: - | BM37: - | BN37: - | BO37: Same
A38: Report | B38: METSKILL Limited | C38: 53330 | D38: Community Learning and Skills | E38: North East, Yorkshire & Humber | F38: Sheffield | G38: ACL Voluntary organisation | H38: Work Based Learning - full (national) | I38: 452609 | J38: 2015-02-09 | K38: 2015-02-13 | L38: Published | M38: 2015-03-24 | N38: 385747 | O38: 2012-02-10 | P38: 2 | Q38: 3 | R38: - | S38: - | T38: - | U38: - | V38: - | W38: 3 | X38: - | Y38: - | Z38: - | AA38: 3 | AB38: - | AC38: - | AD38: - | AE38: - | AF38: - | AG38: 3 | AH38: - | AI38: - | AJ38: - | AK38: 3 | AL38: - | AM38: - | AN38: - | AO38: - | AP38: - | AQ38: 3 | AR38: - | AS38: - | AT38: - | AU38: 3 | AV38: - | AW38: - | AX38: - | AY38: - | AZ38: - | BA38: 3 | BB38: - | BC38: - | BD38: - | BE38: 2 | BF38: - | BG38: - | BH38: - | BI38: - | BJ38: - | BK38: 2 | BL38: - | BM38: - | BN38: - | BO38: Declined
A39: Report | B39: Sandwell Training Association Limited | C39: 54271 | D39: Community Learning and Skills | E39: West Midlands | F39: Sandwell | G39: ACL Voluntary organisation | H39: WBL - full (regional) | I39: 452616 | J39: 2015-02-16 | K39: 2015-02-20 | L39: Published | M39: 2015-03-20 | N39: 376201 | O39: 2011-10-14 | P39: 2 | Q39: 3 | R39: - | S39: - | T39: - | U39: - | V39: - | W39: 3 | X39: - | Y39: - | Z39: - | AA39: 3 | AB39: - | AC39: - | AD39: - | AE39: - | AF39: - | AG39: 3 | AH39: - | AI39: - | AJ39: - | AK39: 3 | AL39: - | AM39: - | AN39: - | AO39: - | AP39: - | AQ39: 3 | AR39: - | AS39: - | AT39: - | AU39: 3 | AV39: - | AW39: - | AX39: - | AY39: - | AZ39: - | BA39: 3 | BB39: - | BC39: - | BD39: - | BE39: 3 | BF39: - | BG39: - | BH39: - | BI39: - | BJ39: - | BK39: 3 | BL39: - | BM39: - | BN39: - | BO39: Declined
A40: Report | B40: Romney Resource 2000 Ltd | C40: 58383 | D40: Community Learning and Skills | E40: South East | F40: Kent | G40: ACL Voluntary organisation | H40: WBL - requires improvement | I40: 434392 | J40: 2015-03-03 | K40: 2015-03-06 | L40: Published | M40: 2015-04-22 | N40: 423836 | O40: 2013-10-11 | P40: 3 | Q40: 3 | R40: - | S40: - | T40: - | U40: 3 | V40: - | W40: - | X40: - | Y40: - | Z40: - | AA40: 3 | AB40: - | AC40: - | AD40: - | AE40: 3 | AF40: - | AG40: - | AH40: - | AI40: - | AJ40: - | AK40: 3 | AL40: - | AM40: - | AN40: - | AO40: 3 | AP40: - | AQ40: - | AR40: - | AS40: - | AT40: - | AU40: 3 | AV40: - | AW40: - | AX40: - | AY40: 3 | AZ40: - | BA40: - | BB40: - | BC40: - | BD40: - | BE40: 3 | BF40: - | BG40: - | BH40: - | BI40: 3 | BJ40: - | BK40: - | BL40: - | BM40: - | BN40: - | BO40: Same
A41: Report | B41: The Communiversity | C41: 58913 | D41: Community Learning and Skills | E41: North West | F41: Liverpool | G41: ACL Voluntary organisation | H41: Adult and Community - full (regional) | I41: 455664 | J41: 2015-03-10 | K41: 2015-03-12 | L41: Published | M41: 2015-04-16 | N41: NULL | O41: NULL | P41: NULL | Q41: 3 | R41: - | S41: - | T41: - | U41: - | V41: - | W41: 3 | X41: - | Y41: - | Z41: - | AA41: 3 | AB41: - | AC41: - | AD41: - | AE41: - | AF41: - | AG41: 3 | AH41: - | AI41: - | AJ41: - | AK41: 3 | AL41: - | AM41: - | AN41: - | AO41: - | AP41: - | AQ41: 3 | AR41: - | AS41: - | AT41: - | AU41: 3 | AV41: - | AW41: - | AX41: - | AY41: - | AZ41: - | BA41: 3 | BB41: - | BC41: - | BD41: - | BE41: 3 | BF41: - | BG41: - | BH41: - | BI41: - | BJ41: - | BK41: 3 | BL41: - | BM41: - | BN41: - | BO41: No previous inspection
A42: Report | B42: Derby Skillbuild | C42: 51525 | D42: Community Learning and Skills | E42: East Midlands | F42: Derby | G42: ACL Voluntary organisation | H42: WBL - requires improvement | I42: 434401 | J42: 2015-03-17 | K42: 2015-03-19 | L42: Published | M42: 2015-04-24 | N42: 423742 | O42: 2013-10-25 | P42: 3 | Q42: 2 | R42: - | S42: - | T42: - | U42: 2 | V42: - | W42: - | X42: - | Y42: - | Z42: - | AA42: 2 | AB42: - | AC42: - | AD42: - | AE42: 2 | AF42: - | AG42: - | AH42: - | AI42: - | AJ42: - | AK42: 2 | AL42: - | AM42: - | AN42: - | AO42: 2 | AP42: - | AQ42: - | AR42: - | AS42: - | AT42: - | AU42: 2 | AV42: - | AW42: - | AX42: - | AY42: 2 | AZ42: - | BA42: - | BB42: - | BC42: - | BD42: - | BE42: 2 | BF42: - | BG42: - | BH42: - | BI42: 2 | BJ42: - | BK42: - | BL42: - | BM42: - | BN42: - | BO42: Improved
A43: Report | B43: City Gateway | C43: 58841 | D43: Community Learning and Skills | E43: London | F43: Tower Hamlets | G43: ACL Voluntary organisation | H43: WBL - full (regional) | I43: 452623 | J43: 2015-03-16 | K43: 2015-03-19 | L43: Published | M43: 2015-04-22 | N43: 364060 | O43: 2010-12-03 | P43: 1 | Q43: 2 | R43: - | S43: - | T43: - | U43: - | V43: 2 | W43: 2 | X43: - | Y43: - | Z43: - | AA43: 2 | AB43: - | AC43: - | AD43: - | AE43: - | AF43: 2 | AG43: 2 | AH43: - | AI43: - | AJ43: - | AK43: 2 | AL43: - | AM43: - | AN43: - | AO43: - | AP43: 1 | AQ43: 2 | AR43: - | AS43: - | AT43: - | AU43: 2 | AV43: - | AW43: - | AX43: - | AY43: - | AZ43: 1 | BA43: 2 | BB43: - | BC43: - | BD43: - | BE43: 1 | BF43: - | BG43: - | BH43: - | BI43: - | BJ43: 1 | BK43: 1 | BL43: - | BM43: - | BN43: - | BO43: Declined
A44: Report | B44: Open Door Adult Learning Centre | C44: 53746 | D44: Community Learning and Skills | E44: North East, Yorkshire & Humber | F44: Sheffield | G44: ACL Voluntary organisation | H44: Adult and Community - full (regional) | I44: 452615 | J44: 2015-03-24 | K44: 2015-03-27 | L44: Published | M44: 2015-05-01 | N44: 320075 | O44: 2008-01-25 | P44: 1 | Q44: 3 | R44: - | S44: - | T44: - | U44: - | V44: 3 | W44: - | X44: - | Y44: - | Z44: - | AA44: 3 | AB44: - | AC44: - | AD44: - | AE44: - | AF44: 3 | AG44: - | AH44: - | AI44: - | AJ44: - | AK44: 2 | AL44: - | AM44: - | AN44: - | AO44: - | AP44: 2 | AQ44: - | AR44: - | AS44: - | AT44: - | AU44: 3 | AV44: - | AW44: - | AX44: - | AY44: - | AZ44: 3 | BA44: - | BB44: - | BC44: - | BD44: - | BE44: 3 | BF44: - | BG44: - | BH44: - | BI44: - | BJ44: 3 | BK44: - | BL44: - | BM44: - | BN44: - | BO44: Declined
A45: Report | B45: YMCA Training | C45: 57598 | D45: Community Learning and Skills | E45: North West | F45: Stockport | G45: ACL Voluntary organisation | H45: Work Based Learning - full (national) | I45: 452735 | J45: 2015-03-23 | K45: 2015-03-27 | L45: Published | M45: 2015-04-29 | N45: 345914 | O45: 2010-05-28 | P45: 2 | Q45: 3 | R45: - | S45: - | T45: 2 | U45: 3 | V45: 2 | W45: 2 | X45: - | Y45: - | Z45: - | AA45: 3 | AB45: - | AC45: - | AD45: 2 | AE45: 3 | AF45: 2 | AG45: 2 | AH45: - | AI45: - | AJ45: - | AK45: 3 | AL45: - | AM45: - | AN45: 2 | AO45: 3 | AP45: 2 | AQ45: 2 | AR45: - | AS45: - | AT45: - | AU45: 3 | AV45: - | AW45: - | AX45: 3 | AY45: 3 | AZ45: 3 | BA45: 3 | BB45: - | BC45: - | BD45: - | BE45: 2 | BF45: - | BG45: - | BH45: 2 | BI45: 3 | BJ45: 2 | BK45: 2 | BL45: - | BM45: - | BN45: - | BO45: Declined
A46: Report | B46: Compass Group UK & Ireland | C46: 58805 | D46: Employer | E46: South East | F46: Surrey | G46: Employer | H46: WBL - requires improvement | I46: 430252 | J46: 2014-11-10 | K46: 2014-11-14 | L46: Published | M46: 2014-12-19 | N46: 408528 | O46: 2013-06-07 | P46: 3 | Q46: 2 | R46: - | S46: - | T46: - | U46: - | V46: - | W46: 2 | X46: - | Y46: - | Z46: - | AA46: 3 | AB46: - | AC46: - | AD46: - | AE46: - | AF46: - | AG46: 3 | AH46: - | AI46: - | AJ46: - | AK46: 2 | AL46: - | AM46: - | AN46: - | AO46: - | AP46: - | AQ46: 2 | AR46: - | AS46: - | AT46: - | AU46: 2 | AV46: - | AW46: - | AX46: - | AY46: - | AZ46: - | BA46: 2 | BB46: - | BC46: - | BD46: - | BE46: 2 | BF46: - | BG46: - | BH46: - | BI46: - | BJ46: - | BK46: 2 | BL46: - | BM46: - | BN46: - | BO46: Improved
A47: Report | B47: Ministry of Defence (RAF) | C47: 54191 | D47: Employer | E47: South West | F47: Gloucestershire | G47: Employer | H47: Work Based Learning - full (national) | I47: 446605 | J47: 2014-12-08 | K47: 2014-12-12 | L47: Published | M47: 2015-01-21 | N47: 330030 | O47: 2009-01-16 | P47: 2 | Q47: 1 | R47: - | S47: - | T47: - | U47: - | V47: - | W47: 1 | X47: - | Y47: - | Z47: - | AA47: 1 | AB47: - | AC47: - | AD47: - | AE47: - | AF47: - | AG47: 1 | AH47: - | AI47: - | AJ47: - | AK47: 1 | AL47: - | AM47: - | AN47: - | AO47: - | AP47: - | AQ47: 1 | AR47: - | AS47: - | AT47: - | AU47: 1 | AV47: - | AW47: - | AX47: - | AY47: - | AZ47: - | BA47: 1 | BB47: - | BC47: - | BD47: - | BE47: 2 | BF47: - | BG47: - | BH47: - | BI47: - | BJ47: - | BK47: 2 | BL47: - | BM47: - | BN47: - | BO47: Improved
A48: Report | B48: GI Group | C48: 59190 | D48: Employer | E48: East Midlands | F48: Derbyshire | G48: Employer | H48: WBL - full (regional) | I48: 452631 | J48: 2015-01-13 | K48: 2015-01-16 | L48: Published | M48: 2015-02-26 | N48: NULL | O48: NULL | P48: NULL | Q48: 3 | R48: - | S48: - | T48: - | U48: - | V48: - | W48: 3 | X48: - | Y48: - | Z48: - | AA48: 3 | AB48: - | AC48: - | AD48: - | AE48: - | AF48: - | AG48: 3 | AH48: - | AI48: - | AJ48: - | AK48: 3 | AL48: - | AM48: - | AN48: - | AO48: - | AP48: - | AQ48: 3 | AR48: - | AS48: - | AT48: - | AU48: 3 | AV48: - | AW48: - | AX48: - | AY48: - | AZ48: - | BA48: 3 | BB48: - | BC48: - | BD48: - | BE48: 2 | BF48: - | BG48: - | BH48: - | BI48: - | BJ48: - | BK48: 2 | BL48: - | BM48: - | BN48: - | BO48: No previous inspection
A49: Report | B49: E.ON UK Plc | C49: 58731 | D49: Employer | E49: East Midlands | F49: Nottinghamshire | G49: Employer | H49: WBL - full (regional) | I49: 452990 | J49: 2015-01-20 | K49: 2015-01-23 | L49: Published | M49: 2015-03-12 | N49: 376207 | O49: 2011-12-09 | P49: 2 | Q49: 3 | R49: - | S49: - | T49: - | U49: - | V49: - | W49: 3 | X49: - | Y49: - | Z49: - | AA49: 3 | AB49: - | AC49: - | AD49: - | AE49: - | AF49: - | AG49: 3 | AH49: - | AI49: - | AJ49: - | AK49: 3 | AL49: - | AM49: - | AN49: - | AO49: - | AP49: - | AQ49: 3 | AR49: - | AS49: - | AT49: - | AU49: 3 | AV49: - | AW49: - | AX49: - | AY49: - | AZ49: - | BA49: 3 | BB49: - | BC49: - | BD49: - | BE49: 2 | BF49: - | BG49: - | BH49: - | BI49: - | BJ49: - | BK49: 2 | BL49: - | BM49: - | BN49: - | BO49: Declined
A50: Report | B50: Priory Central Services Limited | C50: 59108 | D50: Employer | E50: East Midlands | F50: Leicestershire | G50: Employer | H50: WBL - requires improvement | I50: 434394 | J50: 2015-03-02 | K50: 2015-03-06 | L50: Published | M50: 2015-04-17 | N50: 423727 | O50: 2013-10-18 | P50: 3 | Q50: 4 | R50: - | S50: - | T50: - | U50: - | V50: - | W50: 4 | X50: - | Y50: - | Z50: - | AA50: 4 | AB50: - | AC50: - | AD50: - | AE50: - | AF50: - | AG50: 4 | AH50: - | AI50: - | AJ50: - | AK50: 4 | AL50: - | AM50: - | AN50: - | AO50: - | AP50: - | AQ50: 4 | AR50: - | AS50: - | AT50: - | AU50: 4 | AV50: - | AW50: - | AX50: - | AY50: - | AZ50: - | BA50: 4 | BB50: - | BC50: - | BD50: - | BE50: 3 | BF50: - | BG50: - | BH50: - | BI50: - | BJ50: - | BK50: 3 | BL50: - | BM50: - | BN50: - | BO50: Declined
A51: Report | B51: Ministry of Defence (Navy) | C51: 58403 | D51: Employer | E51: South East | F51: Portsmouth | G51: Employer | H51: WBL - full (regional) | I51: 452622 | J51: 2015-03-09 | K51: 2015-03-13 | L51: Published | M51: 2015-04-21 | N51: 330255 | O51: 2009-02-06 | P51: 2 | Q51: 2 | R51: - | S51: - | T51: - | U51: - | V51: - | W51: 2 | X51: - | Y51: - | Z51: - | AA51: 2 | AB51: - | AC51: - | AD51: - | AE51: - | AF51: - | AG51: 2 | AH51: - | AI51: - | AJ51: - | AK51: 2 | AL51: - | AM51: - | AN51: - | AO51: - | AP51: - | AQ51: 2 | AR51: - | AS51: - | AT51: - | AU51: 2 | AV51: - | AW51: - | AX51: - | AY51: - | AZ51: - | BA51: 2 | BB51: - | BC51: - | BD51: - | BE51: 2 | BF51: - | BG51: - | BH51: - | BI51: - | BJ51: - | BK51: 2 | BL51: - | BM51: - | BN51: - | BO51: Same
A52: Report | B52: Thomas Cook Group UK Limited | C52: 58184 | D52: Employer | E52: East of England | F52: Peterborough | G52: Employer | H52: Work Based Learning - full (national) | I52: 452987 | J52: 2015-03-23 | K52: 2015-03-27 | L52: Published | M52: 2015-04-30 | N52: 332129 | O52: 2009-06-19 | P52: 2 | Q52: 1 | R52: - | S52: - | T52: - | U52: - | V52: - | W52: 1 | X52: - | Y52: - | Z52: - | AA52: 1 | AB52: - | AC52: - | AD52: - | AE52: - | AF52: - | AG52: 1 | AH52: - | AI52: - | AJ52: - | AK52: 1 | AL52: - | AM52: - | AN52: - | AO52: - | AP52: - | AQ52: 1 | AR52: - | AS52: - | AT52: - | AU52: 1 | AV52: - | AW52: - | AX52: - | AY52: - | AZ52: - | BA52: 1 | BB52: - | BC52: - | BD52: - | BE52: 2 | BF52: - | BG52: - | BH52: - | BI52: - | BJ52: - | BK52: 2 | BL52: - | BM52: - | BN52: - | BO52: Improved
A53: Report | B53: The Maltings College | C53: 139433 | D53: Free School - 16-19 | E53: North East, Yorkshire & Humber | F53: Calderdale | G53: Free School - 16-19 | H53: 16-19 academy - full inspection | I53: 452498 | J53: 2015-01-13 | K53: 2015-01-16 | L53: Published | M53: 2015-02-27 | N53: NULL | O53: NULL | P53: NULL | Q53: 4 | R53: 2 | S53: - | T53: - | U53: 4 | V53: - | W53: - | X53: - | Y53: - | Z53: - | AA53: 4 | AB53: 2 | AC53: - | AD53: - | AE53: 4 | AF53: - | AG53: - | AH53: - | AI53: - | AJ53: - | AK53: 4 | AL53: 2 | AM53: - | AN53: - | AO53: 4 | AP53: - | AQ53: - | AR53: - | AS53: - | AT53: - | AU53: 4 | AV53: 2 | AW53: - | AX53: - | AY53: 4 | AZ53: - | BA53: - | BB53: - | BC53: - | BD53: - | BE53: 3 | BF53: 3 | BG53: - | BH53: - | BI53: 3 | BJ53: - | BK53: - | BL53: - | BM53: - | BN53: - | BO53: No previous inspection
A54: Report | B54: Connell Sixth Form College | C54: 139730 | D54: Free School - 16-19 | E54: North West | F54: Manchester | G54: Free School - 16-19 | H54: 16-19 academy - full inspection | I54: 452499 | J54: 2015-01-27 | K54: 2015-01-30 | L54: Published | M54: 2015-03-17 | N54: NULL | O54: NULL | P54: NULL | Q54: 3 | R54: - | S54: - | T54: - | U54: 3 | V54: - | W54: - | X54: - | Y54: - | Z54: - | AA54: 3 | AB54: - | AC54: - | AD54: - | AE54: 3 | AF54: - | AG54: - | AH54: - | AI54: - | AJ54: - | AK54: 3 | AL54: - | AM54: - | AN54: - | AO54: 3 | AP54: - | AQ54: - | AR54: - | AS54: - | AT54: - | AU54: 3 | AV54: - | AW54: - | AX54: - | AY54: 3 | AZ54: - | BA54: - | BB54: - | BC54: - | BD54: - | BE54: 3 | BF54: - | BG54: - | BH54: - | BI54: 3 | BJ54: - | BK54: - | BL54: - | BM54: - | BN54: - | BO54: No previous inspection
A55: =IF(C55 <> "", HYPERLINK(CONCATENATE("http://reports.ofsted.gov.uk/inspection-reports/find-inspection-report/provider/ELS/",C55),"Report"),"") -> Report | B55: Stem Academy | C55: 139793 | D55: Free School - 16-19 | E55: London | F55: Islington | G55: Free School - 16-19 | H55: 16-19 academy - full inspection | I55: 452500 | J55: 2015-01-27 | K55: 2015-01-30 | L55: Published | M55: 2015-03-26 | N55: NULL | O55: NULL | P55: NULL | Q55: 4 | R55: - | S55: - | T55: - | U55: 4 | V55: - | W55: - | X55: - | Y55: - | Z55: - | AA55: 4 | AB55: - | AC55: - | AD55: - | AE55: 4 | AF55: - | AG55: - | AH55: - | AI55: - | AJ55: - | AK55: 4 | AL55: - | AM55: - | AN55: - | AO55: 4 | AP55: - | AQ55: - | AR55: - | AS55: - | AT55: - | AU55: 4 | AV55: - | AW55: - | AX55: - | AY55: 4 | AZ55: - | BA55: - | BB55: - | BC55: - | BD55: - | BE55: 3 | BF55: - | BG55: - | BH55: - | BI55: 3 | BJ55: - | BK55: - | BL55: - | BM55: - | BN55: - | BO55: =IF(P55="Null","No previous inspection",IF(Q55>P55,"Declined", IF(Q55=P55,"Same",IF(Q55<P55,"Improved")))) -> No previous inspection
A56: Report | B56: Sir Isaac Newton Sixth Form Free School | C56: 139896 | D56: Free School - 16-19 | E56: East of England | F56: Norfolk | G56: Free School - 16-19 | H56: 16-19 academy - full inspection | I56: 452502 | J56: 2015-03-03 | K56: 2015-03-06 | L56: Published | M56: 2015-03-31 | N56: NULL | O56: NULL | P56: NULL | Q56: 2 | R56: - | S56: - | T56: - | U56: 2 | V56: - | W56: - | X56: - | Y56: - | Z56: - | AA56: 2 | AB56: - | AC56: - | AD56: - | AE56: 2 | AF56: - | AG56: - | AH56: - | AI56: - | AJ56: - | AK56: 2 | AL56: - | AM56: - | AN56: - | AO56: 2 | AP56: - | AQ56: - | AR56: - | AS56: - | AT56: - | AU56: 2 | AV56: - | AW56: - | AX56: - | AY56: 2 | AZ56: - | BA56: - | BB56: - | BC56: - | BD56: - | BE56: 2 | BF56: - | BG56: - | BH56: - | BI56: 2 | BJ56: - | BK56: - | BL56: - | BM56: - | BN56: - | BO56: No previous inspection
A57: Report | B57: Kimberley 16 - 19 Stem College | C57: 139798 | D57: Free School - 16-19 | E57: East of England | F57: Bedford | G57: Free School - 16-19 | H57: 16-19 academy - full inspection | I57: 452501 | J57: 2015-03-10 | K57: 2015-03-13 | L57: Published | M57: 2015-04-21 | N57: NULL | O57: NULL | P57: NULL | Q57: 3 | R57: - | S57: - | T57: - | U57: 3 | V57: - | W57: - | X57: - | Y57: - | Z57: - | AA57: 3 | AB57: - | AC57: - | AD57: - | AE57: 3 | AF57: - | AG57: - | AH57: - | AI57: - | AJ57: - | AK57: 3 | AL57: - | AM57: - | AN57: - | AO57: 3 | AP57: - | AQ57: - | AR57: - | AS57: - | AT57: - | AU57: 3 | AV57: - | AW57: - | AX57: - | AY57: 3 | AZ57: - | BA57: - | BB57: - | BC57: - | BD57: - | BE57: 2 | BF57: - | BG57: - | BH57: - | BI57: 2 | BJ57: - | BK57: - | BL57: - | BM57: - | BN57: - | BO57: No previous inspection
A58: Report | B58: Strode College | C58: 130806 | D58: General Further Education/Tertiary College | E58: South West | F58: Somerset | G58: Further Education | H58: FE College - full inspection | I58: 446539 | J58: 2014-09-23 | K58: 2014-09-26 | L58: Published | M58: 2014-10-31 | N58: 330974 | O58: 2008-10-02 | P58: 2 | Q58: 1 | R58: - | S58: - | T58: 1 | U58: 1 | V58: 1 | W58: 2 | X58: - | Y58: - | Z58: - | AA58: 1 | AB58: - | AC58: - | AD58: 1 | AE58: 1 | AF58: 2 | AG58: 2 | AH58: - | AI58: - | AJ58: - | AK58: 1 | AL58: - | AM58: - | AN58: 1 | AO58: 1 | AP58: 1 | AQ58: 1 | AR58: - | AS58: - | AT58: - | AU58: 1 | AV58: - | AW58: - | AX58: 1 | AY58: 1 | AZ58: 1 | BA58: 1 | BB58: - | BC58: - | BD58: - | BE58: 2 | BF58: - | BG58: - | BH58: 2 | BI58: 2 | BJ58: 2 | BK58: 2 | BL58: - | BM58: - | BN58: - | BO58: Improved
A59: Report | B59: Bradford College | C59: 130532 | D59: General Further Education/Tertiary College | E59: North East, Yorkshire & Humber | F59: Bradford | G59: Further Education | H59: FE College - full inspection | I59: 446537 | J59: 2014-09-22 | K59: 2014-09-26 | L59: Published | M59: 2014-10-29 | N59: 329315 | O59: 2008-10-10 | P59: 2 | Q59: 2 | R59: - | S59: - | T59: - | U59: 2 | V59: 2 | W59: 2 | X59: 2 | Y59: - | Z59: - | AA59: 2 | AB59: - | AC59: - | AD59: - | AE59: 2 | AF59: 2 | AG59: 2 | AH59: 2 | AI59: - | AJ59: - | AK59: 2 | AL59: - | AM59: - | AN59: - | AO59: 2 | AP59: 2 | AQ59: 2 | AR59: 2 | AS59: - | AT59: - | AU59: 2 | AV59: - | AW59: - | AX59: - | AY59: 2 | AZ59: 2 | BA59: 2 | BB59: 2 | BC59: - | BD59: - | BE59: 1 | BF59: - | BG59: - | BH59: - | BI59: 1 | BJ59: 1 | BK59: 1 | BL59: 1 | BM59: - | BN59: - | BO59: Same
A60: Report | B60: Worthing College | C60: 130845 | D60: General Further Education/Tertiary College | E60: South East | F60: West Sussex | G60: Further Education | H60: FE College - requires improvement | I60: 430283 | J60: 2014-10-07 | K60: 2014-10-10 | L60: Published | M60: 2014-11-14 | N60: 409328 | O60: 2013-04-26 | P60: 3 | Q60: 3 | R60: - | S60: - | T60: - | U60: 3 | V60: 3 | W60: - | X60: - | Y60: - | Z60: - | AA60: 3 | AB60: - | AC60: - | AD60: - | AE60: 3 | AF60: 3 | AG60: - | AH60: - | AI60: - | AJ60: - | AK60: 3 | AL60: - | AM60: - | AN60: - | AO60: 3 | AP60: 3 | AQ60: - | AR60: - | AS60: - | AT60: - | AU60: 3 | AV60: - | AW60: - | AX60: - | AY60: 3 | AZ60: 3 | BA60: - | BB60: - | BC60: - | BD60: - | BE60: 2 | BF60: - | BG60: - | BH60: - | BI60: 2 | BJ60: 2 | BK60: - | BL60: - | BM60: - | BN60: - | BO60: Same
A61: Report | B61: Stafford College | C61: 130813 | D61: General Further Education/Tertiary College | E61: West Midlands | F61: Staffordshire | G61: Further Education | H61: FE College - requires improvement | I61: 430279 | J61: 2014-10-06 | K61: 2014-10-10 | L61: Published | M61: 2014-11-18 | N61: 410716 | O61: 2013-04-19 | P61: 3 | Q61: 3 | R61: - | S61: - | T61: - | U61: 3 | V61: 3 | W61: 3 | X61: - | Y61: - | Z61: - | AA61: 3 | AB61: - | AC61: - | AD61: - | AE61: 3 | AF61: 3 | AG61: 2 | AH61: - | AI61: - | AJ61: - | AK61: 3 | AL61: - | AM61: - | AN61: - | AO61: 3 | AP61: 3 | AQ61: 3 | AR61: - | AS61: - | AT61: - | AU61: 3 | AV61: - | AW61: - | AX61: - | AY61: 3 | AZ61: 3 | BA61: 3 | BB61: - | BC61: - | BD61: - | BE61: 3 | BF61: - | BG61: - | BH61: - | BI61: 3 | BJ61: 3 | BK61: 3 | BL61: - | BM61: - | BN61: - | BO61: Same
A62: Report | B62: Waltham Forest College | C62: 130456 | D62: General Further Education/Tertiary College | E62: London | F62: Waltham Forest | G62: Further Education | H62: FE College - requires improvement | I62: 430281 | J62: 2014-10-13 | K62: 2014-10-17 | L62: Published | M62: 2014-11-21 | N62: 410622 | O62: 2013-05-17 | P62: 3 | Q62: 3 | R62: - | S62: - | T62: - | U62: 3 | V62: 3 | W62: - | X62: - | Y62: - | Z62: - | AA62: 3 | AB62: - | AC62: - | AD62: - | AE62: 3 | AF62: 2 | AG62: - | AH62: - | AI62: - | AJ62: - | AK62: 3 | AL62: - | AM62: - | AN62: - | AO62: 3 | AP62: 3 | AQ62: - | AR62: - | AS62: - | AT62: - | AU62: 3 | AV62: - | AW62: - | AX62: - | AY62: 3 | AZ62: 3 | BA62: - | BB62: - | BC62: - | BD62: - | BE62: 2 | BF62: - | BG62: - | BH62: - | BI62: 2 | BJ62: 2 | BK62: - | BL62: - | BM62: - | BN62: - | BO62: Same
A63: Report | B63: North Shropshire College | C63: 130797 | D63: General Further Education/Tertiary College | E63: West Midlands | F63: Shropshire | G63: Further Education | H63: FE College - requires improvement | I63: 430280 | J63: 2014-10-14 | K63: 2014-10-17 | L63: Published | M63: 2014-11-21 | N63: 410621 | O63: 2013-05-03 | P63: 3 | Q63: 3 | R63: - | S63: - | T63: - | U63: 3 | V63: 3 | W63: 3 | X63: - | Y63: - | Z63: - | AA63: 3 | AB63: - | AC63: - | AD63: - | AE63: 3 | AF63: 3 | AG63: 3 | AH63: - | AI63: - | AJ63: - | AK63: 3 | AL63: - | AM63: - | AN63: - | AO63: 3 | AP63: 3 | AQ63: 3 | AR63: - | AS63: - | AT63: - | AU63: 3 | AV63: - | AW63: - | AX63: - | AY63: 3 | AZ63: 3 | BA63: 3 | BB63: - | BC63: - | BD63: - | BE63: 3 | BF63: - | BG63: - | BH63: - | BI63: 3 | BJ63: 3 | BK63: 3 | BL63: - | BM63: - | BN63: - | BO63: Same
A64: Report | B64: Central Sussex College | C64: 129383 | D64: General Further Education/Tertiary College | E64: South East | F64: West Sussex | G64: Further Education | H64: FE College - requires improvement | I64: 430269 | J64: 2014-10-20 | K64: 2014-10-24 | L64: Published | M64: 2014-11-28 | N64: 409298 | O64: 2013-04-26 | P64: 3 | Q64: 3 | R64: - | S64: - | T64: - | U64: 3 | V64: 3 | W64: 3 | X64: - | Y64: - | Z64: - | AA64: 3 | AB64: - | AC64: - | AD64: - | AE64: 3 | AF64: 3 | AG64: 4 | AH64: - | AI64: - | AJ64: - | AK64: 3 | AL64: - | AM64: - | AN64: - | AO64: 3 | AP64: 3 | AQ64: 3 | AR64: - | AS64: - | AT64: - | AU64: 3 | AV64: - | AW64: - | AX64: - | AY64: 3 | AZ64: 3 | BA64: 3 | BB64: - | BC64: - | BD64: - | BE64: 2 | BF64: - | BG64: - | BH64: - | BI64: 2 | BJ64: 2 | BK64: 2 | BL64: - | BM64: - | BN64: - | BO64: Same
A65: Report | B65: Epping Forest College | C65: 130677 | D65: General Further Education/Tertiary College | E65: East of England | F65: Essex | G65: Further Education | H65: FE College - requires improvement | I65: 430271 | J65: 2014-10-20 | K65: 2014-10-24 | L65: Published | M65: 2014-11-28 | N65: 410611 | O65: 2013-05-17 | P65: 3 | Q65: 3 | R65: - | S65: - | T65: - | U65: 3 | V65: 3 | W65: - | X65: - | Y65: - | Z65: - | AA65: 3 | AB65: - | AC65: - | AD65: - | AE65: 3 | AF65: 3 | AG65: - | AH65: - | AI65: - | AJ65: - | AK65: 3 | AL65: - | AM65: - | AN65: - | AO65: 3 | AP65: 3 | AQ65: - | AR65: - | AS65: - | AT65: - | AU65: 2 | AV65: - | AW65: - | AX65: - | AY65: 2 | AZ65: 2 | BA65: - | BB65: - | BC65: - | BD65: - | BE65: 2 | BF65: - | BG65: - | BH65: - | BI65: 2 | BJ65: 2 | BK65: - | BL65: - | BM65: - | BN65: - | BO65: Same
A66: Report | B66: Warrington Collegiate | C66: 130617 | D66: General Further Education/Tertiary College | E66: North West | F66: Warrington | G66: Further Education | H66: FE College - full inspection | I66: 447146 | J66: 2014-10-20 | K66: 2014-10-24 | L66: Published | M66: 2014-11-28 | N66: 354448 | O66: 2010-10-22 | P66: 2 | Q66: 3 | R66: - | S66: - | T66: - | U66: 3 | V66: 3 | W66: 3 | X66: - | Y66: - | Z66: - | AA66: 3 | AB66: - | AC66: - | AD66: - | AE66: 3 | AF66: 3 | AG66: 3 | AH66: - | AI66: - | AJ66: - | AK66: 3 | AL66: - | AM66: - | AN66: - | AO66: 3 | AP66: 3 | AQ66: 3 | AR66: - | AS66: - | AT66: - | AU66: 3 | AV66: - | AW66: - | AX66: - | AY66: 3 | AZ66: 3 | BA66: 3 | BB66: - | BC66: - | BD66: - | BE66: 2 | BF66: - | BG66: - | BH66: - | BI66: 2 | BJ66: 2 | BK66: 2 | BL66: - | BM66: - | BN66: - | BO66: Declined
A67: Report | B67: City of Wolverhampton College | C67: 130484 | D67: General Further Education/Tertiary College | E67: West Midlands | F67: Wolverhampton | G67: Further Education | H67: FE College - requires improvement | I67: 430270 | J67: 2014-10-20 | K67: 2014-10-24 | L67: Published | M67: 2014-11-28 | N67: 397446 | O67: 2013-05-03 | P67: 3 | Q67: 2 | R67: - | S67: - | T67: - | U67: 2 | V67: 2 | W67: 2 | X67: - | Y67: - | Z67: - | AA67: 3 | AB67: - | AC67: - | AD67: - | AE67: 3 | AF67: 3 | AG67: 2 | AH67: - | AI67: - | AJ67: - | AK67: 2 | AL67: - | AM67: - | AN67: - | AO67: 2 | AP67: 2 | AQ67: 2 | AR67: - | AS67: - | AT67: - | AU67: 2 | AV67: - | AW67: - | AX67: - | AY67: 2 | AZ67: 2 | BA67: 2 | BB67: - | BC67: - | BD67: - | BE67: 2 | BF67: - | BG67: - | BH67: - | BI67: 2 | BJ67: 2 | BK67: 2 | BL67: - | BM67: - | BN67: - | BO67: Improved
A68: Report | B68: Amersham and Wycombe College | C68: 130608 | D68: General Further Education/Tertiary College | E68: South East | F68: Buckinghamshire | G68: Further Education | H68: FE College - requires improvement | I68: 430268 | J68: 2014-11-03 | K68: 2014-11-07 | L68: Published | M68: 2014-12-12 | N68: 409443 | O68: 2013-06-07 | P68: 3 | Q68: 3 | R68: 2 | S68: - | T68: - | U68: 3 | V68: 3 | W68: 3 | X68: - | Y68: - | Z68: - | AA68: 3 | AB68: 1 | AC68: - | AD68: - | AE68: 3 | AF68: 3 | AG68: 3 | AH68: - | AI68: - | AJ68: - | AK68: 3 | AL68: 2 | AM68: - | AN68: - | AO68: 3 | AP68: 3 | AQ68: 3 | AR68: - | AS68: - | AT68: - | AU68: 2 | AV68: 2 | AW68: - | AX68: - | AY68: 2 | AZ68: 2 | BA68: 2 | BB68: - | BC68: - | BD68: - | BE68: 2 | BF68: 2 | BG68: - | BH68: - | BI68: 2 | BJ68: 2 | BK68: 2 | BL68: - | BM68: - | BN68: - | BO68: Same
A69: Report | B69: Central College Nottingham | C69: 130783 | D69: General Further Education/Tertiary College | E69: East Midlands | F69: Nottinghamshire | G69: Further Education | H69: FE College - requires improvement | I69: 430278 | J69: 2014-11-10 | K69: 2014-11-14 | L69: Published | M69: 2014-12-18 | N69: 410618 | O69: 2013-05-24 | P69: 3 | Q69: 3 | R69: 3 | S69: - | T69: - | U69: 3 | V69: 3 | W69: 3 | X69: 3 | Y69: - | Z69: - | AA69: 3 | AB69: 3 | AC69: - | AD69: - | AE69: 3 | AF69: 3 | AG69: 3 | AH69: 3 | AI69: - | AJ69: - | AK69: 3 | AL69: 3 | AM69: - | AN69: - | AO69: 3 | AP69: 3 | AQ69: 3 | AR69: 3 | AS69: - | AT69: - | AU69: 2 | AV69: 2 | AW69: - | AX69: - | AY69: 2 | AZ69: 2 | BA69: 2 | BB69: 2 | BC69: - | BD69: - | BE69: 2 | BF69: 2 | BG69: - | BH69: - | BI69: 2 | BJ69: 2 | BK69: 2 | BL69: 2 | BM69: - | BN69: - | BO69: Same
A70: Report | B70: Greenwich Community College at Plumstead Centre | C70: 130405 | D70: General Further Education/Tertiary College | E70: London | F70: Greenwich | G70: Further Education | H70: FE College - requires improvement | I70: 430272 | J70: 2014-11-10 | K70: 2014-11-14 | L70: Published | M70: 2014-12-19 | N70: 410612 | O70: 2013-05-24 | P70: 3 | Q70: 4 | R70: - | S70: - | T70: - | U70: 4 | V70: 4 | W70: - | X70: - | Y70: - | Z70: - | AA70: 4 | AB70: - | AC70: - | AD70: - | AE70: 4 | AF70: 4 | AG70: - | AH70: - | AI70: - | AJ70: - | AK70: 4 | AL70: - | AM70: - | AN70: - | AO70: 4 | AP70: 4 | AQ70: - | AR70: - | AS70: - | AT70: - | AU70: 4 | AV70: - | AW70: - | AX70: - | AY70: 4 | AZ70: 4 | BA70: - | BB70: - | BC70: - | BD70: - | BE70: 2 | BF70: - | BG70: - | BH70: - | BI70: 2 | BJ70: 2 | BK70: - | BL70: - | BM70: - | BN70: - | BO70: Declined
A71: Report | B71: Barnfield College | C71: 130599 | D71: General Further Education/Tertiary College | E71: East of England | F71: Luton | G71: Further Education | H71: FE College - full inspection | I71: 447145 | J71: 2014-11-17 | K71: 2014-11-21 | L71: Published | M71: 2015-01-08 | N71: 388000 | O71: 2012-04-27 | P71: 3 | Q71: 4 | R71: - | S71: - | T71: - | U71: 4 | V71: 4 | W71: - | X71: - | Y71: - | Z71: - | AA71: 4 | AB71: - | AC71: - | AD71: - | AE71: 4 | AF71: 4 | AG71: - | AH71: - | AI71: - | AJ71: - | AK71: 4 | AL71: - | AM71: - | AN71: - | AO71: 4 | AP71: 4 | AQ71: - | AR71: - | AS71: - | AT71: - | AU71: 4 | AV71: - | AW71: - | AX71: - | AY71: 4 | AZ71: 4 | BA71: - | BB71: - | BC71: - | BD71: - | BE71: 3 | BF71: - | BG71: - | BH71: - | BI71: 3 | BJ71: 3 | BK71: - | BL71: - | BM71: - | BN71: - | BO71: Declined
A72: Report | B72: Huntingdonshire Regional College | C72: 130612 | D72: General Further Education/Tertiary College | E72: East of England | F72: Cambridgeshire | G72: Further Education | H72: FE College - requires improvement | I72: 430273 | J72: 2014-11-17 | K72: 2014-11-21 | L72: Published | M72: 2014-12-17 | N72: 409318 | O72: 2013-06-07 | P72: 3 | Q72: 3 | R72: - | S72: - | T72: - | U72: 3 | V72: 3 | W72: 3 | X72: - | Y72: - | Z72: - | AA72: 3 | AB72: - | AC72: - | AD72: - | AE72: 3 | AF72: 2 | AG72: 3 | AH72: - | AI72: - | AJ72: - | AK72: 3 | AL72: - | AM72: - | AN72: - | AO72: 3 | AP72: 3 | AQ72: 3 | AR72: - | AS72: - | AT72: - | AU72: 3 | AV72: - | AW72: - | AX72: - | AY72: 3 | AZ72: 3 | BA72: 3 | BB72: - | BC72: - | BD72: - | BE72: 2 | BF72: - | BG72: - | BH72: - | BI72: 2 | BJ72: 2 | BK72: 2 | BL72: - | BM72: - | BN72: - | BO72: Same
A73: Report | B73: South Gloucestershire and Stroud College | C73: 139238 | D73: General Further Education/Tertiary College | E73: South West | F73: South Gloucestershire | G73: Further Education | H73: FE College - full inspection | I73: 452493 | J73: 2014-11-17 | K73: 2014-11-21 | L73: Published | M73: 2014-12-23 | N73: NULL | O73: NULL | P73: NULL | Q73: 2 | R73: 2 | S73: - | T73: - | U73: 2 | V73: 2 | W73: 2 | X73: 2 | Y73: - | Z73: 1 | AA73: 2 | AB73: 2 | AC73: - | AD73: - | AE73: 2 | AF73: 2 | AG73: 2 | AH73: 2 | AI73: - | AJ73: 1 | AK73: 2 | AL73: 2 | AM73: - | AN73: - | AO73: 2 | AP73: 2 | AQ73: 2 | AR73: 2 | AS73: - | AT73: 1 | AU73: 1 | AV73: 1 | AW73: - | AX73: - | AY73: 1 | AZ73: 1 | BA73: 1 | BB73: 1 | BC73: - | BD73: 1 | BE73: 2 | BF73: 2 | BG73: - | BH73: - | BI73: 2 | BJ73: 2 | BK73: 2 | BL73: 2 | BM73: - | BN73: 2 | BO73: No previous inspection
A74: Report | B74: South Leicestershire College | C74: 130750 | D74: General Further Education/Tertiary College | E74: East Midlands | F74: Leicestershire | G74: Further Education | H74: FE College - requires improvement | I74: 430277 | J74: 2014-11-24 | K74: 2014-11-28 | L74: Published | M74: 2015-01-07 | N74: 410617 | O74: 2013-06-14 | P74: 3 | Q74: 2 | R74: - | S74: - | T74: - | U74: 2 | V74: 2 | W74: 2 | X74: - | Y74: - | Z74: - | AA74: 2 | AB74: - | AC74: - | AD74: - | AE74: 2 | AF74: 2 | AG74: 2 | AH74: - | AI74: - | AJ74: - | AK74: 2 | AL74: - | AM74: - | AN74: - | AO74: 2 | AP74: 2 | AQ74: 2 | AR74: - | AS74: - | AT74: - | AU74: 2 | AV74: - | AW74: - | AX74: - | AY74: 2 | AZ74: 2 | BA74: 2 | BB74: - | BC74: - | BD74: - | BE74: 2 | BF74: - | BG74: - | BH74: - | BI74: 2 | BJ74: 2 | BK74: 2 | BL74: - | BM74: - | BN74: - | BO74: Improved
A75: Report | B75: Lowestoft College | C75: 130819 | D75: General Further Education/Tertiary College | E75: East of England | F75: Suffolk | G75: Further Education | H75: FE College - requires improvement | I75: 430274 | J75: 2014-12-02 | K75: 2014-12-05 | L75: Published | M75: 2015-01-14 | N75: 409321 | O75: 2013-06-14 | P75: 3 | Q75: 3 | R75: - | S75: - | T75: - | U75: 3 | V75: 3 | W75: 2 | X75: - | Y75: - | Z75: - | AA75: 3 | AB75: - | AC75: - | AD75: - | AE75: 3 | AF75: 3 | AG75: 2 | AH75: - | AI75: - | AJ75: - | AK75: 3 | AL75: - | AM75: - | AN75: - | AO75: 3 | AP75: 3 | AQ75: 2 | AR75: - | AS75: - | AT75: - | AU75: 3 | AV75: - | AW75: - | AX75: - | AY75: 3 | AZ75: 3 | BA75: 2 | BB75: - | BC75: - | BD75: - | BE75: 2 | BF75: - | BG75: - | BH75: - | BI75: 2 | BJ75: 2 | BK75: 2 | BL75: - | BM75: - | BN75: - | BO75: Same
A76: Report | B76: New College Swindon | C76: 130851 | D76: General Further Education/Tertiary College | E76: South West | F76: Swindon | G76: Further Education | H76: FE College - full inspection | I76: 446541 | J76: 2014-12-01 | K76: 2014-12-05 | L76: Published | M76: 2015-01-14 | N76: 332873 | O76: 2009-01-23 | P76: 2 | Q76: 2 | R76: - | S76: - | T76: - | U76: 2 | V76: 2 | W76: 1 | X76: - | Y76: - | Z76: - | AA76: 2 | AB76: - | AC76: - | AD76: - | AE76: 2 | AF76: 2 | AG76: 1 | AH76: - | AI76: - | AJ76: - | AK76: 2 | AL76: - | AM76: - | AN76: - | AO76: 2 | AP76: 2 | AQ76: 1 | AR76: - | AS76: - | AT76: - | AU76: 2 | AV76: - | AW76: - | AX76: - | AY76: 2 | AZ76: 2 | BA76: 1 | BB76: - | BC76: - | BD76: - | BE76: 2 | BF76: - | BG76: - | BH76: - | BI76: 2 | BJ76: 2 | BK76: 2 | BL76: - | BM76: - | BN76: - | BO76: Same
A77: Report | B77: Lambeth College | C77: 130413 | D77: General Further Education/Tertiary College | E77: London | F77: Lambeth | G77: Further Education | H77: FE College - requires improvement | I77: 429287 | J77: 2014-12-08 | K77: 2014-12-12 | L77: Published | M77: 2015-01-23 | N77: 397442 | O77: 2013-03-22 | P77: 3 | Q77: 3 | R77: - | S77: - | T77: - | U77: 3 | V77: 3 | W77: - | X77: - | Y77: - | Z77: - | AA77: 4 | AB77: - | AC77: - | AD77: - | AE77: 4 | AF77: 4 | AG77: - | AH77: - | AI77: - | AJ77: - | AK77: 3 | AL77: - | AM77: - | AN77: - | AO77: 3 | AP77: 3 | AQ77: - | AR77: - | AS77: - | AT77: - | AU77: 3 | AV77: - | AW77: - | AX77: - | AY77: 3 | AZ77: 3 | BA77: - | BB77: - | BC77: - | BD77: - | BE77: 2 | BF77: - | BG77: - | BH77: - | BI77: 2 | BJ77: 2 | BK77: - | BL77: - | BM77: - | BN77: - | BO77: Same
A78: Report | B78: Stockport College | C78: 130512 | D78: General Further Education/Tertiary College | E78: North West | F78: Stockport | G78: Further Education | H78: FE College - reinspection | I78: 433764 | J78: 2014-12-08 | K78: 2014-12-12 | L78: Published | M78: 2015-01-15 | N78: 427743 | O78: 2013-10-04 | P78: 4 | Q78: 3 | R78: 3 | S78: - | T78: - | U78: 3 | V78: 3 | W78: 3 | X78: - | Y78: - | Z78: 3 | AA78: 3 | AB78: 3 | AC78: - | AD78: - | AE78: 3 | AF78: 3 | AG78: 3 | AH78: - | AI78: - | AJ78: 3 | AK78: 3 | AL78: 3 | AM78: - | AN78: - | AO78: 3 | AP78: 3 | AQ78: 3 | AR78: - | AS78: - | AT78: 3 | AU78: 3 | AV78: 3 | AW78: - | AX78: - | AY78: 3 | AZ78: 3 | BA78: 3 | BB78: - | BC78: - | BD78: 3 | BE78: 2 | BF78: 2 | BG78: - | BH78: - | BI78: 2 | BJ78: 2 | BK78: 2 | BL78: - | BM78: - | BN78: 2 | BO78: Improved
A79: Report | B79: East Surrey College | C79: 130824 | D79: General Further Education/Tertiary College | E79: South East | F79: Surrey | G79: Further Education | H79: FE College - full inspection | I79: 446540 | J79: 2014-12-09 | K79: 2014-12-12 | L79: Published | M79: 2015-01-21 | N79: 329158 | O79: 2009-01-16 | P79: 2 | Q79: 2 | R79: 1 | S79: - | T79: 2 | U79: 2 | V79: 2 | W79: 3 | X79: - | Y79: - | Z79: - | AA79: 2 | AB79: 1 | AC79: - | AD79: 2 | AE79: 2 | AF79: 2 | AG79: 3 | AH79: - | AI79: - | AJ79: - | AK79: 2 | AL79: 2 | AM79: - | AN79: 2 | AO79: 2 | AP79: 2 | AQ79: 3 | AR79: - | AS79: - | AT79: - | AU79: 2 | AV79: 1 | AW79: - | AX79: 2 | AY79: 2 | AZ79: 2 | BA79: 2 | BB79: - | BC79: - | BD79: - | BE79: 2 | BF79: 2 | BG79: - | BH79: 2 | BI79: 2 | BJ79: 2 | BK79: 2 | BL79: - | BM79: - | BN79: - | BO79: Same
A80: Report | B80: Weymouth College | C80: 130653 | D80: General Further Education/Tertiary College | E80: South West | F80: Dorset | G80: Further Education | H80: FE College - requires improvement | I80: 430282 | J80: 2015-01-13 | K80: 2015-01-16 | L80: Published | M80: 2015-02-20 | N80: 409327 | O80: 2013-06-07 | P80: 3 | Q80: 4 | R80: 4 | S80: - | T80: - | U80: 4 | V80: 4 | W80: 4 | X80: - | Y80: - | Z80: 4 | AA80: 2 | AB80: 2 | AC80: - | AD80: - | AE80: 2 | AF80: 2 | AG80: 2 | AH80: - | AI80: - | AJ80: 2 | AK80: 2 | AL80: 2 | AM80: - | AN80: - | AO80: 2 | AP80: 2 | AQ80: 2 | AR80: - | AS80: - | AT80: 2 | AU80: 4 | AV80: 4 | AW80: - | AX80: - | AY80: 4 | AZ80: 4 | BA80: 4 | BB80: - | BC80: - | BD80: 4 | BE80: 2 | BF80: 2 | BG80: - | BH80: - | BI80: 2 | BJ80: 2 | BK80: 2 | BL80: - | BM80: - | BN80: 2 | BO80: Declined
A81: Report | B81: Trafford College | C81: 130519 | D81: General Further Education/Tertiary College | E81: North West | F81: Trafford | G81: Further Education | H81: FE College - full inspection | I81: 452485 | J81: 2015-01-19 | K81: 2015-01-23 | L81: Published | M81: 2015-03-02 | N81: 332998 | O81: 2009-05-01 | P81: 1 | Q81: 2 | R81: - | S81: - | T81: - | U81: 2 | V81: 2 | W81: 2 | X81: - | Y81: - | Z81: - | AA81: 2 | AB81: - | AC81: - | AD81: - | AE81: 2 | AF81: 2 | AG81: 2 | AH81: - | AI81: - | AJ81: - | AK81: 2 | AL81: - | AM81: - | AN81: - | AO81: 2 | AP81: 2 | AQ81: 2 | AR81: - | AS81: - | AT81: - | AU81: 2 | AV81: - | AW81: - | AX81: - | AY81: 2 | AZ81: 2 | BA81: 2 | BB81: - | BC81: - | BD81: - | BE81: 2 | BF81: - | BG81: - | BH81: - | BI81: 2 | BJ81: 2 | BK81: 2 | BL81: - | BM81: - | BN81: - | BO81: Declined
A82: Report | B82: Newbury College | C82: 130602 | D82: General Further Education/Tertiary College | E82: South East | F82: West Berkshire | G82: Further Education | H82: FE College - full inspection | I82: 452486 | J82: 2015-01-27 | K82: 2015-01-30 | L82: Published | M82: 2015-03-10 | N82: 342293 | O82: 2009-11-13 | P82: 2 | Q82: 2 | R82: - | S82: - | T82: - | U82: 2 | V82: 2 | W82: - | X82: - | Y82: - | Z82: - | AA82: 2 | AB82: - | AC82: - | AD82: - | AE82: 2 | AF82: 2 | AG82: - | AH82: - | AI82: - | AJ82: - | AK82: 2 | AL82: - | AM82: - | AN82: - | AO82: 2 | AP82: 2 | AQ82: - | AR82: - | AS82: - | AT82: - | AU82: 2 | AV82: - | AW82: - | AX82: - | AY82: 2 | AZ82: 2 | BA82: - | BB82: - | BC82: - | BD82: - | BE82: 2 | BF82: - | BG82: - | BH82: - | BI82: 2 | BJ82: 2 | BK82: - | BL82: - | BM82: - | BN82: - | BO82: Same
A83: Report | B83: Hereward College of Further Education | C83: 130474 | D83: General Further Education/Tertiary College | E83: West Midlands | F83: Coventry | G83: Further Education | H83: FE College - requires improvement | I83: 452778 | J83: 2015-01-27 | K83: 2015-01-30 | L83: Published | M83: 2015-03-06 | N83: 423397 | O83: 2013-09-19 | P83: 3 | Q83: 2 | R83: - | S83: - | T83: - | U83: 2 | V83: 2 | W83: 3 | X83: - | Y83: - | Z83: - | AA83: 3 | AB83: - | AC83: - | AD83: - | AE83: 3 | AF83: 3 | AG83: 3 | AH83: - | AI83: - | AJ83: - | AK83: 2 | AL83: - | AM83: - | AN83: - | AO83: 2 | AP83: 2 | AQ83: 3 | AR83: - | AS83: - | AT83: - | AU83: 2 | AV83: - | AW83: - | AX83: - | AY83: 2 | AZ83: 2 | BA83: 3 | BB83: - | BC83: - | BD83: - | BE83: 2 | BF83: - | BG83: - | BH83: - | BI83: 2 | BJ83: 2 | BK83: 2 | BL83: - | BM83: - | BN83: - | BO83: Improved
A84: Report | B84: Hugh Baird College | C84: 130490 | D84: General Further Education/Tertiary College | E84: North West | F84: Sefton | G84: Further Education | H84: FE College - full inspection | I84: 452484 | J84: 2015-02-02 | K84: 2015-02-06 | L84: Published | M84: 2015-03-09 | N84: 343958 | O84: 2010-02-12 | P84: 2 | Q84: 2 | R84: - | S84: 2 | T84: - | U84: 2 | V84: 2 | W84: 2 | X84: - | Y84: - | Z84: - | AA84: 2 | AB84: - | AC84: 2 | AD84: - | AE84: 2 | AF84: 2 | AG84: 2 | AH84: - | AI84: - | AJ84: - | AK84: 2 | AL84: - | AM84: 2 | AN84: - | AO84: 2 | AP84: 2 | AQ84: 2 | AR84: - | AS84: - | AT84: - | AU84: 2 | AV84: - | AW84: 2 | AX84: - | AY84: 2 | AZ84: 2 | BA84: 2 | BB84: - | BC84: - | BD84: - | BE84: 1 | BF84: - | BG84: 1 | BH84: - | BI84: 1 | BJ84: 1 | BK84: 1 | BL84: - | BM84: - | BN84: - | BO84: Same
A85: =IF(C85 <> "", HYPERLINK(CONCATENATE("http://reports.ofsted.gov.uk/inspection-reports/find-inspection-report/provider/ELS/",C85),"Report"),"") -> Report | B85: LeSoCo | C85: 130415 | D85: General Further Education/Tertiary College | E85: London | F85: Lewisham | G85: Further Education | H85: FE College - reinspection | I85: 440233 | J85: 2015-02-02 | K85: 2015-02-06 | L85: Published | M85: 2015-04-01 | N85: 420390 | O85: 2013-11-29 | P85: 4 | Q85: 4 | R85: - | S85: - | T85: - | U85: 4 | V85: 4 | W85: 3 | X85: - | Y85: - | Z85: - | AA85: 4 | AB85: - | AC85: - | AD85: - | AE85: 4 | AF85: 3 | AG85: 4 | AH85: - | AI85: - | AJ85: - | AK85: 4 | AL85: - | AM85: - | AN85: - | AO85: 4 | AP85: 4 | AQ85: 3 | AR85: - | AS85: - | AT85: - | AU85: 4 | AV85: - | AW85: - | AX85: - | AY85: 4 | AZ85: 4 | BA85: 3 | BB85: - | BC85: - | BD85: - | BE85: 2 | BF85: - | BG85: - | BH85: - | BI85: 2 | BJ85: 2 | BK85: 2 | BL85: - | BM85: - | BN85: - | BO85: =IF(P85="Null","No previous inspection",IF(Q85>P85,"Declined", IF(Q85=P85,"Same",IF(Q85<P85,"Improved")))) -> Same
A86: Report | B86: Darlington College | C86: 130656 | D86: General Further Education/Tertiary College | E86: North East, Yorkshire & Humber | F86: Darlington | G86: Further Education | H86: FE College - full inspection | I86: 452549 | J86: 2015-02-09 | K86: 2015-02-13 | L86: Published | M86: 2015-03-20 | N86: 331026 | O86: 2009-03-06 | P86: 1 | Q86: 4 | R86: - | S86: - | T86: - | U86: 4 | V86: 3 | W86: 4 | X86: - | Y86: - | Z86: - | AA86: 4 | AB86: - | AC86: - | AD86: - | AE86: 4 | AF86: 3 | AG86: 4 | AH86: - | AI86: - | AJ86: - | AK86: 4 | AL86: - | AM86: - | AN86: - | AO86: 4 | AP86: 3 | AQ86: 4 | AR86: - | AS86: - | AT86: - | AU86: 4 | AV86: - | AW86: - | AX86: - | AY86: 4 | AZ86: 3 | BA86: 4 | BB86: - | BC86: - | BD86: - | BE86: 2 | BF86: - | BG86: - | BH86: - | BI86: 2 | BJ86: 2 | BK86: 2 | BL86: - | BM86: - | BN86: - | BO86: Declined
A87: Report | B87: MidKent College | C87: 130726 | D87: General Further Education/Tertiary College | E87: South East | F87: Medway | G87: Further Education | H87: FE College - full inspection | I87: 452489 | J87: 2015-03-02 | K87: 2015-03-06 | L87: Published | M87: 2015-04-22 | N87: 330821 | O87: 2009-03-06 | P87: 2 | Q87: 3 | R87: - | S87: - | T87: - | U87: 3 | V87: 3 | W87: - | X87: - | Y87: - | Z87: - | AA87: 3 | AB87: - | AC87: - | AD87: - | AE87: 3 | AF87: 3 | AG87: - | AH87: - | AI87: - | AJ87: - | AK87: 3 | AL87: - | AM87: - | AN87: - | AO87: 3 | AP87: 3 | AQ87: - | AR87: - | AS87: - | AT87: - | AU87: 3 | AV87: - | AW87: - | AX87: - | AY87: 3 | AZ87: 3 | BA87: - | BB87: - | BC87: - | BD87: - | BE87: 2 | BF87: - | BG87: - | BH87: - | BI87: 2 | BJ87: 2 | BK87: - | BL87: - | BM87: - | BN87: - | BO87: Declined
A88: Report | B88: Tameside College | C88: 130516 | D88: General Further Education/Tertiary College | E88: North West | F88: Tameside | G88: Further Education | H88: FE College - full inspection | I88: 452546 | J88: 2015-03-02 | K88: 2015-03-06 | L88: Published | M88: 2015-04-10 | N88: 332997 | O88: 2009-06-11 | P88: 2 | Q88: 3 | R88: 3 | S88: - | T88: - | U88: 3 | V88: 3 | W88: 1 | X88: - | Y88: - | Z88: - | AA88: 3 | AB88: 3 | AC88: - | AD88: - | AE88: 3 | AF88: 3 | AG88: 1 | AH88: - | AI88: - | AJ88: - | AK88: 3 | AL88: 2 | AM88: - | AN88: - | AO88: 3 | AP88: 3 | AQ88: 1 | AR88: - | AS88: - | AT88: - | AU88: 3 | AV88: 3 | AW88: - | AX88: - | AY88: 3 | AZ88: 3 | BA88: 1 | BB88: - | BC88: - | BD88: - | BE88: 2 | BF88: 2 | BG88: - | BH88: - | BI88: 2 | BJ88: 2 | BK88: 2 | BL88: - | BM88: - | BN88: - | BO88: Declined
A89: Report | B89: Wigan and Leigh College | C89: 130521 | D89: General Further Education/Tertiary College | E89: North West | F89: Wigan | G89: Further Education | H89: FE College - full inspection | I89: 446536 | J89: 2015-03-09 | K89: 2015-03-13 | L89: Published | M89: 2015-04-17 | N89: 343829 | O89: 2010-03-05 | P89: 2 | Q89: 3 | R89: - | S89: - | T89: - | U89: 3 | V89: 3 | W89: 3 | X89: - | Y89: - | Z89: - | AA89: 3 | AB89: - | AC89: - | AD89: - | AE89: 3 | AF89: 3 | AG89: 3 | AH89: - | AI89: - | AJ89: - | AK89: 3 | AL89: - | AM89: - | AN89: - | AO89: 3 | AP89: 3 | AQ89: 3 | AR89: - | AS89: - | AT89: - | AU89: 3 | AV89: - | AW89: - | AX89: - | AY89: 3 | AZ89: 3 | BA89: 3 | BB89: - | BC89: - | BD89: - | BE89: 2 | BF89: - | BG89: - | BH89: - | BI89: 2 | BJ89: 2 | BK89: 2 | BL89: - | BM89: - | BN89: - | BO89: Declined
A90: Report | B90: Warwickshire College Group | C90: 130835 | D90: General Further Education/Tertiary College | E90: West Midlands | F90: Warwickshire | G90: Further Education | H90: FE College - full inspection | I90: 461394 | J90: 2015-03-09 | K90: 2015-03-13 | L90: Published | M90: 2015-04-02 | N90: 318900 | O90: 2008-01-25 | P90: 1 | Q90: 2 | R90: - | S90: - | T90: - | U90: 2 | V90: 2 | W90: 2 | X90: - | Y90: - | Z90: - | AA90: 3 | AB90: - | AC90: - | AD90: - | AE90: 3 | AF90: 3 | AG90: 2 | AH90: - | AI90: - | AJ90: - | AK90: 2 | AL90: - | AM90: - | AN90: - | AO90: 2 | AP90: 2 | AQ90: 2 | AR90: - | AS90: - | AT90: - | AU90: 2 | AV90: - | AW90: - | AX90: - | AY90: 2 | AZ90: 2 | BA90: 2 | BB90: - | BC90: - | BD90: - | BE90: 2 | BF90: - | BG90: - | BH90: - | BI90: 2 | BJ90: 2 | BK90: 2 | BL90: - | BM90: - | BN90: - | BO90: Declined
A91: Report | B91: Solihull College | C91: 130481 | D91: General Further Education/Tertiary College | E91: West Midlands | F91: Solihull | G91: Further Education | H91: FE College - full inspection | I91: 452547 | J91: 2015-03-09 | K91: 2015-03-13 | L91: Published | M91: 2015-04-21 | N91: 346614 | O91: 2010-05-14 | P91: 2 | Q91: 3 | R91: - | S91: - | T91: - | U91: 3 | V91: 3 | W91: 2 | X91: - | Y91: - | Z91: - | AA91: 3 | AB91: - | AC91: - | AD91: - | AE91: 3 | AF91: 3 | AG91: 3 | AH91: - | AI91: - | AJ91: - | AK91: 3 | AL91: - | AM91: - | AN91: - | AO91: 3 | AP91: 3 | AQ91: 2 | AR91: - | AS91: - | AT91: - | AU91: 3 | AV91: - | AW91: - | AX91: - | AY91: 3 | AZ91: 3 | BA91: 2 | BB91: - | BC91: - | BD91: - | BE91: 2 | BF91: - | BG91: - | BH91: - | BI91: 2 | BJ91: 2 | BK91: 2 | BL91: - | BM91: - | BN91: - | BO91: Declined
A92: Report | B92: Stratford-upon-Avon College | C92: 130837 | D92: General Further Education/Tertiary College | E92: West Midlands | F92: Warwickshire | G92: Further Education | H92: FE College - requires improvement | I92: 433769 | J92: 2015-03-17 | K92: 2015-03-20 | L92: Published | M92: 2015-04-09 | N92: 423367 | O92: 2013-10-04 | P92: 3 | Q92: 2 | R92: - | S92: - | T92: - | U92: 2 | V92: 2 | W92: - | X92: - | Y92: - | Z92: - | AA92: 3 | AB92: - | AC92: - | AD92: - | AE92: 3 | AF92: 2 | AG92: - | AH92: - | AI92: - | AJ92: - | AK92: 2 | AL92: - | AM92: - | AN92: - | AO92: 2 | AP92: 2 | AQ92: - | AR92: - | AS92: - | AT92: - | AU92: 2 | AV92: - | AW92: - | AX92: - | AY92: 2 | AZ92: 2 | BA92: - | BB92: - | BC92: - | BD92: - | BE92: 2 | BF92: - | BG92: - | BH92: - | BI92: 2 | BJ92: 2 | BK92: - | BL92: - | BM92: - | BN92: - | BO92: Improved
A93: =IF(C93 <> "", HYPERLINK(CONCATENATE("http://reports.ofsted.gov.uk/inspection-reports/find-inspection-report/provider/ELS/",C93),"Report"),"") -> Report | B93: Furness College | C93: 130633 | D93: General Further Education/Tertiary College | E93: North West | F93: Cumbria | G93: Further Education | H93: FE College - full inspection | I93: 452487 | J93: 2015-03-24 | K93: 2015-03-27 | L93: Published | M93: 2015-05-01 | N93: 362659 | O93: 2010-12-10 | P93: 2 | Q93: 2 | R93: - | S93: - | T93: - | U93: 2 | V93: 2 | W93: 2 | X93: - | Y93: - | Z93: - | AA93: 2 | AB93: - | AC93: - | AD93: - | AE93: 2 | AF93: 2 | AG93: 2 | AH93: - | AI93: - | AJ93: - | AK93: 2 | AL93: - | AM93: - | AN93: - | AO93: 2 | AP93: 2 | AQ93: 2 | AR93: - | AS93: - | AT93: - | AU93: 2 | AV93: - | AW93: - | AX93: - | AY93: 2 | AZ93: 2 | BA93: 2 | BB93: - | BC93: - | BD93: - | BE93: 2 | BF93: - | BG93: - | BH93: - | BI93: 2 | BJ93: 2 | BK93: 2 | BL93: - | BM93: - | BN93: - | BO93: =IF(P93="Null","No previous inspection",IF(Q93>P93,"Declined", IF(Q93=P93,"Same",IF(Q93<P93,"Improved")))) -> Same
A94: Report | B94: New College Stamford | C94: 130760 | D94: General Further Education/Tertiary College | E94: East Midlands | F94: Lincolnshire | G94: Further Education | H94: FE College - full inspection | I94: 452490 | J94: 2015-03-24 | K94: 2015-03-27 | L94: Published | M94: 2015-04-29 | N94: 365901 | O94: 2011-05-20 | P94: 2 | Q94: 3 | R94: - | S94: - | T94: - | U94: 3 | V94: 3 | W94: 3 | X94: - | Y94: - | Z94: - | AA94: 3 | AB94: - | AC94: - | AD94: - | AE94: 3 | AF94: 3 | AG94: 3 | AH94: - | AI94: - | AJ94: - | AK94: 3 | AL94: - | AM94: - | AN94: - | AO94: 3 | AP94: 3 | AQ94: 3 | AR94: - | AS94: - | AT94: - | AU94: 3 | AV94: - | AW94: - | AX94: - | AY94: 3 | AZ94: 3 | BA94: 3 | BB94: - | BC94: - | BD94: - | BE94: 2 | BF94: - | BG94: - | BH94: - | BI94: 2 | BJ94: 2 | BK94: 2 | BL94: - | BM94: - | BN94: - | BO94: Declined
A95: Report | B95: Northern School of Contemporary Dance | C95: 133840 | D95: Higher Education Institution | E95: North East, Yorkshire & Humber | F95: Leeds | G95: Higher Education Institutions | H95: FE in HE - full inspection | I95: 444690 | J95: 2014-11-11 | K95: 2014-11-14 | L95: Published | M95: 2014-12-17 | N95: NULL | O95: NULL | P95: NULL | Q95: 1 | R95: - | S95: - | T95: - | U95: 1 | V95: 1 | W95: - | X95: - | Y95: - | Z95: - | AA95: 1 | AB95: - | AC95: - | AD95: - | AE95: 1 | AF95: 1 | AG95: - | AH95: - | AI95: - | AJ95: - | AK95: 1 | AL95: - | AM95: - | AN95: - | AO95: 1 | AP95: 1 | AQ95: - | AR95: - | AS95: - | AT95: - | AU95: 1 | AV95: - | AW95: - | AX95: - | AY95: 1 | AZ95: 1 | BA95: - | BB95: - | BC95: - | BD95: - | BE95: 2 | BF95: - | BG95: - | BH95: - | BI95: 2 | BJ95: 2 | BK95: - | BL95: - | BM95: - | BN95: - | BO95: No previous inspection
A96: Report | B96: Kingston University | C96: 133825 | D96: Higher Education Institution | E96: London | F96: Kingston Upon Thames | G96: Higher Education Institutions | H96: FE in HE - full inspection | I96: 446542 | J96: 2015-01-20 | K96: 2015-01-23 | L96: Published | M96: 2015-03-02 | N96: NULL | O96: NULL | P96: NULL | Q96: 1 | R96: - | S96: - | T96: - | U96: 1 | V96: 1 | W96: - | X96: - | Y96: - | Z96: - | AA96: 1 | AB96: - | AC96: - | AD96: - | AE96: 1 | AF96: 1 | AG96: - | AH96: - | AI96: - | AJ96: - | AK96: 1 | AL96: - | AM96: - | AN96: - | AO96: 1 | AP96: 1 | AQ96: - | AR96: - | AS96: - | AT96: - | AU96: 1 | AV96: - | AW96: - | AX96: - | AY96: 1 | AZ96: 1 | BA96: - | BB96: - | BC96: - | BD96: - | BE96: 2 | BF96: - | BG96: - | BH96: - | BI96: 2 | BJ96: 2 | BK96: - | BL96: - | BM96: - | BN96: - | BO96: No previous inspection
A97: Report | B97: Unique Training North East Limited | C97: 56817 | D97: Independent Learning Provider | E97: North East, Yorkshire & Humber | F97: Durham | G97: Independent Learning Provider | H97: WBL - requires improvement | I97: 429793 | J97: 2014-09-09 | K97: 2014-09-12 | L97: Published | M97: 2014-10-23 | N97: 410696 | O97: 2013-07-12 | P97: 3 | Q97: 3 | R97: - | S97: - | T97: - | U97: - | V97: - | W97: 3 | X97: - | Y97: - | Z97: - | AA97: 2 | AB97: - | AC97: - | AD97: - | AE97: - | AF97: - | AG97: 2 | AH97: - | AI97: - | AJ97: - | AK97: 2 | AL97: - | AM97: - | AN97: - | AO97: - | AP97: - | AQ97: 2 | AR97: - | AS97: - | AT97: - | AU97: 3 | AV97: - | AW97: - | AX97: - | AY97: - | AZ97: - | BA97: 3 | BB97: - | BC97: - | BD97: - | BE97: 3 | BF97: - | BG97: - | BH97: - | BI97: - | BJ97: - | BK97: 3 | BL97: - | BM97: - | BN97: - | BO97: Same
A98: Report | B98: JBC Computer Training Limited | C98: 59153 | D98: Independent Learning Provider | E98: West Midlands | F98: Coventry | G98: Independent Learning Provider | H98: WBL - full (regional) | I98: 446618 | J98: 2014-09-17 | K98: 2014-09-19 | L98: Published | M98: 2014-10-23 | N98: NULL | O98: NULL | P98: NULL | Q98: 2 | R98: - | S98: - | T98: - | U98: - | V98: - | W98: 2 | X98: - | Y98: - | Z98: - | AA98: 2 | AB98: - | AC98: - | AD98: - | AE98: - | AF98: - | AG98: 2 | AH98: - | AI98: - | AJ98: - | AK98: 2 | AL98: - | AM98: - | AN98: - | AO98: - | AP98: - | AQ98: 2 | AR98: - | AS98: - | AT98: - | AU98: 2 | AV98: - | AW98: - | AX98: - | AY98: - | AZ98: - | BA98: 2 | BB98: - | BC98: - | BD98: - | BE98: 2 | BF98: - | BG98: - | BH98: - | BI98: - | BJ98: - | BK98: 2 | BL98: - | BM98: - | BN98: - | BO98: No previous inspection
A99: Report | B99: The Learning Partnership for Cornwall and The Isles of Scilly Limited | C99: 59113 | D99: Independent Learning Provider | E99: South West | F99: Cornwall | G99: Independent Learning Provider | H99: WBL - full (regional) | I99: 434062 | J99: 2014-09-16 | K99: 2014-09-19 | L99: Published | M99: 2014-10-30 | N99: NULL | O99: NULL | P99: NULL | Q99: 3 | R99: - | S99: - | T99: - | U99: - | V99: 3 | W99: 3 | X99: - | Y99: - | Z99: 3 | AA99: 3 | AB99: - | AC99: - | AD99: - | AE99: - | AF99: 3 | AG99: 3 | AH99: - | AI99: - | AJ99: 3 | AK99: 3 | AL99: - | AM99: - | AN99: - | AO99: - | AP99: 3 | AQ99: 3 | AR99: - | AS99: - | AT99: 3 | AU99: 3 | AV99: - | AW99: - | AX99: - | AY99: - | AZ99: 3 | BA99: 3 | BB99: - | BC99: - | BD99: 3 | BE99: 3 | BF99: - | BG99: - | BH99: - | BI99: - | BJ99: 3 | BK99: 3 | BL99: - | BM99: - | BN99: 3 | BO99: No previous inspection
A100: Report | B100: Skills for Security Limited | C100: 50192 | D100: Independent Learning Provider | E100: West Midlands | F100: Worcestershire | G100: Independent Learning Provider | H100: WBL - requires improvement | I100: 430258 | J100: 2014-09-22 | K100: 2014-09-26 | L100: Published | M100: 2014-10-28 | N100: 410652 | O100: 2013-06-28 | P100: 3 | Q100: 3 | R100: - | S100: - | T100: - | U100: - | V100: - | W100: 3 | X100: - | Y100: - | Z100: - | AA100: 3 | AB100: - | AC100: - | AD100: - | AE100: - | AF100: - | AG100: 3 | AH100: - | AI100: - | AJ100: - | AK100: 3 | AL100: - | AM100: - | AN100: - | AO100: - | AP100: - | AQ100: 3 | AR100: - | AS100: - | AT100: - | AU100: 3 | AV100: - | AW100: - | AX100: - | AY100: - | AZ100: - | BA100: 3 | BB100: - | BC100: - | BD100: - | BE100: 2 | BF100: - | BG100: - | BH100: - | BI100: - | BJ100: - | BK100: 2 | BL100: - | BM100: - | BN100: - | BO100: Same
A101: Report | B101: Trans-plant Training Limited | C101: 59164 | D101: Independent Learning Provider | E101: South West | F101: Devon | G101: Independent Learning Provider | H101: WBL - full (regional) | I101: 446619 | J101: 2014-09-30 | K101: 2014-10-03 | L101: Published | M101: 2014-11-07 | N101: NULL | O101: NULL | P101: NULL | Q101: 3 | R101: - | S101: - | T101: - | U101: - | V101: - | W101: 3 | X101: - | Y101: - | Z101: - | AA101: 3 | AB101: - | AC101: - | AD101: - | AE101: - | AF101: - | AG101: 3 | AH101: - | AI101: - | AJ101: - | AK101: 3 | AL101: - | AM101: - | AN101: - | AO101: - | AP101: - | AQ101: 3 | AR101: - | AS101: - | AT101: - | AU101: 3 | AV101: - | AW101: - | AX101: - | AY101: - | AZ101: - | BA101: 3 | BB101: - | BC101: - | BD101: - | BE101: 2 | BF101: - | BG101: - | BH101: - | BI101: - | BJ101: - | BK101: 2 | BL101: - | BM101: - | BN101: - | BO101: No previous inspection
A102: Report | B102: TQ Workforce Development Limited | C102: 58168 | D102: Independent Learning Provider | E102: East Midlands | F102: Northamptonshire | G102: Independent Learning Provider | H102: WBL - requires improvement | I102: 430261 | J102: 2014-09-29 | K102: 2014-10-03 | L102: Published | M102: 2014-11-07 | N102: 408546 | O102: 2013-06-07 | P102: 3 | Q102: 2 | R102: - | S102: - | T102: - | U102: - | V102: 2 | W102: 2 | X102: - | Y102: - | Z102: 2 | AA102: 2 | AB102: - | AC102: - | AD102: - | AE102: - | AF102: 2 | AG102: 2 | AH102: - | AI102: - | AJ102: 2 | AK102: 2 | AL102: - | AM102: - | AN102: - | AO102: - | AP102: 2 | AQ102: 2 | AR102: - | AS102: - | AT102: 2 | AU102: 2 | AV102: - | AW102: - | AX102: - | AY102: - | AZ102: 2 | BA102: 2 | BB102: - | BC102: - | BD102: 2 | BE102: 2 | BF102: - | BG102: - | BH102: - | BI102: - | BJ102: 2 | BK102: 2 | BL102: - | BM102: - | BN102: 2 | BO102: Improved
A103: Report | B103: Acacia Training Limited | C103: 50304 | D103: Independent Learning Provider | E103: West Midlands | F103: Stoke-On-Trent | G103: Independent Learning Provider | H103: WBL - requires improvement | I103: 430249 | J103: 2014-09-29 | K103: 2014-10-03 | L103: Published | M103: 2014-11-04 | N103: 410640 | O103: 2013-04-19 | P103: 3 | Q103: 3 | R103: - | S103: - | T103: - | U103: - | V103: - | W103: 3 | X103: - | Y103: - | Z103: - | AA103: 3 | AB103: - | AC103: - | AD103: - | AE103: - | AF103: - | AG103: 3 | AH103: - | AI103: - | AJ103: - | AK103: 3 | AL103: - | AM103: - | AN103: - | AO103: - | AP103: - | AQ103: 3 | AR103: - | AS103: - | AT103: - | AU103: 3 | AV103: - | AW103: - | AX103: - | AY103: - | AZ103: - | BA103: 3 | BB103: - | BC103: - | BD103: - | BE103: 2 | BF103: - | BG103: - | BH103: - | BI103: - | BJ103: - | BK103: 2 | BL103: - | BM103: - | BN103: - | BO103: Same
A104: Report | B104: Lawn Tennis Association Limited | C104: 58182 | D104: Independent Learning Provider | E104: London | F104: Wandsworth | G104: Independent Learning Provider | H104: Work Based Learning - full (national) | I104: 446609 | J104: 2014-10-06 | K104: 2014-10-10 | L104: Published | M104: 2014-11-17 | N104: 321537 | O104: 2008-11-13 | P104: 2 | Q104: 1 | R104: - | S104: - | T104: - | U104: - | V104: - | W104: 1 | X104: - | Y104: - | Z104: - | AA104: 1 | AB104: - | AC104: - | AD104: - | AE104: - | AF104: - | AG104: 1 | AH104: - | AI104: - | AJ104: - | AK104: 1 | AL104: - | AM104: - | AN104: - | AO104: - | AP104: - | AQ104: 1 | AR104: - | AS104: - | AT104: - | AU104: 1 | AV104: - | AW104: - | AX104: - | AY104: - | AZ104: - | BA104: 1 | BB104: - | BC104: - | BD104: - | BE104: 2 | BF104: - | BG104: - | BH104: - | BI104: - | BJ104: - | BK104: 2 | BL104: - | BM104: - | BN104: - | BO104: Improved
A105: Report | B105: Matrix Training and Development Limited | C105: 53268 | D105: Independent Learning Provider | E105: West Midlands | F105: Telford and Wrekin | G105: Independent Learning Provider | H105: WBL - full (regional) | I105: 446602 | J105: 2014-10-14 | K105: 2014-10-16 | L105: Published | M105: 2014-11-12 | N105: 318303 | O105: 2008-01-18 | P105: 2 | Q105: 2 | R105: - | S105: - | T105: - | U105: - | V105: - | W105: 2 | X105: - | Y105: - | Z105: - | AA105: 2 | AB105: - | AC105: - | AD105: - | AE105: - | AF105: - | AG105: 2 | AH105: - | AI105: - | AJ105: - | AK105: 2 | AL105: - | AM105: - | AN105: - | AO105: - | AP105: - | AQ105: 2 | AR105: - | AS105: - | AT105: - | AU105: 2 | AV105: - | AW105: - | AX105: - | AY105: - | AZ105: - | BA105: 2 | BB105: - | BC105: - | BD105: - | BE105: 2 | BF105: - | BG105: - | BH105: - | BI105: - | BJ105: - | BK105: 2 | BL105: - | BM105: - | BN105: - | BO105: Same
A106: Report | B106: Woodspeen Training Limited | C106: 50262 | D106: Independent Learning Provider | E106: North East, Yorkshire & Humber | F106: Kirklees | G106: Independent Learning Provider | H106: WBL - requires improvement | I106: 446598 | J106: 2014-10-13 | K106: 2014-10-17 | L106: Published | M106: 2014-11-19 | N106: 410699 | O106: 2013-05-24 | P106: 3 | Q106: 2 | R106: - | S106: - | T106: - | U106: - | V106: - | W106: 2 | X106: - | Y106: - | Z106: 2 | AA106: 2 | AB106: - | AC106: - | AD106: - | AE106: - | AF106: - | AG106: 2 | AH106: - | AI106: - | AJ106: 2 | AK106: 2 | AL106: - | AM106: - | AN106: - | AO106: - | AP106: - | AQ106: 2 | AR106: - | AS106: - | AT106: 2 | AU106: 2 | AV106: - | AW106: - | AX106: - | AY106: - | AZ106: - | BA106: 2 | BB106: - | BC106: - | BD106: 2 | BE106: 2 | BF106: - | BG106: - | BH106: - | BI106: - | BJ106: - | BK106: 2 | BL106: - | BM106: - | BN106: 2 | BO106: Improved
A107: Report | B107: Skills Team Ltd | C107: 58340 | D107: Independent Learning Provider | E107: London | F107: Ealing | G107: Independent Learning Provider | H107: WBL - requires improvement | I107: 430259 | J107: 2014-10-13 | K107: 2014-10-17 | L107: Published | M107: 2014-11-27 | N107: 410653 | O107: 2013-06-21 | P107: 3 | Q107: 3 | R107: - | S107: - | T107: - | U107: - | V107: - | W107: 3 | X107: - | Y107: - | Z107: - | AA107: 3 | AB107: - | AC107: - | AD107: - | AE107: - | AF107: - | AG107: 3 | AH107: - | AI107: - | AJ107: - | AK107: 3 | AL107: - | AM107: - | AN107: - | AO107: - | AP107: - | AQ107: 3 | AR107: - | AS107: - | AT107: - | AU107: 3 | AV107: - | AW107: - | AX107: - | AY107: - | AZ107: - | BA107: 3 | BB107: - | BC107: - | BD107: - | BE107: 3 | BF107: - | BG107: - | BH107: - | BI107: - | BJ107: - | BK107: 3 | BL107: - | BM107: - | BN107: - | BO107: Same
A108: Report | B108: CCP GRADUATE SCHOOL LTD | C108: 51090 | D108: Independent Learning Provider | E108: London | F108: Brent | G108: Independent Learning Provider | H108: WBL - requires improvement | I108: 430251 | J108: 2014-10-20 | K108: 2014-10-23 | L108: Published | M108: 2014-12-15 | N108: 422425 | O108: 2013-06-21 | P108: 3 | Q108: 3 | R108: - | S108: - | T108: - | U108: 3 | V108: - | W108: - | X108: - | Y108: - | Z108: - | AA108: 3 | AB108: - | AC108: - | AD108: - | AE108: 3 | AF108: - | AG108: - | AH108: - | AI108: - | AJ108: - | AK108: 2 | AL108: - | AM108: - | AN108: - | AO108: 2 | AP108: - | AQ108: - | AR108: - | AS108: - | AT108: - | AU108: 3 | AV108: - | AW108: - | AX108: - | AY108: 3 | AZ108: - | BA108: - | BB108: - | BC108: - | BD108: - | BE108: 2 | BF108: - | BG108: - | BH108: - | BI108: 1 | BJ108: - | BK108: - | BL108: - | BM108: - | BN108: - | BO108: Same
A109: Report | B109: Aspire Achieve Advance Limited | C109: 59185 | D109: Independent Learning Provider | E109: East Midlands | F109: Derbyshire | G109: Independent Learning Provider | H109: WBL - full (regional) | I109: 451933 | J109: 2014-10-20 | K109: 2014-10-24 | L109: Published | M109: 2014-11-19 | N109: NULL | O109: NULL | P109: NULL | Q109: 1 | R109: - | S109: - | T109: - | U109: - | V109: - | W109: 1 | X109: - | Y109: - | Z109: - | AA109: 1 | AB109: - | AC109: - | AD109: - | AE109: - | AF109: - | AG109: 1 | AH109: - | AI109: - | AJ109: - | AK109: 1 | AL109: - | AM109: - | AN109: - | AO109: - | AP109: - | AQ109: 1 | AR109: - | AS109: - | AT109: - | AU109: 1 | AV109: - | AW109: - | AX109: - | AY109: - | AZ109: - | BA109: 1 | BB109: - | BC109: - | BD109: - | BE109: 2 | BF109: - | BG109: - | BH109: - | BI109: - | BJ109: - | BK109: 2 | BL109: - | BM109: - | BN109: - | BO109: No previous inspection
A110: Report | B110: Succead Limited | C110: 59159 | D110: Independent Learning Provider | E110: West Midlands | F110: Birmingham | G110: Independent Learning Provider | H110: Work Based Learning - full (national) | I110: 452693 | J110: 2014-10-27 | K110: 2014-10-31 | L110: Published | M110: 2014-11-21 | N110: NULL | O110: NULL | P110: NULL | Q110: 3 | R110: - | S110: - | T110: - | U110: - | V110: - | W110: 3 | X110: - | Y110: - | Z110: - | AA110: 3 | AB110: - | AC110: - | AD110: - | AE110: - | AF110: - | AG110: 3 | AH110: - | AI110: - | AJ110: - | AK110: 3 | AL110: - | AM110: - | AN110: - | AO110: - | AP110: - | AQ110: 3 | AR110: - | AS110: - | AT110: - | AU110: 3 | AV110: - | AW110: - | AX110: - | AY110: - | AZ110: - | BA110: 3 | BB110: - | BC110: - | BD110: - | BE110: 3 | BF110: - | BG110: - | BH110: - | BI110: - | BJ110: - | BK110: 3 | BL110: - | BM110: - | BN110: - | BO110: No previous inspection
A111: Report | B111: Team Enterprises Limited | C111: 58515 | D111: Independent Learning Provider | E111: North West | F111: St. Helens | G111: Independent Learning Provider | H111: WBL - full (regional) | I111: 445777 | J111: 2014-10-27 | K111: 2014-10-31 | L111: Published | M111: 2014-12-09 | N111: 364590 | O111: 2011-05-06 | P111: 2 | Q111: 3 | R111: - | S111: - | T111: 3 | U111: 3 | V111: 3 | W111: 3 | X111: - | Y111: - | Z111: - | AA111: 3 | AB111: - | AC111: - | AD111: 3 | AE111: 3 | AF111: 3 | AG111: 3 | AH111: - | AI111: - | AJ111: - | AK111: 3 | AL111: - | AM111: - | AN111: 3 | AO111: 3 | AP111: 3 | AQ111: 3 | AR111: - | AS111: - | AT111: - | AU111: 3 | AV111: - | AW111: - | AX111: 3 | AY111: 3 | AZ111: 3 | BA111: 3 | BB111: - | BC111: - | BD111: - | BE111: 3 | BF111: - | BG111: - | BH111: 3 | BI111: 3 | BJ111: 3 | BK111: 3 | BL111: - | BM111: - | BN111: - | BO111: Declined
A112: Report | B112: MI ComputSolutions Incorporated | C112: 58370 | D112: Independent Learning Provider | E112: London | F112: Lambeth | G112: Independent Learning Provider | H112: WBL - full (regional) | I112: 451598 | J112: 2014-10-27 | K112: 2014-10-31 | L112: Published | M112: 2014-12-05 | N112: 333284 | O112: 2009-08-14 | P112: 2 | Q112: 2 | R112: - | S112: - | T112: - | U112: - | V112: 2 | W112: 3 | X112: - | Y112: - | Z112: - | AA112: 2 | AB112: - | AC112: - | AD112: - | AE112: - | AF112: 2 | AG112: 3 | AH112: - | AI112: - | AJ112: - | AK112: 2 | AL112: - | AM112: - | AN112: - | AO112: - | AP112: 2 | AQ112: 3 | AR112: - | AS112: - | AT112: - | AU112: 2 | AV112: - | AW112: - | AX112: - | AY112: - | AZ112: 2 | BA112: 3 | BB112: - | BC112: - | BD112: - | BE112: 2 | BF112: - | BG112: - | BH112: - | BI112: - | BJ112: 2 | BK112: 2 | BL112: - | BM112: - | BN112: - | BO112: Same
A113: Report | B113: Bestland Solutions Limited | C113: 57838 | D113: Independent Learning Provider | E113: South East | F113: Southampton | G113: Independent Learning Provider | H113: WBL - full (regional) | I113: 452620 | J113: 2014-11-04 | K113: 2014-11-07 | L113: Published | M113: 2014-12-12 | N113: NULL | O113: NULL | P113: NULL | Q113: 3 | R113: - | S113: - | T113: - | U113: - | V113: - | W113: 3 | X113: - | Y113: - | Z113: - | AA113: 3 | AB113: - | AC113: - | AD113: - | AE113: - | AF113: - | AG113: 3 | AH113: - | AI113: - | AJ113: - | AK113: 3 | AL113: - | AM113: - | AN113: - | AO113: - | AP113: - | AQ113: 3 | AR113: - | AS113: - | AT113: - | AU113: 3 | AV113: - | AW113: - | AX113: - | AY113: - | AZ113: - | BA113: 3 | BB113: - | BC113: - | BD113: - | BE113: 2 | BF113: - | BG113: - | BH113: - | BI113: - | BJ113: - | BK113: 2 | BL113: - | BM113: - | BN113: - | BO113: No previous inspection
A114: Report | B114: Norman Mackie & Associates Limited | C114: 58507 | D114: Independent Learning Provider | E114: North West | F114: Tameside | G114: Independent Learning Provider | H114: Work Based Learning - full (national) | I114: 451204 | J114: 2014-11-10 | K114: 2014-11-12 | L114: Published | M114: 2014-12-15 | N114: NULL | O114: NULL | P114: NULL | Q114: 2 | R114: - | S114: - | T114: - | U114: - | V114: - | W114: - | X114: - | Y114: - | Z114: 2 | AA114: 2 | AB114: - | AC114: - | AD114: - | AE114: - | AF114: - | AG114: - | AH114: - | AI114: - | AJ114: 2 | AK114: 2 | AL114: - | AM114: - | AN114: - | AO114: - | AP114: - | AQ114: - | AR114: - | AS114: - | AT114: 2 | AU114: 2 | AV114: - | AW114: - | AX114: - | AY114: - | AZ114: - | BA114: - | BB114: - | BC114: - | BD114: 2 | BE114: 1 | BF114: - | BG114: - | BH114: - | BI114: - | BJ114: - | BK114: - | BL114: - | BM114: - | BN114: 1 | BO114: No previous inspection
A115: Report | B115: In Touch Care Limited | C115: 50138 | D115: Independent Learning Provider | E115: North East, Yorkshire & Humber | F115: Sheffield | G115: Independent Learning Provider | H115: Work Based Learning - full (national) | I115: 446599 | J115: 2014-11-10 | K115: 2014-11-14 | L115: Published | M115: 2014-12-19 | N115: 408498 | O115: 2013-05-17 | P115: 2 | Q115: 3 | R115: - | S115: - | T115: - | U115: - | V115: 3 | W115: 3 | X115: - | Y115: - | Z115: - | AA115: 3 | AB115: - | AC115: - | AD115: - | AE115: - | AF115: 3 | AG115: 3 | AH115: - | AI115: - | AJ115: - | AK115: 3 | AL115: - | AM115: - | AN115: - | AO115: - | AP115: 3 | AQ115: 3 | AR115: - | AS115: - | AT115: - | AU115: 3 | AV115: - | AW115: - | AX115: - | AY115: - | AZ115: 3 | BA115: 3 | BB115: - | BC115: - | BD115: - | BE115: 2 | BF115: - | BG115: - | BH115: - | BI115: - | BJ115: 2 | BK115: 2 | BL115: - | BM115: - | BN115: - | BO115: Declined
A116: Report | B116: S.Y.T.G. Limited | C116: 54504 | D116: Independent Learning Provider | E116: North East, Yorkshire & Humber | F116: Sheffield | G116: Independent Learning Provider | H116: WBL - requires improvement | I116: 430256 | J116: 2014-11-11 | K116: 2014-11-14 | L116: Published | M116: 2014-12-17 | N116: 410692 | O116: 2013-05-17 | P116: 3 | Q116: 2 | R116: - | S116: - | T116: - | U116: 2 | V116: - | W116: - | X116: - | Y116: - | Z116: - | AA116: 2 | AB116: - | AC116: - | AD116: - | AE116: 2 | AF116: - | AG116: - | AH116: - | AI116: - | AJ116: - | AK116: 2 | AL116: - | AM116: - | AN116: - | AO116: 2 | AP116: - | AQ116: - | AR116: - | AS116: - | AT116: - | AU116: 3 | AV116: - | AW116: - | AX116: - | AY116: 3 | AZ116: - | BA116: - | BB116: - | BC116: - | BD116: - | BE116: 2 | BF116: - | BG116: - | BH116: - | BI116: 2 | BJ116: - | BK116: - | BL116: - | BM116: - | BN116: - | BO116: Improved
A117: Report | B117: GHQ Training Limited | C117: 51961 | D117: Independent Learning Provider | E117: South West | F117: Plymouth | G117: Independent Learning Provider | H117: WBL - full (regional) | I117: 445774 | J117: 2014-11-17 | K117: 2014-11-20 | L117: Published | M117: 2014-12-25 | N117: 376246 | O117: 2011-11-25 | P117: 2 | Q117: 2 | R117: - | S117: - | T117: - | U117: - | V117: - | W117: 2 | X117: - | Y117: - | Z117: - | AA117: 2 | AB117: - | AC117: - | AD117: - | AE117: - | AF117: - | AG117: 2 | AH117: - | AI117: - | AJ117: - | AK117: 2 | AL117: - | AM117: - | AN117: - | AO117: - | AP117: - | AQ117: 2 | AR117: - | AS117: - | AT117: - | AU117: 2 | AV117: - | AW117: - | AX117: - | AY117: - | AZ117: - | BA117: 2 | BB117: - | BC117: - | BD117: - | BE117: 3 | BF117: - | BG117: - | BH117: - | BI117: - | BJ117: - | BK117: 3 | BL117: - | BM117: - | BN117: - | BO117: Same
A118: Report | B118: Retail Motor Industry Training Limited | C118: 58614 | D118: Independent Learning Provider | E118: East Midlands | F118: Nottingham | G118: Independent Learning Provider | H118: WBL - requires improvement | I118: 429794 | J118: 2014-11-17 | K118: 2014-11-21 | L118: Published | M118: 2014-12-23 | N118: 410650 | O118: 2013-07-19 | P118: 3 | Q118: 2 | R118: - | S118: - | T118: - | U118: - | V118: - | W118: 2 | X118: - | Y118: - | Z118: - | AA118: 2 | AB118: - | AC118: - | AD118: - | AE118: - | AF118: - | AG118: 2 | AH118: - | AI118: - | AJ118: - | AK118: 2 | AL118: - | AM118: - | AN118: - | AO118: - | AP118: - | AQ118: 2 | AR118: - | AS118: - | AT118: - | AU118: 1 | AV118: - | AW118: - | AX118: - | AY118: - | AZ118: - | BA118: 1 | BB118: - | BC118: - | BD118: - | BE118: 1 | BF118: - | BG118: - | BH118: - | BI118: - | BJ118: - | BK118: 1 | BL118: - | BM118: - | BN118: - | BO118: Improved
A119: Report | B119: Economic Solutions Limited (Manchester Solutions) | C119: 53233 | D119: Independent Learning Provider | E119: North West | F119: Manchester | G119: Independent Learning Provider | H119: Work Based Learning - full (national) | I119: 443658 | J119: 2014-11-24 | K119: 2014-11-28 | L119: Published | M119: 2014-12-24 | N119: 388120 | O119: 2012-06-29 | P119: 2 | Q119: 3 | R119: - | S119: - | T119: 3 | U119: 3 | V119: 3 | W119: 3 | X119: - | Y119: - | Z119: - | AA119: 3 | AB119: - | AC119: - | AD119: 3 | AE119: 3 | AF119: 3 | AG119: 3 | AH119: - | AI119: - | AJ119: - | AK119: 3 | AL119: - | AM119: - | AN119: 3 | AO119: 3 | AP119: 3 | AQ119: 3 | AR119: - | AS119: - | AT119: - | AU119: 3 | AV119: - | AW119: - | AX119: 3 | AY119: 3 | AZ119: 3 | BA119: 3 | BB119: - | BC119: - | BD119: - | BE119: 2 | BF119: - | BG119: - | BH119: 2 | BI119: 2 | BJ119: 2 | BK119: 2 | BL119: - | BM119: - | BN119: - | BO119: Declined
A120: Report | B120: Barford Education and Training (North East) Limited | C120: 55459 | D120: Independent Learning Provider | E120: East of England | F120: Essex | G120: Independent Learning Provider | H120: WBL - requires improvement | I120: 430250 | J120: 2014-11-24 | K120: 2014-11-28 | L120: Published | M120: 2015-01-07 | N120: 423508 | O120: 2013-06-07 | P120: 3 | Q120: 4 | R120: - | S120: - | T120: - | U120: - | V120: - | W120: 4 | X120: - | Y120: - | Z120: 4 | AA120: 4 | AB120: - | AC120: - | AD120: - | AE120: - | AF120: - | AG120: 4 | AH120: - | AI120: - | AJ120: 4 | AK120: 4 | AL120: - | AM120: - | AN120: - | AO120: - | AP120: - | AQ120: 4 | AR120: - | AS120: - | AT120: 4 | AU120: 4 | AV120: - | AW120: - | AX120: - | AY120: - | AZ120: - | BA120: 4 | BB120: - | BC120: - | BD120: 4 | BE120: 2 | BF120: - | BG120: - | BH120: - | BI120: - | BJ120: - | BK120: 2 | BL120: - | BM120: - | BN120: 2 | BO120: Declined
A121: =IF(C121 <> "", HYPERLINK(CONCATENATE("http://reports.ofsted.gov.uk/inspection-reports/find-inspection-report/provider/ELS/",C121),"Report"),"") -> Report | B121: Alpha Building Services Engineering Ltd | C121: 59178 | D121: Independent Learning Provider | E121: London | F121: Newham | G121: Independent Learning Provider | H121: WBL - full (regional) | I121: 446621 | J121: 2014-11-24 | K121: 2014-11-28 | L121: Published | M121: 2015-02-18 | N121: NULL | O121: NULL | P121: NULL | Q121: 4 | R121: - | S121: - | T121: - | U121: - | V121: - | W121: 4 | X121: - | Y121: - | Z121: - | AA121: 4 | AB121: - | AC121: - | AD121: - | AE121: - | AF121: - | AG121: 4 | AH121: - | AI121: - | AJ121: - | AK121: 4 | AL121: - | AM121: - | AN121: - | AO121: - | AP121: - | AQ121: 4 | AR121: - | AS121: - | AT121: - | AU121: 4 | AV121: - | AW121: - | AX121: - | AY121: - | AZ121: - | BA121: 4 | BB121: - | BC121: - | BD121: - | BE121: 3 | BF121: - | BG121: - | BH121: - | BI121: - | BJ121: - | BK121: 3 | BL121: - | BM121: - | BN121: - | BO121: =IF(P121="Null","No previous inspection",IF(Q121>P121,"Declined", IF(Q121=P121,"Same",IF(Q121<P121,"Improved")))) -> No previous inspection
A122: Report | B122: Rocket Training Limited | C122: 54158 | D122: Independent Learning Provider | E122: North West | F122: Liverpool | G122: Independent Learning Provider | H122: WBL - requires improvement | I122: 446603 | J122: 2014-11-24 | K122: 2014-11-28 | L122: Published | M122: 2014-12-24 | N122: 410691 | O122: 2013-06-28 | P122: 3 | Q122: 3 | R122: - | S122: - | T122: - | U122: 2 | V122: - | W122: 3 | X122: - | Y122: - | Z122: - | AA122: 3 | AB122: - | AC122: - | AD122: - | AE122: 2 | AF122: - | AG122: 3 | AH122: - | AI122: - | AJ122: - | AK122: 3 | AL122: - | AM122: - | AN122: - | AO122: 2 | AP122: - | AQ122: 3 | AR122: - | AS122: - | AT122: - | AU122: 3 | AV122: - | AW122: - | AX122: - | AY122: 2 | AZ122: - | BA122: 3 | BB122: - | BC122: - | BD122: - | BE122: 2 | BF122: - | BG122: - | BH122: - | BI122: 2 | BJ122: - | BK122: 2 | BL122: - | BM122: - | BN122: - | BO122: Same
A123: Report | B123: Brinsworth Training Limited | C123: 58933 | D123: Independent Learning Provider | E123: North East, Yorkshire & Humber | F123: Rotherham | G123: Independent Learning Provider | H123: WBL - full (regional) | I123: 454945 | J123: 2014-11-25 | K123: 2014-11-28 | L123: Published | M123: 2014-12-24 | N123: 376231 | O123: 2011-10-28 | P123: 2 | Q123: 3 | R123: - | S123: - | T123: - | U123: - | V123: - | W123: 3 | X123: - | Y123: - | Z123: - | AA123: 3 | AB123: - | AC123: - | AD123: - | AE123: - | AF123: - | AG123: 3 | AH123: - | AI123: - | AJ123: - | AK123: 3 | AL123: - | AM123: - | AN123: - | AO123: - | AP123: - | AQ123: 3 | AR123: - | AS123: - | AT123: - | AU123: 3 | AV123: - | AW123: - | AX123: - | AY123: - | AZ123: - | BA123: 3 | BB123: - | BC123: - | BD123: - | BE123: 2 | BF123: - | BG123: - | BH123: - | BI123: - | BJ123: - | BK123: 2 | BL123: - | BM123: - | BN123: - | BO123: Declined
A124: Report | B124: Strategic Training Solutions (Mansfield) Limited | C124: 54643 | D124: Independent Learning Provider | E124: East Midlands | F124: Nottinghamshire | G124: Independent Learning Provider | H124: WBL - requires improvement | I124: 430260 | J124: 2014-12-02 | K124: 2014-12-04 | L124: Published | M124: 2015-01-13 | N124: 408544 | O124: 2013-06-27 | P124: 3 | Q124: 3 | R124: - | S124: - | T124: - | U124: 3 | V124: - | W124: - | X124: - | Y124: - | Z124: - | AA124: 3 | AB124: - | AC124: - | AD124: - | AE124: 3 | AF124: - | AG124: - | AH124: - | AI124: - | AJ124: - | AK124: 3 | AL124: - | AM124: - | AN124: - | AO124: 3 | AP124: - | AQ124: - | AR124: - | AS124: - | AT124: - | AU124: 3 | AV124: - | AW124: - | AX124: - | AY124: 3 | AZ124: - | BA124: - | BB124: - | BC124: - | BD124: - | BE124: 2 | BF124: - | BG124: - | BH124: - | BI124: 2 | BJ124: - | BK124: - | BL124: - | BM124: - | BN124: - | BO124: Same
A125: Report | B125: Venture Learning Limited | C125: 55208 | D125: Independent Learning Provider | E125: North West | F125: Wigan | G125: Independent Learning Provider | H125: WBL - full (regional) | I125: 429009 | J125: 2014-12-01 | K125: 2014-12-04 | L125: Published | M125: 2015-01-21 | N125: 330959 | O125: 2009-01-16 | P125: 1 | Q125: 4 | R125: - | S125: - | T125: - | U125: - | V125: - | W125: 4 | X125: - | Y125: - | Z125: - | AA125: 4 | AB125: - | AC125: - | AD125: - | AE125: - | AF125: - | AG125: 4 | AH125: - | AI125: - | AJ125: - | AK125: 4 | AL125: - | AM125: - | AN125: - | AO125: - | AP125: - | AQ125: 4 | AR125: - | AS125: - | AT125: - | AU125: 4 | AV125: - | AW125: - | AX125: - | AY125: - | AZ125: - | BA125: 4 | BB125: - | BC125: - | BD125: - | BE125: 4 | BF125: - | BG125: - | BH125: - | BI125: - | BJ125: - | BK125: 4 | BL125: - | BM125: - | BN125: - | BO125: Declined
A126: Report | B126: Expedient Training Services Limited | C126: 51800 | D126: Independent Learning Provider | E126: North East, Yorkshire & Humber | F126: South Tyneside | G126: Independent Learning Provider | H126: WBL - requires improvement | I126: 430253 | J126: 2014-12-02 | K126: 2014-12-05 | L126: Published | M126: 2015-01-07 | N126: 408494 | O126: 2013-06-14 | P126: 3 | Q126: 3 | R126: - | S126: - | T126: - | U126: - | V126: - | W126: 3 | X126: - | Y126: - | Z126: - | AA126: 2 | AB126: - | AC126: - | AD126: - | AE126: - | AF126: - | AG126: 2 | AH126: - | AI126: - | AJ126: - | AK126: 2 | AL126: - | AM126: - | AN126: - | AO126: - | AP126: - | AQ126: 2 | AR126: - | AS126: - | AT126: - | AU126: 3 | AV126: - | AW126: - | AX126: - | AY126: - | AZ126: - | BA126: 3 | BB126: - | BC126: - | BD126: - | BE126: 2 | BF126: - | BG126: - | BH126: - | BI126: - | BJ126: - | BK126: 2 | BL126: - | BM126: - | BN126: - | BO126: Same
A127: Report | B127: Options 2 Workplace Learning Ltd | C127: 58938 | D127: Independent Learning Provider | E127: East Midlands | F127: Northamptonshire | G127: Independent Learning Provider | H127: WBL - full (regional) | I127: 452625 | J127: 2014-12-02 | K127: 2014-12-05 | L127: Published | M127: 2015-01-08 | N127: NULL | O127: NULL | P127: NULL | Q127: 3 | R127: - | S127: - | T127: - | U127: - | V127: - | W127: 3 | X127: - | Y127: - | Z127: - | AA127: 3 | AB127: - | AC127: - | AD127: - | AE127: - | AF127: - | AG127: 3 | AH127: - | AI127: - | AJ127: - | AK127: 3 | AL127: - | AM127: - | AN127: - | AO127: - | AP127: - | AQ127: 3 | AR127: - | AS127: - | AT127: - | AU127: 3 | AV127: - | AW127: - | AX127: - | AY127: - | AZ127: - | BA127: 3 | BB127: - | BC127: - | BD127: - | BE127: 2 | BF127: - | BG127: - | BH127: - | BI127: - | BJ127: - | BK127: 2 | BL127: - | BM127: - | BN127: - | BO127: No previous inspection
A128: Report | B128: Four Counties Training Limited | C128: 51893 | D128: Independent Learning Provider | E128: London | F128: Ealing | G128: Independent Learning Provider | H128: Work Based Learning - full (national) | I128: 446601 | J128: 2014-12-01 | K128: 2014-12-05 | L128: Published | M128: 2015-01-21 | N128: 321281 | O128: 2008-02-08 | P128: 1 | Q128: 4 | R128: - | S128: - | T128: - | U128: - | V128: 4 | W128: 4 | X128: - | Y128: - | Z128: - | AA128: 4 | AB128: - | AC128: - | AD128: - | AE128: - | AF128: 4 | AG128: 4 | AH128: - | AI128: - | AJ128: - | AK128: 4 | AL128: - | AM128: - | AN128: - | AO128: - | AP128: 4 | AQ128: 4 | AR128: - | AS128: - | AT128: - | AU128: 4 | AV128: - | AW128: - | AX128: - | AY128: - | AZ128: 4 | BA128: 4 | BB128: - | BC128: - | BD128: - | BE128: 3 | BF128: - | BG128: - | BH128: - | BI128: - | BJ128: 3 | BK128: 3 | BL128: - | BM128: - | BN128: - | BO128: Declined
A129: Report | B129: Mainstream Training Limited | C129: 58362 | D129: Independent Learning Provider | E129: South East | F129: Kent | G129: Independent Learning Provider | H129: Work Based Learning - full (national) | I129: 446612 | J129: 2014-12-01 | K129: 2014-12-05 | L129: Published | M129: 2015-01-15 | N129: 330084 | O129: 2008-12-11 | P129: 2 | Q129: 2 | R129: - | S129: - | T129: - | U129: - | V129: - | W129: 2 | X129: - | Y129: - | Z129: 2 | AA129: 2 | AB129: - | AC129: - | AD129: - | AE129: - | AF129: - | AG129: 2 | AH129: - | AI129: - | AJ129: 2 | AK129: 2 | AL129: - | AM129: - | AN129: - | AO129: - | AP129: - | AQ129: 2 | AR129: - | AS129: - | AT129: 2 | AU129: 2 | AV129: - | AW129: - | AX129: - | AY129: - | AZ129: - | BA129: 2 | BB129: - | BC129: - | BD129: 2 | BE129: 2 | BF129: - | BG129: - | BH129: - | BI129: - | BJ129: - | BK129: 2 | BL129: - | BM129: - | BN129: 2 | BO129: Same
A130: Report | B130: The Academy Hair & Beauty Ltd | C130: 54803 | D130: Independent Learning Provider | E130: North East, Yorkshire & Humber | F130: North Yorkshire | G130: Independent Learning Provider | H130: WBL - full (regional) | I130: 452617 | J130: 2014-12-09 | K130: 2014-12-11 | L130: Published | M130: 2015-01-16 | N130: 318271 | O130: 2008-01-16 | P130: 1 | Q130: 1 | R130: - | S130: - | T130: - | U130: - | V130: - | W130: 1 | X130: - | Y130: - | Z130: - | AA130: 1 | AB130: - | AC130: - | AD130: - | AE130: - | AF130: - | AG130: 1 | AH130: - | AI130: - | AJ130: - | AK130: 1 | AL130: - | AM130: - | AN130: - | AO130: - | AP130: - | AQ130: 1 | AR130: - | AS130: - | AT130: - | AU130: 1 | AV130: - | AW130: - | AX130: - | AY130: - | AZ130: - | BA130: 1 | BB130: - | BC130: - | BD130: - | BE130: 1 | BF130: - | BG130: - | BH130: - | BI130: - | BJ130: - | BK130: 1 | BL130: - | BM130: - | BN130: - | BO130: Same
A131: Report | B131: Targeted Training Projects Limited | C131: 54744 | D131: Independent Learning Provider | E131: West Midlands | F131: Dudley | G131: Independent Learning Provider | H131: WBL - full (regional) | I131: 446606 | J131: 2014-12-08 | K131: 2014-12-12 | L131: Published | M131: 2015-01-27 | N131: 307075 | O131: 2006-07-21 | P131: 3 | Q131: 4 | R131: - | S131: - | T131: - | U131: - | V131: - | W131: 4 | X131: - | Y131: - | Z131: - | AA131: 4 | AB131: - | AC131: - | AD131: - | AE131: - | AF131: - | AG131: 4 | AH131: - | AI131: - | AJ131: - | AK131: 4 | AL131: - | AM131: - | AN131: - | AO131: - | AP131: - | AQ131: 4 | AR131: - | AS131: - | AT131: - | AU131: 4 | AV131: - | AW131: - | AX131: - | AY131: - | AZ131: - | BA131: 4 | BB131: - | BC131: - | BD131: - | BE131: 4 | BF131: - | BG131: - | BH131: - | BI131: - | BJ131: - | BK131: 4 | BL131: - | BM131: - | BN131: - | BO131: Declined
A132: Report | B132: SBC Training Limited | C132: 54277 | D132: Independent Learning Provider | E132: West Midlands | F132: Shropshire | G132: Independent Learning Provider | H132: Work Based Learning - full (national) | I132: 446604 | J132: 2014-12-08 | K132: 2014-12-12 | L132: Published | M132: 2015-01-16 | N132: 345866 | O132: 2010-07-09 | P132: 2 | Q132: 3 | R132: - | S132: - | T132: 2 | U132: - | V132: - | W132: 3 | X132: - | Y132: - | Z132: - | AA132: 3 | AB132: - | AC132: - | AD132: 2 | AE132: - | AF132: - | AG132: 3 | AH132: - | AI132: - | AJ132: - | AK132: 3 | AL132: - | AM132: - | AN132: 2 | AO132: - | AP132: - | AQ132: 3 | AR132: - | AS132: - | AT132: - | AU132: 3 | AV132: - | AW132: - | AX132: 2 | AY132: - | AZ132: - | BA132: 3 | BB132: - | BC132: - | BD132: - | BE132: 2 | BF132: - | BG132: - | BH132: 2 | BI132: - | BJ132: - | BK132: 2 | BL132: - | BM132: - | BN132: - | BO132: Declined
A133: Report | B133: Chamber Training (Humber) Limited | C133: 51104 | D133: Independent Learning Provider | E133: North East, Yorkshire & Humber | F133: Kingston upon Hull City of | G133: Independent Learning Provider | H133: WBL - requires improvement | I133: 429795 | J133: 2015-01-12 | K133: 2015-01-16 | L133: Published | M133: 2015-02-23 | N133: 404575 | O133: 2013-07-19 | P133: 3 | Q133: 2 | R133: - | S133: - | T133: - | U133: - | V133: 2 | W133: 2 | X133: - | Y133: - | Z133: - | AA133: 2 | AB133: - | AC133: - | AD133: - | AE133: - | AF133: 2 | AG133: 2 | AH133: - | AI133: - | AJ133: - | AK133: 2 | AL133: - | AM133: - | AN133: - | AO133: - | AP133: 2 | AQ133: 2 | AR133: - | AS133: - | AT133: - | AU133: 2 | AV133: - | AW133: - | AX133: - | AY133: - | AZ133: 2 | BA133: 2 | BB133: - | BC133: - | BD133: - | BE133: 2 | BF133: - | BG133: - | BH133: - | BI133: - | BJ133: 2 | BK133: 2 | BL133: - | BM133: - | BN133: - | BO133: Improved
A134: Report | B134: Community Training Services Limited | C134: 51259 | D134: Independent Learning Provider | E134: North East, Yorkshire & Humber | F134: Sheffield | G134: Independent Learning Provider | H134: WBL - full (regional) | I134: 452979 | J134: 2015-01-12 | K134: 2015-01-16 | L134: Published | M134: 2015-02-24 | N134: 363219 | O134: 2011-01-21 | P134: 2 | Q134: 2 | R134: - | S134: - | T134: - | U134: 2 | V134: 2 | W134: 2 | X134: - | Y134: - | Z134: - | AA134: 3 | AB134: - | AC134: - | AD134: - | AE134: 3 | AF134: 3 | AG134: 3 | AH134: - | AI134: - | AJ134: - | AK134: 2 | AL134: - | AM134: - | AN134: - | AO134: 2 | AP134: 2 | AQ134: 2 | AR134: - | AS134: - | AT134: - | AU134: 2 | AV134: - | AW134: - | AX134: - | AY134: 2 | AZ134: 2 | BA134: 2 | BB134: - | BC134: - | BD134: - | BE134: 2 | BF134: - | BG134: - | BH134: - | BI134: 2 | BJ134: 2 | BK134: 2 | BL134: - | BM134: - | BN134: - | BO134: Same
A135: Report | B135: The Child Care Company (Old Windsor) Limited | C135: 58467 | D135: Independent Learning Provider | E135: South East | F135: Slough | G135: Independent Learning Provider | H135: WBL - full (regional) | I135: 446611 | J135: 2015-01-19 | K135: 2015-01-22 | L135: Published | M135: 2015-02-26 | N135: NULL | O135: NULL | P135: NULL | Q135: 2 | R135: - | S135: - | T135: - | U135: - | V135: - | W135: 2 | X135: - | Y135: - | Z135: - | AA135: 2 | AB135: - | AC135: - | AD135: - | AE135: - | AF135: - | AG135: 2 | AH135: - | AI135: - | AJ135: - | AK135: 2 | AL135: - | AM135: - | AN135: - | AO135: - | AP135: - | AQ135: 2 | AR135: - | AS135: - | AT135: - | AU135: 2 | AV135: - | AW135: - | AX135: - | AY135: - | AZ135: - | BA135: 2 | BB135: - | BC135: - | BD135: - | BE135: 2 | BF135: - | BG135: - | BH135: - | BI135: - | BJ135: - | BK135: 2 | BL135: - | BM135: - | BN135: - | BO135: No previous inspection
A136: Report | B136: The Virtual College | C136: 54946 | D136: Independent Learning Provider | E136: North East, Yorkshire & Humber | F136: Bradford | G136: Independent Learning Provider | H136: Work Based Learning - full (national) | I136: 446608 | J136: 2015-01-19 | K136: 2015-01-23 | L136: Published | M136: 2015-03-03 | N136: 330940 | O136: 2009-01-16 | P136: 2 | Q136: 3 | R136: - | S136: - | T136: - | U136: - | V136: 3 | W136: 3 | X136: - | Y136: - | Z136: 3 | AA136: 2 | AB136: - | AC136: - | AD136: - | AE136: - | AF136: 2 | AG136: 2 | AH136: - | AI136: - | AJ136: 2 | AK136: 2 | AL136: - | AM136: - | AN136: - | AO136: - | AP136: 2 | AQ136: 2 | AR136: - | AS136: - | AT136: 2 | AU136: 3 | AV136: - | AW136: - | AX136: - | AY136: - | AZ136: 3 | BA136: 3 | BB136: - | BC136: - | BD136: 3 | BE136: 3 | BF136: - | BG136: - | BH136: - | BI136: - | BJ136: 3 | BK136: 3 | BL136: - | BM136: - | BN136: 3 | BO136: Declined
A137: Report | B137: Aspiration Training Limited | C137: 57680 | D137: Independent Learning Provider | E137: West Midlands | F137: Worcestershire | G137: Independent Learning Provider | H137: WBL - requires improvement | I137: 429796 | J137: 2015-01-19 | K137: 2015-01-23 | L137: Published | M137: 2015-03-03 | N137: 410641 | O137: 2013-07-26 | P137: 3 | Q137: 3 | R137: - | S137: - | T137: - | U137: - | V137: - | W137: 3 | X137: - | Y137: - | Z137: - | AA137: 3 | AB137: - | AC137: - | AD137: - | AE137: - | AF137: - | AG137: 3 | AH137: - | AI137: - | AJ137: - | AK137: 3 | AL137: - | AM137: - | AN137: - | AO137: - | AP137: - | AQ137: 3 | AR137: - | AS137: - | AT137: - | AU137: 3 | AV137: - | AW137: - | AX137: - | AY137: - | AZ137: - | BA137: 3 | BB137: - | BC137: - | BD137: - | BE137: 2 | BF137: - | BG137: - | BH137: - | BI137: - | BJ137: - | BK137: 2 | BL137: - | BM137: - | BN137: - | BO137: Same
A138: Report | B138: Staffline Recruitment Limited | C138: 59075 | D138: Independent Learning Provider | E138: East Midlands | F138: Nottingham | G138: Independent Learning Provider | H138: WBL - requires improvement | I138: 433768 | J138: 2015-01-20 | K138: 2015-01-23 | L138: Published | M138: 2015-03-02 | N138: 424465 | O138: 2013-09-27 | P138: 3 | Q138: 2 | R138: - | S138: - | T138: - | U138: - | V138: - | W138: 2 | X138: - | Y138: - | Z138: - | AA138: 2 | AB138: - | AC138: - | AD138: - | AE138: - | AF138: - | AG138: 2 | AH138: - | AI138: - | AJ138: - | AK138: 2 | AL138: - | AM138: - | AN138: - | AO138: - | AP138: - | AQ138: 2 | AR138: - | AS138: - | AT138: - | AU138: 2 | AV138: - | AW138: - | AX138: - | AY138: - | AZ138: - | BA138: 2 | BB138: - | BC138: - | BD138: - | BE138: 2 | BF138: - | BG138: - | BH138: - | BI138: - | BJ138: - | BK138: 2 | BL138: - | BM138: - | BN138: - | BO138: Improved
A139: Report | B139: G B Training (UK) Ltd | C139: 51944 | D139: Independent Learning Provider | E139: West Midlands | F139: Birmingham | G139: Independent Learning Provider | H139: WBL - full (regional) | I139: 452603 | J139: 2015-01-19 | K139: 2015-01-23 | L139: Published | M139: 2015-03-03 | N139: 307094 | O139: 2006-09-07 | P139: 3 | Q139: 2 | R139: - | S139: - | T139: - | U139: - | V139: - | W139: 2 | X139: - | Y139: - | Z139: - | AA139: 2 | AB139: - | AC139: - | AD139: - | AE139: - | AF139: - | AG139: 2 | AH139: - | AI139: - | AJ139: - | AK139: 2 | AL139: - | AM139: - | AN139: - | AO139: - | AP139: - | AQ139: 2 | AR139: - | AS139: - | AT139: - | AU139: 2 | AV139: - | AW139: - | AX139: - | AY139: - | AZ139: - | BA139: 2 | BB139: - | BC139: - | BD139: - | BE139: 2 | BF139: - | BG139: - | BH139: - | BI139: - | BJ139: - | BK139: 2 | BL139: - | BM139: - | BN139: - | BO139: Improved
A140: Report | B140: Baltic Training Services Limited | C140: 58229 | D140: Independent Learning Provider | E140: North East, Yorkshire & Humber | F140: Durham | G140: Independent Learning Provider | H140: Work Based Learning - full (national) | I140: 452988 | J140: 2015-01-19 | K140: 2015-01-23 | L140: Published | M140: 2015-03-02 | N140: 333485 | O140: 2009-08-21 | P140: 2 | Q140: 2 | R140: - | S140: - | T140: 2 | U140: - | V140: - | W140: 2 | X140: - | Y140: - | Z140: 2 | AA140: 2 | AB140: - | AC140: - | AD140: 2 | AE140: - | AF140: - | AG140: 2 | AH140: - | AI140: - | AJ140: 2 | AK140: 2 | AL140: - | AM140: - | AN140: 2 | AO140: - | AP140: - | AQ140: 2 | AR140: - | AS140: - | AT140: 2 | AU140: 2 | AV140: - | AW140: - | AX140: 2 | AY140: - | AZ140: - | BA140: 2 | BB140: - | BC140: - | BD140: 2 | BE140: 2 | BF140: - | BG140: - | BH140: 2 | BI140: - | BJ140: - | BK140: 2 | BL140: - | BM140: - | BN140: 2 | BO140: Same
A141: Report | B141: DBC Training | C141: 59167 | D141: Independent Learning Provider | E141: East Midlands | F141: Derby | G141: Independent Learning Provider | H141: WBL - full (regional) | I141: 456390 | J141: 2015-01-27 | K141: 2015-01-29 | L141: Published | M141: 2015-03-05 | N141: NULL | O141: NULL | P141: NULL | Q141: 3 | R141: - | S141: - | T141: - | U141: - | V141: - | W141: 3 | X141: - | Y141: - | Z141: - | AA141: 3 | AB141: - | AC141: - | AD141: - | AE141: - | AF141: - | AG141: 3 | AH141: - | AI141: - | AJ141: - | AK141: 3 | AL141: - | AM141: - | AN141: - | AO141: - | AP141: - | AQ141: 3 | AR141: - | AS141: - | AT141: - | AU141: 2 | AV141: - | AW141: - | AX141: - | AY141: - | AZ141: - | BA141: 2 | BB141: - | BC141: - | BD141: - | BE141: 2 | BF141: - | BG141: - | BH141: - | BI141: - | BJ141: - | BK141: 2 | BL141: - | BM141: - | BN141: - | BO141: No previous inspection
A142: Report | B142: KATS Ltd | C142: 58323 | D142: Independent Learning Provider | E142: South East | F142: Hampshire | G142: Independent Learning Provider | H142: WBL - full (regional) | I142: 452621 | J142: 2015-01-27 | K142: 2015-01-30 | L142: Published | M142: 2015-03-25 | N142: 333270 | O142: 2009-08-07 | P142: 2 | Q142: 4 | R142: - | S142: - | T142: 4 | U142: - | V142: - | W142: 4 | X142: - | Y142: - | Z142: - | AA142: 4 | AB142: - | AC142: - | AD142: 4 | AE142: - | AF142: - | AG142: 4 | AH142: - | AI142: - | AJ142: - | AK142: 4 | AL142: - | AM142: - | AN142: 4 | AO142: - | AP142: - | AQ142: 4 | AR142: - | AS142: - | AT142: - | AU142: 4 | AV142: - | AW142: - | AX142: 4 | AY142: - | AZ142: - | BA142: 4 | BB142: - | BC142: - | BD142: - | BE142: 3 | BF142: - | BG142: - | BH142: 3 | BI142: - | BJ142: - | BK142: 3 | BL142: - | BM142: - | BN142: - | BO142: Declined
A143: Report | B143: Anderson Stockley Accredited Training Ltd | C143: 50410 | D143: Independent Learning Provider | E143: East Midlands | F143: Northamptonshire | G143: Independent Learning Provider | H143: Work Based Learning - full (national) | I143: 452600 | J143: 2015-02-03 | K143: 2015-02-05 | L143: Published | M143: 2015-03-12 | N143: 329928 | O143: 2008-10-24 | P143: 3 | Q143: 3 | R143: - | S143: - | T143: - | U143: - | V143: - | W143: 3 | X143: - | Y143: - | Z143: - | AA143: 3 | AB143: - | AC143: - | AD143: - | AE143: - | AF143: - | AG143: 3 | AH143: - | AI143: - | AJ143: - | AK143: 3 | AL143: - | AM143: - | AN143: - | AO143: - | AP143: - | AQ143: 3 | AR143: - | AS143: - | AT143: - | AU143: 3 | AV143: - | AW143: - | AX143: - | AY143: - | AZ143: - | BA143: 3 | BB143: - | BC143: - | BD143: - | BE143: 3 | BF143: - | BG143: - | BH143: - | BI143: - | BJ143: - | BK143: 3 | BL143: - | BM143: - | BN143: - | BO143: Same
A144: Report | B144: lookfantastic Training Limited | C144: 53697 | D144: Independent Learning Provider | E144: South East | F144: Brighton and Hove | G144: Independent Learning Provider | H144: Work Based Learning - full (national) | I144: 452613 | J144: 2015-02-02 | K144: 2015-02-06 | L144: Published | M144: 2015-03-16 | N144: 382484 | O144: 2011-06-24 | P144: 2 | Q144: 3 | R144: - | S144: - | T144: - | U144: - | V144: 3 | W144: 3 | X144: - | Y144: - | Z144: - | AA144: 3 | AB144: - | AC144: - | AD144: - | AE144: - | AF144: 3 | AG144: 3 | AH144: - | AI144: - | AJ144: - | AK144: 2 | AL144: - | AM144: - | AN144: - | AO144: - | AP144: 2 | AQ144: 2 | AR144: - | AS144: - | AT144: - | AU144: 3 | AV144: - | AW144: - | AX144: - | AY144: - | AZ144: 3 | BA144: 3 | BB144: - | BC144: - | BD144: - | BE144: 3 | BF144: - | BG144: - | BH144: - | BI144: - | BJ144: 3 | BK144: 3 | BL144: - | BM144: - | BN144: - | BO144: Declined
A145: Report | B145: Avanta Enterprise Limited | C145: 59173 | D145: Independent Learning Provider | E145: London | F145: Westminster | G145: Independent Learning Provider | H145: Work Based Learning - full (national) | I145: 452630 | J145: 2015-02-02 | K145: 2015-02-06 | L145: Published | M145: 2015-03-16 | N145: NULL | O145: NULL | P145: NULL | Q145: 2 | R145: - | S145: - | T145: - | U145: - | V145: - | W145: 2 | X145: - | Y145: - | Z145: 2 | AA145: 2 | AB145: - | AC145: - | AD145: - | AE145: - | AF145: - | AG145: 2 | AH145: - | AI145: - | AJ145: 2 | AK145: 2 | AL145: - | AM145: - | AN145: - | AO145: - | AP145: - | AQ145: 2 | AR145: - | AS145: - | AT145: 2 | AU145: 2 | AV145: - | AW145: - | AX145: - | AY145: - | AZ145: - | BA145: 2 | BB145: - | BC145: - | BD145: 2 | BE145: 2 | BF145: - | BG145: - | BH145: - | BI145: - | BJ145: - | BK145: 2 | BL145: - | BM145: - | BN145: 2 | BO145: No previous inspection
A146: Report | B146: Straight A Training Limited | C146: 54640 | D146: Independent Learning Provider | E146: South East | F146: Surrey | G146: Independent Learning Provider | H146: WBL - full (regional) | I146: 452981 | J146: 2015-02-03 | K146: 2015-02-06 | L146: Published | M146: 2015-03-16 | N146: 342602 | O146: 2009-12-11 | P146: 2 | Q146: 3 | R146: - | S146: - | T146: - | U146: - | V146: - | W146: 3 | X146: - | Y146: - | Z146: - | AA146: 2 | AB146: - | AC146: - | AD146: - | AE146: - | AF146: - | AG146: 2 | AH146: - | AI146: - | AJ146: - | AK146: 3 | AL146: - | AM146: - | AN146: - | AO146: - | AP146: - | AQ146: 3 | AR146: - | AS146: - | AT146: - | AU146: 3 | AV146: - | AW146: - | AX146: - | AY146: - | AZ146: - | BA146: 3 | BB146: - | BC146: - | BD146: - | BE146: 3 | BF146: - | BG146: - | BH146: - | BI146: - | BJ146: - | BK146: 3 | BL146: - | BM146: - | BN146: - | BO146: Declined
A147: Report | B147: Nuneaton Training Centre Limited | C147: 53693 | D147: Independent Learning Provider | E147: West Midlands | F147: Warwickshire | G147: Independent Learning Provider | H147: WBL - full (regional) | I147: 452612 | J147: 2015-02-10 | K147: 2015-02-12 | L147: Published | M147: 2015-03-06 | N147: 406792 | O147: 2012-10-26 | P147: 2 | Q147: 3 | R147: - | S147: - | T147: - | U147: 3 | V147: - | W147: - | X147: - | Y147: - | Z147: - | AA147: 3 | AB147: - | AC147: - | AD147: - | AE147: 3 | AF147: - | AG147: - | AH147: - | AI147: - | AJ147: - | AK147: 3 | AL147: - | AM147: - | AN147: - | AO147: 3 | AP147: - | AQ147: - | AR147: - | AS147: - | AT147: - | AU147: 3 | AV147: - | AW147: - | AX147: - | AY147: 3 | AZ147: - | BA147: - | BB147: - | BC147: - | BD147: - | BE147: 2 | BF147: - | BG147: - | BH147: - | BI147: 2 | BJ147: - | BK147: - | BL147: - | BM147: - | BN147: - | BO147: Declined
A148: Report | B148: LIGA (UK) LTD | C148: 59155 | D148: Independent Learning Provider | E148: South East | F148: Oxfordshire | G148: Independent Learning Provider | H148: Work Based Learning - full (national) | I148: 452628 | J148: 2015-02-11 | K148: 2015-02-13 | L148: Published | M148: 2015-03-20 | N148: NULL | O148: NULL | P148: NULL | Q148: 3 | R148: - | S148: - | T148: - | U148: - | V148: - | W148: 3 | X148: - | Y148: - | Z148: - | AA148: 3 | AB148: - | AC148: - | AD148: - | AE148: - | AF148: - | AG148: 3 | AH148: - | AI148: - | AJ148: - | AK148: 3 | AL148: - | AM148: - | AN148: - | AO148: - | AP148: - | AQ148: 3 | AR148: - | AS148: - | AT148: - | AU148: 3 | AV148: - | AW148: - | AX148: - | AY148: - | AZ148: - | BA148: 3 | BB148: - | BC148: - | BD148: - | BE148: 3 | BF148: - | BG148: - | BH148: - | BI148: - | BJ148: - | BK148: 3 | BL148: - | BM148: - | BN148: - | BO148: =IF(P148="Null","No previous inspection",IF(Q148>P148,"Declined", IF(Q148=P148,"Same",IF(Q148<P148,"Improved")))) -> No previous inspection
A149: Report | B149: QDOS Training Limited | C149: 58397 | D149: Independent Learning Provider | E149: East Midlands | F149: Leicester | G149: Independent Learning Provider | H149: WBL - full (regional) | I149: 452989 | J149: 2015-02-10 | K149: 2015-02-13 | L149: Published | M149: 2015-04-09 | N149: 376203 | O149: 2011-10-06 | P149: 2 | Q149: 4 | R149: - | S149: - | T149: 4 | U149: - | V149: 4 | W149: 4 | X149: - | Y149: - | Z149: - | AA149: 2 | AB149: - | AC149: - | AD149: 2 | AE149: - | AF149: 2 | AG149: 2 | AH149: - | AI149: - | AJ149: - | AK149: 3 | AL149: - | AM149: - | AN149: 2 | AO149: - | AP149: 3 | AQ149: 2 | AR149: - | AS149: - | AT149: - | AU149: 4 | AV149: - | AW149: - | AX149: 4 | AY149: - | AZ149: 4 | BA149: 4 | BB149: - | BC149: - | BD149: - | BE149: 4 | BF149: - | BG149: - | BH149: 4 | BI149: - | BJ149: 4 | BK149: 4 | BL149: - | BM149: - | BN149: - | BO149: Declined
A150: Report | B150: The Real Apprenticeship Company Limited | C150: 59162 | D150: Independent Learning Provider | E150: West Midlands | F150: Warwickshire | G150: Independent Learning Provider | H150: Work Based Learning - full (national) | I150: 455608 | J150: 2015-02-17 | K150: 2015-02-20 | L150: Published | M150: 2015-03-20 | N150: NULL | O150: NULL | P150: NULL | Q150: 2 | R150: - | S150: - | T150: - | U150: - | V150: - | W150: 2 | X150: - | Y150: - | Z150: - | AA150: 2 | AB150: - | AC150: - | AD150: - | AE150: - | AF150: - | AG150: 2 | AH150: - | AI150: - | AJ150: - | AK150: 2 | AL150: - | AM150: - | AN150: - | AO150: - | AP150: - | AQ150: 2 | AR150: - | AS150: - | AT150: - | AU150: 2 | AV150: - | AW150: - | AX150: - | AY150: - | AZ150: - | BA150: 2 | BB150: - | BC150: - | BD150: - | BE150: 2 | BF150: - | BG150: - | BH150: - | BI150: - | BJ150: - | BK150: 2 | BL150: - | BM150: - | BN150: - | BO150: No previous inspection
A151: Report | B151: John Laing Training Ltd | C151: 52638 | D151: Independent Learning Provider | E151: East of England | F151: Hertfordshire | G151: Independent Learning Provider | H151: Work Based Learning - full (national) | I151: 452605 | J151: 2015-02-17 | K151: 2015-02-20 | L151: Published | M151: 2015-03-25 | N151: 342621 | O151: 2009-11-20 | P151: 3 | Q151: 2 | R151: - | S151: - | T151: - | U151: - | V151: - | W151: 2 | X151: - | Y151: - | Z151: - | AA151: 2 | AB151: - | AC151: - | AD151: - | AE151: - | AF151: - | AG151: 2 | AH151: - | AI151: - | AJ151: - | AK151: 2 | AL151: - | AM151: - | AN151: - | AO151: - | AP151: - | AQ151: 2 | AR151: - | AS151: - | AT151: - | AU151: 2 | AV151: - | AW151: - | AX151: - | AY151: - | AZ151: - | BA151: 2 | BB151: - | BC151: - | BD151: - | BE151: 2 | BF151: - | BG151: - | BH151: - | BI151: - | BJ151: - | BK151: 2 | BL151: - | BM151: - | BN151: - | BO151: Improved
A152: Report | B152: Norfolk Training Services Limited | C152: 53550 | D152: Independent Learning Provider | E152: East of England | F152: Norfolk | G152: Independent Learning Provider | H152: WBL - full (regional) | I152: 452611 | J152: 2015-02-16 | K152: 2015-02-20 | L152: Published | M152: 2015-03-27 | N152: 366019 | O152: 2011-08-05 | P152: 2 | Q152: 3 | R152: - | S152: - | T152: - | U152: 3 | V152: 3 | W152: 3 | X152: - | Y152: - | Z152: - | AA152: 3 | AB152: - | AC152: - | AD152: - | AE152: 3 | AF152: 3 | AG152: 3 | AH152: - | AI152: - | AJ152: - | AK152: 3 | AL152: - | AM152: - | AN152: - | AO152: 3 | AP152: 3 | AQ152: 3 | AR152: - | AS152: - | AT152: - | AU152: 3 | AV152: - | AW152: - | AX152: - | AY152: 3 | AZ152: 3 | BA152: 3 | BB152: - | BC152: - | BD152: - | BE152: 3 | BF152: - | BG152: - | BH152: - | BI152: 3 | BJ152: 3 | BK152: 3 | BL152: - | BM152: - | BN152: - | BO152: Declined
A153: Report | B153: ID Training | C153: 57877 | D153: Independent Learning Provider | E153: North East, Yorkshire & Humber | F153: Newcastle Upon Tyne | G153: Independent Learning Provider | H153: WBL - full (regional) | I153: 452986 | J153: 2015-02-24 | K153: 2015-02-27 | L153: Published | M153: 2015-04-09 | N153: 330918 | O153: 2009-03-26 | P153: 3 | Q153: 2 | R153: - | S153: - | T153: - | U153: 2 | V153: - | W153: 2 | X153: - | Y153: - | Z153: 2 | AA153: 2 | AB153: - | AC153: - | AD153: - | AE153: 2 | AF153: - | AG153: 2 | AH153: - | AI153: - | AJ153: 2 | AK153: 2 | AL153: - | AM153: - | AN153: - | AO153: 2 | AP153: - | AQ153: 2 | AR153: - | AS153: - | AT153: 2 | AU153: 2 | AV153: - | AW153: - | AX153: - | AY153: 2 | AZ153: - | BA153: 2 | BB153: - | BC153: - | BD153: 2 | BE153: 2 | BF153: - | BG153: - | BH153: - | BI153: 2 | BJ153: - | BK153: 2 | BL153: - | BM153: - | BN153: 2 | BO153: Improved
A154: Report | B154: Herbert of Liverpool (Training) Ltd | C154: 50132 | D154: Independent Learning Provider | E154: North West | F154: Liverpool | G154: Independent Learning Provider | H154: WBL - requires improvement | I154: 455920 | J154: 2015-02-24 | K154: 2015-02-27 | L154: Published | M154: 2015-04-08 | N154: 424335 | O154: 2013-10-25 | P154: 3 | Q154: 4 | R154: - | S154: - | T154: - | U154: - | V154: - | W154: 4 | X154: - | Y154: - | Z154: - | AA154: 4 | AB154: - | AC154: - | AD154: - | AE154: - | AF154: - | AG154: 4 | AH154: - | AI154: - | AJ154: - | AK154: 4 | AL154: - | AM154: - | AN154: - | AO154: - | AP154: - | AQ154: 4 | AR154: - | AS154: - | AT154: - | AU154: 4 | AV154: - | AW154: - | AX154: - | AY154: - | AZ154: - | BA154: 4 | BB154: - | BC154: - | BD154: - | BE154: 3 | BF154: - | BG154: - | BH154: - | BI154: - | BJ154: - | BK154: 3 | BL154: - | BM154: - | BN154: - | BO154: Declined
A155: Report | B155: The Training & Recruitment Partnership Limited | C155: 55053 | D155: Independent Learning Provider | E155: London | F155: Merton | G155: Independent Learning Provider | H155: Work Based Learning - full (national) | I155: 452983 | J155: 2015-02-23 | K155: 2015-02-27 | L155: Published | M155: 2015-04-01 | N155: 364781 | O155: 2010-11-19 | P155: 2 | Q155: 3 | R155: - | S155: - | T155: - | U155: - | V155: 3 | W155: 3 | X155: - | Y155: - | Z155: - | AA155: 3 | AB155: - | AC155: - | AD155: - | AE155: - | AF155: 3 | AG155: 3 | AH155: - | AI155: - | AJ155: - | AK155: 3 | AL155: - | AM155: - | AN155: - | AO155: - | AP155: 3 | AQ155: 3 | AR155: - | AS155: - | AT155: - | AU155: 3 | AV155: - | AW155: - | AX155: - | AY155: - | AZ155: 3 | BA155: 3 | BB155: - | BC155: - | BD155: - | BE155: 3 | BF155: - | BG155: - | BH155: - | BI155: - | BJ155: 3 | BK155: 3 | BL155: - | BM155: - | BN155: - | BO155: Declined
A156: Report | B156: Babington Business College Limited | C156: 50586 | D156: Independent Learning Provider | E156: East Midlands | F156: Derby | G156: Independent Learning Provider | H156: Work Based Learning - full (national) | I156: 452977 | J156: 2015-03-02 | K156: 2015-03-06 | L156: Published | M156: 2015-04-07 | N156: 375547 | O156: 2011-11-18 | P156: 2 | Q156: 2 | R156: - | S156: - | T156: - | U156: - | V156: - | W156: 2 | X156: - | Y156: - | Z156: - | AA156: 2 | AB156: - | AC156: - | AD156: - | AE156: - | AF156: - | AG156: 2 | AH156: - | AI156: - | AJ156: - | AK156: 2 | AL156: - | AM156: - | AN156: - | AO156: - | AP156: - | AQ156: 2 | AR156: - | AS156: - | AT156: - | AU156: 2 | AV156: - | AW156: - | AX156: - | AY156: - | AZ156: - | BA156: 2 | BB156: - | BC156: - | BD156: - | BE156: 2 | BF156: - | BG156: - | BH156: - | BI156: - | BJ156: - | BK156: 2 | BL156: - | BM156: - | BN156: - | BO156: Same
A157: Report | B157: Central Training Academy Limited | C157: 51072 | D157: Independent Learning Provider | E157: East of England | F157: Southend-On-Sea | G157: Independent Learning Provider | H157: Work Based Learning - full (national) | I157: 452978 | J157: 2015-03-02 | K157: 2015-03-06 | L157: Published | M157: 2015-04-14 | N157: 345936 | O157: 2010-05-28 | P157: 2 | Q157: 2 | R157: - | S157: - | T157: 2 | U157: 2 | V157: 3 | W157: 2 | X157: - | Y157: - | Z157: - | AA157: 2 | AB157: - | AC157: - | AD157: 2 | AE157: 2 | AF157: 3 | AG157: 2 | AH157: - | AI157: - | AJ157: - | AK157: 2 | AL157: - | AM157: - | AN157: 2 | AO157: 2 | AP157: 3 | AQ157: 2 | AR157: - | AS157: - | AT157: - | AU157: 2 | AV157: - | AW157: - | AX157: 2 | AY157: 2 | AZ157: 3 | BA157: 2 | BB157: - | BC157: - | BD157: - | BE157: 2 | BF157: - | BG157: - | BH157: 2 | BI157: 2 | BJ157: 2 | BK157: 2 | BL157: - | BM157: - | BN157: - | BO157: Same
A158: Report | B158: London Vesta College Limited | C158: 59157 | D158: Independent Learning Provider | E158: London | F158: Tower Hamlets | G158: Independent Learning Provider | H158: WBL - full (regional) | I158: 455606 | J158: 2015-03-04 | K158: 2015-03-06 | L158: Published | M158: 2015-04-14 | N158: NULL | O158: NULL | P158: NULL | Q158: 3 | R158: - | S158: - | T158: - | U158: - | V158: - | W158: 3 | X158: - | Y158: - | Z158: - | AA158: 2 | AB158: - | AC158: - | AD158: - | AE158: - | AF158: - | AG158: 2 | AH158: - | AI158: - | AJ158: - | AK158: 3 | AL158: - | AM158: - | AN158: - | AO158: - | AP158: - | AQ158: 3 | AR158: - | AS158: - | AT158: - | AU158: 3 | AV158: - | AW158: - | AX158: - | AY158: - | AZ158: - | BA158: 3 | BB158: - | BC158: - | BD158: - | BE158: 2 | BF158: - | BG158: - | BH158: - | BI158: - | BJ158: - | BK158: 2 | BL158: - | BM158: - | BN158: - | BO158: No previous inspection
A159: Report | B159: Webs Training Limited | C159: 55294 | D159: Independent Learning Provider | E159: East Midlands | F159: Nottinghamshire | G159: Independent Learning Provider | H159: WBL - full (regional) | I159: 452618 | J159: 2015-03-03 | K159: 2015-03-06 | L159: Published | M159: 2015-04-09 | N159: 362863 | O159: 2010-11-26 | P159: 1 | Q159: 2 | R159: - | S159: - | T159: - | U159: 2 | V159: 2 | W159: 2 | X159: - | Y159: - | Z159: - | AA159: 2 | AB159: - | AC159: - | AD159: - | AE159: 2 | AF159: 2 | AG159: 2 | AH159: - | AI159: - | AJ159: - | AK159: 2 | AL159: - | AM159: - | AN159: - | AO159: 2 | AP159: 2 | AQ159: 2 | AR159: - | AS159: - | AT159: - | AU159: 2 | AV159: - | AW159: - | AX159: - | AY159: 2 | AZ159: 2 | BA159: 2 | BB159: - | BC159: - | BD159: - | BE159: 2 | BF159: - | BG159: - | BH159: - | BI159: 2 | BJ159: 2 | BK159: 2 | BL159: - | BM159: - | BN159: - | BO159: Declined
A160: Report | B160: PERA Training Limited | C160: 59194 | D160: Independent Learning Provider | E160: East Midlands | F160: Leicestershire | G160: Independent Learning Provider | H160: Work Based Learning - full (national) | I160: 452632 | J160: 2015-03-09 | K160: 2015-03-13 | L160: Published | M160: 2015-04-17 | N160: NULL | O160: NULL | P160: NULL | Q160: 2 | R160: - | S160: - | T160: - | U160: - | V160: - | W160: 2 | X160: - | Y160: - | Z160: - | AA160: 2 | AB160: - | AC160: - | AD160: - | AE160: - | AF160: - | AG160: 2 | AH160: - | AI160: - | AJ160: - | AK160: 2 | AL160: - | AM160: - | AN160: - | AO160: - | AP160: - | AQ160: 2 | AR160: - | AS160: - | AT160: - | AU160: 2 | AV160: - | AW160: - | AX160: - | AY160: - | AZ160: - | BA160: 2 | BB160: - | BC160: - | BD160: - | BE160: 2 | BF160: - | BG160: - | BH160: - | BI160: - | BJ160: - | BK160: 2 | BL160: - | BM160: - | BN160: - | BO160: No previous inspection
A161: Report | B161: DV8 Training Ltd | C161: 51619 | D161: Independent Learning Provider | E161: London | F161: Waltham Forest | G161: Independent Learning Provider | H161: WBL - full (regional) | I161: 446600 | J161: 2015-03-09 | K161: 2015-03-13 | L161: Published | M161: 2015-04-22 | N161: 318277 | O161: 2008-01-25 | P161: 2 | Q161: 3 | R161: - | S161: - | T161: - | U161: 3 | V161: - | W161: - | X161: - | Y161: - | Z161: - | AA161: 3 | AB161: - | AC161: - | AD161: - | AE161: 3 | AF161: - | AG161: - | AH161: - | AI161: - | AJ161: - | AK161: 3 | AL161: - | AM161: - | AN161: - | AO161: 3 | AP161: - | AQ161: - | AR161: - | AS161: - | AT161: - | AU161: 3 | AV161: - | AW161: - | AX161: - | AY161: 3 | AZ161: - | BA161: - | BB161: - | BC161: - | BD161: - | BE161: 3 | BF161: - | BG161: - | BH161: - | BI161: 3 | BJ161: - | BK161: - | BL161: - | BM161: - | BN161: - | BO161: Declined
A162: Report | B162: Didac Limited | C162: 51550 | D162: Independent Learning Provider | E162: South West | F162: Bristol City of | G162: Independent Learning Provider | H162: Work Based Learning - full (national) | I162: 452601 | J162: 2015-03-10 | K162: 2015-03-13 | L162: Published | M162: 2015-04-21 | N162: 397718 | O162: 2012-06-14 | P162: 1 | Q162: 2 | R162: - | S162: - | T162: - | U162: 2 | V162: 2 | W162: 2 | X162: - | Y162: - | Z162: - | AA162: 3 | AB162: - | AC162: - | AD162: - | AE162: 2 | AF162: 2 | AG162: 3 | AH162: - | AI162: - | AJ162: - | AK162: 2 | AL162: - | AM162: - | AN162: - | AO162: 2 | AP162: 2 | AQ162: 2 | AR162: - | AS162: - | AT162: - | AU162: 2 | AV162: - | AW162: - | AX162: - | AY162: 2 | AZ162: 2 | BA162: 2 | BB162: - | BC162: - | BD162: - | BE162: 2 | BF162: - | BG162: - | BH162: - | BI162: 2 | BJ162: 2 | BK162: 2 | BL162: - | BM162: - | BN162: - | BO162: Declined
A163: Report | B163: Training Strategies Ltd. | C163: 59129 | D163: Independent Learning Provider | E163: North West | F163: Liverpool | G163: Independent Learning Provider | H163: WBL - requires improvement | I163: 433767 | J163: 2015-03-10 | K163: 2015-03-13 | L163: Published | M163: 2015-04-17 | N163: 423817 | O163: 2013-09-27 | P163: 3 | Q163: 2 | R163: - | S163: - | T163: - | U163: - | V163: 2 | W163: 2 | X163: - | Y163: - | Z163: - | AA163: 2 | AB163: - | AC163: - | AD163: - | AE163: - | AF163: 2 | AG163: 2 | AH163: - | AI163: - | AJ163: - | AK163: 2 | AL163: - | AM163: - | AN163: - | AO163: - | AP163: 2 | AQ163: 2 | AR163: - | AS163: - | AT163: - | AU163: 2 | AV163: - | AW163: - | AX163: - | AY163: - | AZ163: 2 | BA163: 2 | BB163: - | BC163: - | BD163: - | BE163: 3 | BF163: - | BG163: - | BH163: - | BI163: - | BJ163: 3 | BK163: 3 | BL163: - | BM163: - | BN163: - | BO163: Improved
A164: Report | B164: The Apprentice Academy Limited | C164: 59161 | D164: Independent Learning Provider | E164: North West | F164: Manchester | G164: Independent Learning Provider | H164: WBL - full (regional) | I164: 455607 | J164: 2015-03-10 | K164: 2015-03-13 | L164: Published | M164: 2015-04-15 | N164: NULL | O164: NULL | P164: NULL | Q164: 3 | R164: - | S164: - | T164: - | U164: - | V164: - | W164: 3 | X164: - | Y164: - | Z164: - | AA164: 3 | AB164: - | AC164: - | AD164: - | AE164: - | AF164: - | AG164: 3 | AH164: - | AI164: - | AJ164: - | AK164: 3 | AL164: - | AM164: - | AN164: - | AO164: - | AP164: - | AQ164: 3 | AR164: - | AS164: - | AT164: - | AU164: 3 | AV164: - | AW164: - | AX164: - | AY164: - | AZ164: - | BA164: 3 | BB164: - | BC164: - | BD164: - | BE164: 3 | BF164: - | BG164: - | BH164: - | BI164: - | BJ164: - | BK164: 3 | BL164: - | BM164: - | BN164: - | BO164: No previous inspection
A165: Report | B165: Health Education North East | C165: 59195 | D165: Independent Learning Provider | E165: North East, Yorkshire & Humber | F165: Newcastle Upon Tyne | G165: Independent Learning Provider | H165: WBL - full (regional) | I165: 452633 | J165: 2015-03-16 | K165: 2015-03-19 | L165: Published | M165: 2015-04-23 | N165: NULL | O165: NULL | P165: NULL | Q165: 2 | R165: - | S165: - | T165: - | U165: - | V165: 2 | W165: 2 | X165: - | Y165: - | Z165: - | AA165: 2 | AB165: - | AC165: - | AD165: - | AE165: - | AF165: 2 | AG165: 2 | AH165: - | AI165: - | AJ165: - | AK165: 2 | AL165: - | AM165: - | AN165: - | AO165: - | AP165: 2 | AQ165: 2 | AR165: - | AS165: - | AT165: - | AU165: 2 | AV165: - | AW165: - | AX165: - | AY165: - | AZ165: 2 | BA165: 2 | BB165: - | BC165: - | BD165: - | BE165: 2 | BF165: - | BG165: - | BH165: - | BI165: - | BJ165: 2 | BK165: 2 | BL165: - | BM165: - | BN165: - | BO165: No previous inspection
A166: Report | B166: Focus Training (SW) Limited | C166: 50126 | D166: Independent Learning Provider | E166: South West | F166: Plymouth | G166: Independent Learning Provider | H166: WBL - full (regional) | I166: 452974 | J166: 2015-03-16 | K166: 2015-03-20 | L166: Published | M166: 2015-05-01 | N166: 376243 | O166: 2011-09-30 | P166: 2 | Q166: 2 | R166: - | S166: - | T166: 2 | U166: - | V166: - | W166: 2 | X166: - | Y166: - | Z166: 2 | AA166: 2 | AB166: - | AC166: - | AD166: 2 | AE166: - | AF166: - | AG166: 2 | AH166: - | AI166: - | AJ166: 2 | AK166: 2 | AL166: - | AM166: - | AN166: 2 | AO166: - | AP166: - | AQ166: 2 | AR166: - | AS166: - | AT166: 2 | AU166: 2 | AV166: - | AW166: - | AX166: 2 | AY166: - | AZ166: - | BA166: 2 | BB166: - | BC166: - | BD166: 2 | BE166: 2 | BF166: - | BG166: - | BH166: 2 | BI166: - | BJ166: - | BK166: 2 | BL166: - | BM166: - | BN166: 2 | BO166: Same
A167: Report | B167: Weir Training Limited | C167: 55295 | D167: Independent Learning Provider | E167: South East | F167: Surrey | G167: Independent Learning Provider | H167: WBL - full (regional) | I167: 452984 | J167: 2015-03-16 | K167: 2015-03-20 | L167: Published | M167: 2015-04-23 | N167: 333250 | O167: 2009-07-23 | P167: 2 | Q167: 2 | R167: - | S167: - | T167: - | U167: - | V167: - | W167: 2 | X167: - | Y167: - | Z167: - | AA167: 2 | AB167: - | AC167: - | AD167: - | AE167: - | AF167: - | AG167: 2 | AH167: - | AI167: - | AJ167: - | AK167: 2 | AL167: - | AM167: - | AN167: - | AO167: - | AP167: - | AQ167: 2 | AR167: - | AS167: - | AT167: - | AU167: 2 | AV167: - | AW167: - | AX167: - | AY167: - | AZ167: - | BA167: 2 | BB167: - | BC167: - | BD167: - | BE167: 2 | BF167: - | BG167: - | BH167: - | BI167: - | BJ167: - | BK167: 2 | BL167: - | BM167: - | BN167: - | BO167: Same
A168: Report | B168: Astute Minds Ltd | C168: 59168 | D168: Independent Learning Provider | E168: London | F168: Camden | G168: Independent Learning Provider | H168: WBL - full (regional) | I168: 455611 | J168: 2015-03-24 | K168: 2015-03-27 | L168: Published | M168: 2015-04-27 | N168: NULL | O168: NULL | P168: NULL | Q168: 2 | R168: - | S168: - | T168: - | U168: - | V168: - | W168: 2 | X168: - | Y168: - | Z168: - | AA168: 3 | AB168: - | AC168: - | AD168: - | AE168: - | AF168: - | AG168: 3 | AH168: - | AI168: - | AJ168: - | AK168: 2 | AL168: - | AM168: - | AN168: - | AO168: - | AP168: - | AQ168: 2 | AR168: - | AS168: - | AT168: - | AU168: 2 | AV168: - | AW168: - | AX168: - | AY168: - | AZ168: - | BA168: 2 | BB168: - | BC168: - | BD168: - | BE168: 2 | BF168: - | BG168: - | BH168: - | BI168: - | BJ168: - | BK168: 2 | BL168: - | BM168: - | BN168: - | BO168: No previous inspection
A169: Report | B169: Hudson & Hughes Training Limited | C169: 52396 | D169: Independent Learning Provider | E169: South West | F169: Somerset | G169: Independent Learning Provider | H169: WBL - full (regional) | I169: 452604 | J169: 2015-03-24 | K169: 2015-03-27 | L169: Published | M169: 2015-04-30 | N169: 365986 | O169: 2011-05-27 | P169: 2 | Q169: 2 | R169: - | S169: - | T169: 2 | U169: - | V169: 2 | W169: 2 | X169: - | Y169: - | Z169: - | AA169: 2 | AB169: - | AC169: - | AD169: 2 | AE169: - | AF169: 2 | AG169: 2 | AH169: - | AI169: - | AJ169: - | AK169: 2 | AL169: - | AM169: - | AN169: 2 | AO169: - | AP169: 2 | AQ169: 2 | AR169: - | AS169: - | AT169: - | AU169: 2 | AV169: - | AW169: - | AX169: 2 | AY169: - | AZ169: 2 | BA169: 2 | BB169: - | BC169: - | BD169: - | BE169: 3 | BF169: - | BG169: - | BH169: 3 | BI169: - | BJ169: 3 | BK169: 3 | BL169: - | BM169: - | BN169: - | BO169: Same
A170: Report | B170: Midstream (West Lancs) Ltd | C170: 139245 | D170: Independent Specialist College | E170: North West | F170: Lancashire | G170: Special College | H170: ISC - full inspection | I170: 446689 | J170: 2014-09-16 | K170: 2014-09-18 | L170: Published | M170: 2014-10-21 | N170: NULL | O170: NULL | P170: NULL | Q170: 4 | R170: - | S170: - | T170: - | U170: 4 | V170: 4 | W170: - | X170: - | Y170: - | Z170: - | AA170: 3 | AB170: - | AC170: - | AD170: - | AE170: 3 | AF170: 3 | AG170: - | AH170: - | AI170: - | AJ170: - | AK170: 4 | AL170: - | AM170: - | AN170: - | AO170: 4 | AP170: 4 | AQ170: - | AR170: - | AS170: - | AT170: - | AU170: 4 | AV170: - | AW170: - | AX170: - | AY170: 4 | AZ170: 4 | BA170: - | BB170: - | BC170: - | BD170: - | BE170: 3 | BF170: - | BG170: - | BH170: - | BI170: 3 | BJ170: 3 | BK170: - | BL170: - | BM170: - | BN170: - | BO170: No previous inspection
A171: Report | B171: Orpheus Centre | C171: 131950 | D171: Independent Specialist College | E171: South East | F171: Surrey | G171: Special College | H171: ISC - full inspection | I171: 446687 | J171: 2014-10-21 | K171: 2014-10-22 | L171: Published | M171: 2014-12-03 | N171: 317375 | O171: 2007-06-08 | P171: 4 | Q171: 3 | R171: - | S171: - | T171: - | U171: 3 | V171: 3 | W171: - | X171: - | Y171: - | Z171: - | AA171: 3 | AB171: - | AC171: - | AD171: - | AE171: 3 | AF171: 3 | AG171: - | AH171: - | AI171: - | AJ171: - | AK171: 3 | AL171: - | AM171: - | AN171: - | AO171: 3 | AP171: 3 | AQ171: - | AR171: - | AS171: - | AT171: - | AU171: 3 | AV171: - | AW171: - | AX171: - | AY171: 3 | AZ171: 3 | BA171: - | BB171: - | BC171: - | BD171: - | BE171: 3 | BF171: - | BG171: - | BH171: - | BI171: 3 | BJ171: 3 | BK171: - | BL171: - | BM171: - | BN171: - | BO171: Improved
A172: Report | B172: Communication Specialist College - Doncaster | C172: 131869 | D172: Independent Specialist College | E172: North East, Yorkshire & Humber | F172: Doncaster | G172: Special College | H172: ISC - full inspection | I172: 429190 | J172: 2014-11-11 | K172: 2014-11-13 | L172: Published | M172: 2014-12-16 | N172: 316974 | O172: 2007-10-05 | P172: 2 | Q172: 2 | R172: - | S172: - | T172: - | U172: 2 | V172: 2 | W172: - | X172: - | Y172: - | Z172: - | AA172: 2 | AB172: - | AC172: - | AD172: - | AE172: 2 | AF172: 2 | AG172: - | AH172: - | AI172: - | AJ172: - | AK172: 2 | AL172: - | AM172: - | AN172: - | AO172: 2 | AP172: 2 | AQ172: - | AR172: - | AS172: - | AT172: - | AU172: 2 | AV172: - | AW172: - | AX172: - | AY172: 2 | AZ172: 2 | BA172: - | BB172: - | BC172: - | BD172: - | BE172: 2 | BF172: - | BG172: - | BH172: - | BI172: 2 | BJ172: 2 | BK172: - | BL172: - | BM172: - | BN172: - | BO172: Same
A173: Report | B173: Area 51 Education Ltd | C173: 139243 | D173: Independent Specialist College | E173: London | F173: Haringey | G173: Special College | H173: ISC - full inspection | I173: 446688 | J173: 2014-11-12 | K173: 2014-11-14 | L173: Published | M173: 2014-12-19 | N173: NULL | O173: NULL | P173: NULL | Q173: 3 | R173: - | S173: - | T173: - | U173: - | V173: 3 | W173: - | X173: - | Y173: - | Z173: - | AA173: 3 | AB173: - | AC173: - | AD173: - | AE173: - | AF173: 3 | AG173: - | AH173: - | AI173: - | AJ173: - | AK173: 3 | AL173: - | AM173: - | AN173: - | AO173: - | AP173: 3 | AQ173: - | AR173: - | AS173: - | AT173: - | AU173: 3 | AV173: - | AW173: - | AX173: - | AY173: - | AZ173: 3 | BA173: - | BB173: - | BC173: - | BD173: - | BE173: 3 | BF173: - | BG173: - | BH173: - | BI173: - | BJ173: 3 | BK173: - | BL173: - | BM173: - | BN173: - | BO173: No previous inspection
A174: Report | B174: Sheiling College | C174: 139249 | D174: Independent Specialist College | E174: South West | F174: Dorset | G174: Special College | H174: ISC - full inspection | I174: 451325 | J174: 2014-12-02 | K174: 2014-12-03 | L174: Published | M174: 2015-01-12 | N174: NULL | O174: NULL | P174: NULL | Q174: 2 | R174: - | S174: - | T174: - | U174: - | V174: 2 | W174: - | X174: - | Y174: - | Z174: - | AA174: 2 | AB174: - | AC174: - | AD174: - | AE174: - | AF174: 2 | AG174: - | AH174: - | AI174: - | AJ174: - | AK174: 2 | AL174: - | AM174: - | AN174: - | AO174: - | AP174: 2 | AQ174: - | AR174: - | AS174: - | AT174: - | AU174: 2 | AV174: - | AW174: - | AX174: - | AY174: - | AZ174: 2 | BA174: - | BB174: - | BC174: - | BD174: - | BE174: 2 | BF174: - | BG174: - | BH174: - | BI174: - | BJ174: 2 | BK174: - | BL174: - | BM174: - | BN174: - | BO174: No previous inspection
A175: Report | B175: Strathmore College | C175: 132021 | D175: Independent Specialist College | E175: West Midlands | F175: Stoke-On-Trent | G175: Special College | H175: ISC - requires improvement | I175: 446033 | J175: 2015-03-25 | K175: 2015-03-27 | L175: Published | M175: 2015-04-29 | N175: 429195 | O175: 2014-02-27 | P175: 3 | Q175: 2 | R175: - | S175: - | T175: - | U175: 2 | V175: 2 | W175: - | X175: - | Y175: - | Z175: - | AA175: 2 | AB175: - | AC175: - | AD175: - | AE175: 2 | AF175: 2 | AG175: - | AH175: - | AI175: - | AJ175: - | AK175: 2 | AL175: - | AM175: - | AN175: - | AO175: 2 | AP175: 2 | AQ175: - | AR175: - | AS175: - | AT175: - | AU175: 2 | AV175: - | AW175: - | AX175: - | AY175: 2 | AZ175: 2 | BA175: - | BB175: - | BC175: - | BD175: - | BE175: 2 | BF175: - | BG175: - | BH175: - | BI175: 2 | BJ175: 2 | BK175: - | BL175: - | BM175: - | BN175: - | BO175: Improved
A176: Report | B176: Newham Sixth Form College | C176: 130452 | D176: Sixth Form College | E176: London | F176: Newham | G176: Further Education | H176: SFC - full inspection | I176: 452156 | J176: 2014-09-15 | K176: 2014-09-19 | L176: Published | M176: 2014-10-24 | N176: 330823 | O176: 2009-02-06 | P176: 2 | Q176: 3 | R176: - | S176: - | T176: - | U176: 3 | V176: 3 | W176: - | X176: - | Y176: - | Z176: - | AA176: 3 | AB176: - | AC176: - | AD176: - | AE176: 3 | AF176: 3 | AG176: - | AH176: - | AI176: - | AJ176: - | AK176: 3 | AL176: - | AM176: - | AN176: - | AO176: 3 | AP176: 3 | AQ176: - | AR176: - | AS176: - | AT176: - | AU176: 3 | AV176: - | AW176: - | AX176: - | AY176: 3 | AZ176: 3 | BA176: - | BB176: - | BC176: - | BD176: - | BE176: 2 | BF176: - | BG176: - | BH176: - | BI176: 2 | BJ176: 2 | BK176: - | BL176: - | BM176: - | BN176: - | BO176: Declined
A177: Report | B177: King George V College | C177: 130492 | D177: Sixth Form College | E177: North West | F177: Sefton | G177: Further Education | H177: SFC - full inspection | I177: 446535 | J177: 2014-09-16 | K177: 2014-09-19 | L177: Published | M177: 2014-10-23 | N177: 385365 | O177: 2012-03-22 | P177: 2 | Q177: 4 | R177: - | S177: - | T177: - | U177: 4 | V177: 4 | W177: - | X177: - | Y177: - | Z177: - | AA177: 4 | AB177: - | AC177: - | AD177: - | AE177: 4 | AF177: 4 | AG177: - | AH177: - | AI177: - | AJ177: - | AK177: 4 | AL177: - | AM177: - | AN177: - | AO177: 4 | AP177: 4 | AQ177: - | AR177: - | AS177: - | AT177: - | AU177: 4 | AV177: - | AW177: - | AX177: - | AY177: 4 | AZ177: 4 | BA177: - | BB177: - | BC177: - | BD177: - | BE177: 2 | BF177: - | BG177: - | BH177: - | BI177: 2 | BJ177: 2 | BK177: - | BL177: - | BM177: - | BN177: - | BO177: Declined
A178: Report | B178: Joseph Chamberlain Sixth Form College | C178: 130468 | D178: Sixth Form College | E178: West Midlands | F178: Birmingham | G178: Further Education | H178: FE College - requires improvement | I178: 430285 | J178: 2014-09-16 | K178: 2014-09-19 | L178: Published | M178: 2014-10-23 | N178: 421160 | O178: 2013-04-19 | P178: 3 | Q178: 2 | R178: - | S178: - | T178: - | U178: 2 | V178: 2 | W178: - | X178: 2 | Y178: - | Z178: - | AA178: 2 | AB178: - | AC178: - | AD178: - | AE178: 2 | AF178: 2 | AG178: - | AH178: 2 | AI178: - | AJ178: - | AK178: 2 | AL178: - | AM178: - | AN178: - | AO178: 2 | AP178: 2 | AQ178: - | AR178: 2 | AS178: - | AT178: - | AU178: 1 | AV178: - | AW178: - | AX178: - | AY178: 1 | AZ178: 1 | BA178: - | BB178: 1 | BC178: - | BD178: - | BE178: 2 | BF178: - | BG178: - | BH178: - | BI178: 2 | BJ178: 2 | BK178: - | BL178: 2 | BM178: - | BN178: - | BO178: Improved
A179: Report | B179: Hartlepool Sixth Form College | C179: 130568 | D179: Sixth Form College | E179: North East, Yorkshire & Humber | F179: Hartlepool | G179: Further Education | H179: SFC - full inspection | I179: 446538 | J179: 2014-09-23 | K179: 2014-09-26 | L179: Published | M179: 2014-11-13 | N179: 345834 | O179: 2010-05-21 | P179: 2 | Q179: 4 | R179: - | S179: - | T179: - | U179: 4 | V179: 4 | W179: - | X179: - | Y179: - | Z179: - | AA179: 4 | AB179: - | AC179: - | AD179: - | AE179: 4 | AF179: 4 | AG179: - | AH179: - | AI179: - | AJ179: - | AK179: 3 | AL179: - | AM179: - | AN179: - | AO179: 3 | AP179: 3 | AQ179: - | AR179: - | AS179: - | AT179: - | AU179: 4 | AV179: - | AW179: - | AX179: - | AY179: 4 | AZ179: 4 | BA179: - | BB179: - | BC179: - | BD179: - | BE179: 2 | BF179: - | BG179: - | BH179: - | BI179: 2 | BJ179: 2 | BK179: - | BL179: - | BM179: - | BN179: - | BO179: Declined
A180: Report | B180: SEEVIC College | C180: 130681 | D180: Sixth Form College | E180: East of England | F180: Essex | G180: Further Education | H180: FE College - requires improvement | I180: 430276 | J180: 2014-09-29 | K180: 2014-10-03 | L180: Published | M180: 2014-11-04 | N180: 409324 | O180: 2013-04-19 | P180: 3 | Q180: 3 | R180: - | S180: - | T180: 2 | U180: 3 | V180: 3 | W180: 2 | X180: - | Y180: - | Z180: - | AA180: 3 | AB180: - | AC180: - | AD180: 2 | AE180: 3 | AF180: 3 | AG180: 2 | AH180: - | AI180: - | AJ180: - | AK180: 3 | AL180: - | AM180: - | AN180: 2 | AO180: 3 | AP180: 3 | AQ180: 2 | AR180: - | AS180: - | AT180: - | AU180: 3 | AV180: - | AW180: - | AX180: 2 | AY180: 3 | AZ180: 3 | BA180: 2 | BB180: - | BC180: - | BD180: - | BE180: 3 | BF180: - | BG180: - | BH180: 3 | BI180: 3 | BJ180: 3 | BK180: 3 | BL180: - | BM180: - | BN180: - | BO180: Same
A181: Report | B181: Bilborough College | C181: 130787 | D181: Sixth Form College | E181: East Midlands | F181: Nottingham | G181: Further Education | H181: SFC - full inspection | I181: 452491 | J181: 2015-01-20 | K181: 2015-01-23 | L181: Published | M181: 2015-03-06 | N181: 331246 | O181: 2009-03-25 | P181: 2 | Q181: 3 | R181: - | S181: - | T181: - | U181: 3 | V181: - | W181: - | X181: - | Y181: - | Z181: - | AA181: 3 | AB181: - | AC181: - | AD181: - | AE181: 3 | AF181: - | AG181: - | AH181: - | AI181: - | AJ181: - | AK181: 3 | AL181: - | AM181: - | AN181: - | AO181: 3 | AP181: - | AQ181: - | AR181: - | AS181: - | AT181: - | AU181: 3 | AV181: - | AW181: - | AX181: - | AY181: 3 | AZ181: - | BA181: - | BB181: - | BC181: - | BD181: - | BE181: 2 | BF181: - | BG181: - | BH181: - | BI181: 2 | BJ181: - | BK181: - | BL181: - | BM181: - | BN181: - | BO181: Declined
A182: Report | B182: New College Telford | C182: 130801 | D182: Sixth Form College | E182: West Midlands | F182: Telford and Wrekin | G182: Further Education | H182: SFC - full inspection | I182: 452492 | J182: 2015-02-10 | K182: 2015-02-13 | L182: Published | M182: 2015-03-19 | N182: 408451 | O182: 2013-03-22 | P182: 2 | Q182: 3 | R182: - | S182: - | T182: - | U182: 3 | V182: 3 | W182: - | X182: - | Y182: - | Z182: - | AA182: 3 | AB182: - | AC182: - | AD182: - | AE182: 3 | AF182: 3 | AG182: - | AH182: - | AI182: - | AJ182: - | AK182: 3 | AL182: - | AM182: - | AN182: - | AO182: 3 | AP182: 3 | AQ182: - | AR182: - | AS182: - | AT182: - | AU182: 3 | AV182: - | AW182: - | AX182: - | AY182: 3 | AZ182: 3 | BA182: - | BB182: - | BC182: - | BD182: - | BE182: 2 | BF182: - | BG182: - | BH182: - | BI182: 2 | BJ182: 2 | BK182: - | BL182: - | BM182: - | BN182: - | BO182: Declined
A183: Report | B183: Prior Pursglove College | C183: 130575 | D183: Sixth Form College | E183: North East, Yorkshire & Humber | F183: Redcar and Cleveland | G183: Further Education | H183: SFC - reinspection | I183: 446543 | J183: 2015-03-03 | K183: 2015-03-06 | L183: Published | M183: 2015-04-09 | N183: 423378 | O183: 2013-12-06 | P183: 4 | Q183: 2 | R183: - | S183: - | T183: - | U183: 2 | V183: 2 | W183: 2 | X183: - | Y183: - | Z183: - | AA183: 2 | AB183: - | AC183: - | AD183: - | AE183: 2 | AF183: 2 | AG183: 2 | AH183: - | AI183: - | AJ183: - | AK183: 2 | AL183: - | AM183: - | AN183: - | AO183: 2 | AP183: 2 | AQ183: 2 | AR183: - | AS183: - | AT183: - | AU183: 2 | AV183: - | AW183: - | AX183: - | AY183: 2 | AZ183: 2 | BA183: 2 | BB183: - | BC183: - | BD183: - | BE183: 2 | BF183: - | BG183: - | BH183: - | BI183: 2 | BJ183: 2 | BK183: 2 | BL183: - | BM183: - | BN183: - | BO183: Improved
A184: Report | B184: Strode's College | C184: 130833 | D184: Sixth Form College | E184: South East | F184: Surrey | G184: Further Education | H184: SFC - full inspection | I184: 452545 | J184: 2015-03-10 | K184: 2015-03-13 | L184: Published | M184: 2015-04-24 | N184: 332979 | O184: 2009-05-15 | P184: 2 | Q184: 3 | R184: - | S184: - | T184: - | U184: 3 | V184: - | W184: - | X184: - | Y184: - | Z184: - | AA184: 3 | AB184: - | AC184: - | AD184: - | AE184: 3 | AF184: - | AG184: - | AH184: - | AI184: - | AJ184: - | AK184: 3 | AL184: - | AM184: - | AN184: - | AO184: 3 | AP184: - | AQ184: - | AR184: - | AS184: - | AT184: - | AU184: 3 | AV184: - | AW184: - | AX184: - | AY184: 3 | AZ184: - | BA184: - | BB184: - | BC184: - | BD184: - | BE184: 3 | BF184: - | BG184: - | BH184: - | BI184: 3 | BJ184: - | BK184: - | BL184: - | BM184: - | BN184: - | BO184: Declined
A185: =IF(C185 <> "", HYPERLINK(CONCATENATE("http://reports.ofsted.gov.uk/inspection-reports/find-inspection-report/provider/ELS/",C185),"Report"),"") -> Report | B185: Kingston Maurward College | C185: 130655 | D185: Specialist Further Education | E185: South West | F185: Dorset | G185: Further Education | H185: FE College - requires improvement | I185: 430267 | J185: 2014-09-30 | K185: 2014-10-03 | L185: Published | M185: 2014-11-07 | N185: 410603 | O185: 2013-05-03 | P185: 3 | Q185: 2 | R185: - | S185: - | T185: - | U185: 2 | V185: 2 | W185: 2 | X185: - | Y185: - | Z185: - | AA185: 2 | AB185: - | AC185: - | AD185: - | AE185: 2 | AF185: 2 | AG185: 2 | AH185: - | AI185: - | AJ185: - | AK185: 2 | AL185: - | AM185: - | AN185: - | AO185: 2 | AP185: 2 | AQ185: 2 | AR185: - | AS185: - | AT185: - | AU185: 3 | AV185: - | AW185: - | AX185: - | AY185: 3 | AZ185: 3 | BA185: 2 | BB185: - | BC185: - | BD185: - | BE185: 2 | BF185: - | BG185: - | BH185: - | BI185: 2 | BJ185: 2 | BK185: 2 | BL185: - | BM185: - | BN185: - | BO185: Improved
A186: Report | B186: Hartpury College | C186: 130687 | D186: Specialist Further Education | E186: South West | F186: Gloucestershire | G186: Further Education | H186: FE College - full inspection | I186: 452550 | J186: 2015-03-17 | K186: 2015-03-20 | L186: Published | M186: 2015-04-29 | N186: 345455 | O186: 2009-11-27 | P186: 1 | Q186: 2 | R186: - | S186: - | T186: - | U186: 2 | V186: 2 | W186: 2 | X186: - | Y186: - | Z186: - | AA186: 2 | AB186: - | AC186: - | AD186: - | AE186: 2 | AF186: 2 | AG186: 2 | AH186: - | AI186: - | AJ186: - | AK186: 2 | AL186: - | AM186: - | AN186: - | AO186: 2 | AP186: 2 | AQ186: 2 | AR186: - | AS186: - | AT186: - | AU186: 2 | AV186: - | AW186: - | AX186: - | AY186: 2 | AZ186: 2 | BA186: 2 | BB186: - | BC186: - | BD186: - | BE186: 2 | BF186: - | BG186: - | BH186: - | BI186: 2 | BJ186: 2 | BK186: 2 | BL186: - | BM186: - | BN186: - | BO186: Declined

Sheet Pivot SSA (hidden)
A3: Count of Inspection Number | B3: Column Labels
A4: Row Labels | B4: 1 | C4: 2 | D4: 3 | E4: 4 | F4: Grand Total
A5: Agriculture, Horticulture and Animal Care | C5: 8 | D5: 3 | F5: 11
A6: Arts, Media and Publishing | B6: 10 | C6: 27 | D6: 10 | F6: 47
A7: Business, Administration and Law | B7: 4 | C7: 68 | D7: 52 | E7: 8 | F7: 132
A8: Community Development | D8: 1 | F8: 1
A9: Construction, Planning and the Built Environment | C9: 10 | D9: 9 | E9: 3 | F9: 22
A10: Education and Training | D10: 3 | F10: 3
A11: Engineering and Manufacturing Technologies | B11: 7 | C11: 25 | D11: 24 | E11: 2 | F11: 58
A12: Family Learning | C12: 2 | D12: 1 | F12: 3
A13: Health, Public Services and Care | B13: 10 | C13: 50 | D13: 38 | E13: 1 | F13: 99
A14: Humanities | B14: 2 | F14: 2
A15: Information and Communication Technology | B15: 4 | C15: 18 | D15: 6 | E15: 1 | F15: 29
A16: Languages, Literature and Culture | B16: 1 | C16: 2 | D16: 8 | E16: 2 | F16: 13
A17: Leisure, Travel and Tourism | B17: 6 | C17: 15 | D17: 3 | F17: 24
A18: Preparation for Life and Work | B18: 5 | C18: 55 | D18: 48 | E18: 15 | F18: 123
A19: Retail and Commercial Enterprise | B19: 2 | C19: 29 | D19: 14 | E19: 4 | F19: 49
A20: Science and Mathematics | B20: 1 | C20: 12 | D20: 24 | E20: 4 | F20: 41
A21: Social Sciences | C21: 3 | D21: 3 | F21: 6
A22: Grand Total | B22: 52 | C22: 324 | D22: 247 | E22: 40 | F22: 663
A26: Count of Inspection Number | B26: Column Labels
A27: Row Labels | B27: 1 | C27: 2 | D27: 3 | E27: 4 | F27: Grand Total
A28: Accounting and Finance | B28: 2 | C28: 7 | D28: 6 | E28: 1 | F28: 16
A29: Administration | B29: 1 | C29: 31 | D29: 20 | E29: 1 | F29: 53
A30: Agriculture | C30: 1 | D30: 2 | F30: 3
A31: Animal Care and Veterinary Science | C31: 3 | F31: 3
A32: Beauty Therapy | C32: 2 | F32: 2
A33: Building and Construction | C33: 5 | D33: 7 | E33: 3 | F33: 15
A34: Building Services | C34: 2 | F34: 2
A35: Business | B35: 1 | C35: 3 | D35: 4 | F35: 8
A36: Business Management | C36: 19 | D36: 19 | E36: 2 | F36: 40
A37: Communications Technology | C37: 1 | F37: 1
A38: Community Development | D38: 1 | F38: 1
A39: Community Learning | C39: 2 | D39: 1 | E39: 1 | F39: 4
A40: Construction Crafts | C40: 3 | D40: 2 | F40: 5
A41: Customer service | C41: 4 | E41: 3 | F41: 7
A42: Early Years and Playwork | B42: 4 | C42: 14 | D42: 12 | F42: 30
A43: Employability Training | B43: 1 | C43: 14 | D43: 10 | E43: 3 | F43: 28
A44: Engineering | B44: 4 | C44: 9 | D44: 9 | F44: 22
A45: English | B45: 1 | C45: 1 | D45: 7 | E45: 1 | F45: 10
A46: Environmental Conservation | D46: 1 | F46: 1
A47: Equine Studies | C47: 1 | F47: 1
A48: ESOL | B48: 1 | C48: 5 | D48: 2 | E48: 1 | F48: 9
A49: Family Learning | C49: 2 | D49: 1 | F49: 3
A50: Forestry | C50: 1 | F50: 1
A51: Foundation English | C51: 9 | D51: 16 | E51: 4 | F51: 29
A52: Foundation English and Mathematics | C52: 9 | D52: 3 | F52: 12
A53: Foundation mathematics | C53: 9 | D53: 12 | E53: 5 | F53: 26
A54: Hairdressing | C54: 4 | D54: 1 | E54: 3 | F54: 8
A55: Hairdressing and beauty therapy | B55: 1 | C55: 5 | D55: 8 | E55: 1 | F55: 15
A56: Health and Social Care | B56: 4 | C56: 33 | D56: 22 | E56: 1 | F56: 60
A57: Health, Public Services and Care | C57: 1 | F57: 1
A58: History | B58: 1 | F58: 1
A59: Horticulture | C59: 1 | F59: 1
A60: Horticulture and Forestry | C60: 1 | F60: 1
A61: Hospitality and Catering | C61: 9 | D61: 2 | F61: 11
A62: ICT for practitioners | B62: 3 | C62: 7 | D62: 2 | E62: 1 | F62: 13
A63: ICT for Users | B63: 1 | C63: 10 | D63: 4 | F63: 15
A64: Independent living and leisure skills | B64: 3 | C64: 7 | D64: 4 | E64: 1 | F64: 15
A65: Law and Legal Services | C65: 3 | D65: 2 | E65: 1 | F65: 6
A66: Manufacturing Technologies | B66: 1 | C66: 12 | D66: 7 | F66: 20
A67: Marketing and Sales | C67: 1 | D67: 1 | F67: 2
A68: Mathematics and Statistics | B68: 1 | C68: 4 | D68: 12 | E68: 1 | F68: 18
A69: Media and Communication | B69: 1 | C69: 3 | D69: 3 | F69: 7
A70: Modern foreign languages | C70: 1 | D70: 1 | E70: 1 | F70: 3
A71: Motor vehicle | B71: 1 | C71: 4 | D71: 5 | F71: 10
A72: Nursing and Dental Health | B72: 1 | D72: 2 | F72: 3
A73: Performing Arts | B73: 3 | C73: 10 | D73: 1 | F73: 14
A74: Psychology | C74: 2 | F74: 2
A75: Public Services | B75: 2 | C75: 6 | D75: 2 | F75: 10
A76: Retailing and Wholesaling | C76: 4 | D76: 1 | F76: 5
A77: Science | C77: 7 | D77: 12 | E77: 2 | F77: 21
A78: Science and Mathematics | E78: 1 | F78: 1
A79: Service Enterprises | C79: 1 | F79: 1
A80: Social Sciences | C80: 1 | D80: 3 | F80: 4
A81: Sociology and Social Policy | C81: 1 | F81: 1
A82: Sport | B82: 3 | C82: 8 | D82: 2 | F82: 13
A83: Sport, Leisure and Recreation | B83: 1 | C83: 3 | F83: 4
A84: Teaching and Lecturing | D84: 2 | F84: 2
A85: Theology and Religious Studies | B85: 1 | F85: 1
A86: Training to Provide Learning Support | D86: 1 | F86: 1
A87: Transportation operations and maintenance | B87: 1 | D87: 3 | E87: 2 | F87: 6
A88: Travel and Tourism | B88: 1 | D88: 1 | F88: 2
A89: Visual Arts | B89: 6 | C89: 14 | D89: 6 | F89: 26
A90: Warehousing and Distribution | B90: 1 | C90: 4 | D90: 2 | F90: 7
A91: Grand Total | B91: 52 | C91: 324 | D91: 247 | E91: 40 | F91: 663

Sheet Sector subject area data
A1: Sector subject area judgements for further education and skills providers inspected since 1 September 2014
A3: Report | B3: Provider Name | C3: URN | D3: Local authority | E3: Ofsted region | F3: Provider type | G3: Inspection Type | H3: Inspection Number | I3: Inspection Start Date | J3: Inspection End Date | K3: Inspection Status | L3: Inspection Report Published | M3: SSA 1 code | N3: SSA 1 descriptor | O3: SSA 2 code | P3: SSA 2 descriptor | Q3: Outcome
A4: =IF(C4 <> "", HYPERLINK(CONCATENATE("http://reports.ofsted.gov.uk/inspection-reports/find-inspection-report/provider/ELS/",C4),"Report"),"") -> Report | B4: The Training & Recruitment Partnership Limited | C4: 55053 | D4: Merton | E4: London | F4: Independent Learning Provider | G4: Work Based Learning - full (national) | H4: 452983 | I4: 2015-02-23 | J4: 2015-02-27 | K4: Published | L4: 2015-04-01 | M4: 1 | N4: Health, Public Services and Care | O4: 300 | P4: Health and Social Care | Q4: 3
A5: Report | B5: The Training & Recruitment Partnership Limited | C5: 55053 | D5: Merton | E5: London | F5: Independent Learning Provider | G5: Work Based Learning - full (national) | H5: 452983 | I5: 2015-02-23 | J5: 2015-02-27 | K5: Published | L5: 2015-04-01 | M5: 1 | N5: Health, Public Services and Care | O5: 500 | P5: Early Years and Playwork | Q5: 3
A6: Report | B6: The Training & Recruitment Partnership Limited | C6: 55053 | D6: Merton | E6: London | F6: Independent Learning Provider | G6: Work Based Learning - full (national) | H6: 452983 | I6: 2015-02-23 | J6: 2015-02-27 | K6: Published | L6: 2015-04-01 | M6: 15 | N6: Business, Administration and Law | O6: 600 | P6: Business | Q6: 3
A7: Report | B7: The Training & Recruitment Partnership Limited | C7: 55053 | D7: Merton | E7: London | F7: Independent Learning Provider | G7: Work Based Learning - full (national) | H7: 452983 | I7: 2015-02-23 | J7: 2015-02-27 | K7: Published | L7: 2015-04-01 | M7: 5 | N7: Construction, Planning and the Built Environment | O7: 200 | P7: Building and Construction | Q7: 3
A8: Report | B8: Targeted Training Projects Limited | C8: 54744 | D8: Dudley | E8: West Midlands | F8: Independent Learning Provider | G8: WBL - full (regional) | H8: 446606 | I8: 2014-12-08 | J8: 2014-12-12 | K8: Published | L8: 2015-01-27 | M8: 5 | N8: Construction, Planning and the Built Environment | O8: 200 | P8: Building and Construction | Q8: 4
A9: Report | B9: Solihull College | C9: 130481 | D9: Solihull | E9: West Midlands | F9: General Further Education/Tertiary College | G9: FE College - full inspection | H9: 452547 | I9: 2015-03-09 | J9: 2015-03-13 | K9: Published | L9: 2015-04-21 | M9: 3 | N9: Agriculture, Horticulture and Animal Care | O9: 300 | P9: Animal Care and Veterinary Science | Q9: 2
A10: Report | B10: Solihull College | C10: 130481 | D10: Solihull | E10: West Midlands | F10: General Further Education/Tertiary College | G10: FE College - full inspection | H10: 452547 | I10: 2015-03-09 | J10: 2015-03-13 | K10: Published | L10: 2015-04-21 | M10: 6 | N10: Information and Communication Technology | O10: 200 | P10: ICT for Users | Q10: 2
A11: Report | B11: Solihull College | C11: 130481 | D11: Solihull | E11: West Midlands | F11: General Further Education/Tertiary College | G11: FE College - full inspection | H11: 452547 | I11: 2015-03-09 | J11: 2015-03-13 | K11: Published | L11: 2015-04-21 | M11: 15 | N11: Business, Administration and Law | O11: 200 | P11: Administration | Q11: 2
A12: Report | B12: Solihull College | C12: 130481 | D12: Solihull | E12: West Midlands | F12: General Further Education/Tertiary College | G12: FE College - full inspection | H12: 452547 | I12: 2015-03-09 | J12: 2015-03-13 | K12: Published | L12: 2015-04-21 | M12: 1 | N12: Health, Public Services and Care | O12: 300 | P12: Health and Social Care | Q12: 2
A13: Report | B13: Solihull College | C13: 130481 | D13: Solihull | E13: West Midlands | F13: General Further Education/Tertiary College | G13: FE College - full inspection | H13: 452547 | I13: 2015-03-09 | J13: 2015-03-13 | K13: Published | L13: 2015-04-21 | M13: 3 | N13: Agriculture, Horticulture and Animal Care | O13: 200 | P13: Horticulture and Forestry | Q13: 2
A14: Report | B14: Solihull College | C14: 130481 | D14: Solihull | E14: West Midlands | F14: General Further Education/Tertiary College | G14: FE College - full inspection | H14: 452547 | I14: 2015-03-09 | J14: 2015-03-13 | K14: Published | L14: 2015-04-21 | M14: 6 | N14: Information and Communication Technology | O14: 100 | P14: ICT for practitioners | Q14: 2
A15: Report | B15: Solihull College | C15: 130481 | D15: Solihull | E15: West Midlands | F15: General Further Education/Tertiary College | G15: FE College - full inspection | H15: 452547 | I15: 2015-03-09 | J15: 2015-03-13 | K15: Published | L15: 2015-04-21 | M15: 9 | N15: Arts, Media and Publishing | O15: 200 | P15: Visual Arts | Q15: 3
A16: Report | B16: Solihull College | C16: 130481 | D16: Solihull | E16: West Midlands | F16: General Further Education/Tertiary College | G16: FE College - full inspection | H16: 452547 | I16: 2015-03-09 | J16: 2015-03-13 | K16: Published | L16: 2015-04-21 | M16: 14 | N16: Preparation for Life and Work | O16: 112 | P16: Foundation English | Q16: 3
A17: Report | B17: The Maltings College | C17: 139433 | D17: Calderdale | E17: North East, Yorkshire & Humber | F17: Free school-16-19 | G17: 16-19 academy - full inspection | H17: 452498 | I17: 2015-01-13 | J17: 2015-01-16 | K17: Published | L17: 2015-02-27 | M17: 7 | N17: Retail and Commercial Enterprise | O17: 301 | P17: Hairdressing and beauty therapy | Q17: 3
A18: Report | B18: Northern School of Contemporary Dance | C18: 133840 | D18: Leeds | E18: North East, Yorkshire & Humber | F18: Higher Education Institution | G18: FE in HE - full inspection | H18: 444690 | I18: 2014-11-11 | J18: 2014-11-14 | K18: Published | L18: 2014-12-17 | M18: 9 | N18: Arts, Media and Publishing | O18: 100 | P18: Performing Arts | Q18: 1
A19: Report | B19: The Academy Hair & Beauty Ltd | C19: 54803 | D19: North Yorkshire | E19: North East, Yorkshire & Humber | F19: Independent Learning Provider | G19: WBL - full (regional) | H19: 452617 | I19: 2014-12-09 | J19: 2014-12-11 | K19: Published | L19: 2015-01-16 | M19: 7 | N19: Retail and Commercial Enterprise | O19: 301 | P19: Hairdressing and beauty therapy | Q19: 1
A20: Report | B20: North Yorkshire County Council | C20: 50229 | D20: North Yorkshire | E20: North East, Yorkshire & Humber | F20: Community Learning and Skills | G20: ACL - requires improvement | H20: 446660 | I20: 2014-11-03 | J20: 2014-11-07 | K20: Published | L20: 2014-12-10 | M20: 1 | N20: Health, Public Services and Care | O20: 300 | P20: Health and Social Care | Q20: 3
A21: Report | B21: North Yorkshire County Council | C21: 50229 | D21: North Yorkshire | E21: North East, Yorkshire & Humber | F21: Community Learning and Skills | G21: ACL - requires improvement | H21: 446660 | I21: 2014-11-03 | J21: 2014-11-07 | K21: Published | L21: 2014-12-10 | M21: 1 | N21: Health, Public Services and Care | O21: 500 | P21: Early Years and Playwork | Q21: 3
A22: Report | B22: Astute Minds Ltd | C22: 59168 | D22: Camden | E22: London | F22: Independent Learning Provider | G22: WBL - full (regional) | H22: 455611 | I22: 2015-03-24 | J22: 2015-03-27 | K22: Published | L22: 2015-04-27 | M22: 15 | N22: Business, Administration and Law | O22: 200 | P22: Administration | Q22: 2
A23: Report | B23: The Mary Ward Centre (AE Centre) | C23: 130404 | D23: Camden | E23: London | F23: Not applicable | G23: Adult and Community - full (regional) | H23: 452634 | I23: 2015-01-19 | J23: 2015-01-23 | K23: Published | L23: 2015-02-27 | M23: 14 | N23: Preparation for Life and Work | O23: 103 | P23: ESOL | Q23: 2
A24: Report | B24: The Mary Ward Centre (AE Centre) | C24: 130404 | D24: Camden | E24: London | F24: Not applicable | G24: Adult and Community - full (regional) | H24: 452634 | I24: 2015-01-19 | J24: 2015-01-23 | K24: Published | L24: 2015-02-27 | M24: 9 | N24: Arts, Media and Publishing | O24: 200 | P24: Visual Arts | Q24: 2
A25: Report | B25: LeSoCo | C25: 130415 | D25: Lewisham | E25: London | F25: General Further Education/Tertiary College | G25: FE College - reinspection | H25: 440233 | I25: 2015-02-02 | J25: 2015-02-06 | K25: Published | L25: 2015-04-01 | M25: 6 | N25: Information and Communication Technology | O25: 200 | P25: ICT for Users | Q25: 3
A26: Report | B26: LeSoCo | C26: 130415 | D26: Lewisham | E26: London | F26: General Further Education/Tertiary College | G26: FE College - reinspection | H26: 440233 | I26: 2015-02-02 | J26: 2015-02-06 | K26: Published | L26: 2015-04-01 | M26: 14 | N26: Preparation for Life and Work | O26: 112 | P26: Foundation English | Q26: 4
A27: Report | B27: LeSoCo | C27: 130415 | D27: Lewisham | E27: London | F27: General Further Education/Tertiary College | G27: FE College - reinspection | H27: 440233 | I27: 2015-02-02 | J27: 2015-02-06 | K27: Published | L27: 2015-04-01 | M27: 1 | N27: Health, Public Services and Care | O27: 300 | P27: Health and Social Care | Q27: 3
A28: Report | B28: LeSoCo | C28: 130415 | D28: Lewisham | E28: London | F28: General Further Education/Tertiary College | G28: FE College - reinspection | H28: 440233 | I28: 2015-02-02 | J28: 2015-02-06 | K28: Published | L28: 2015-04-01 | M28: 5 | N28: Construction, Planning and the Built Environment | O28: 202 | P28: Construction Crafts | Q28: 3
A29: Report | B29: LeSoCo | C29: 130415 | D29: Lewisham | E29: London | F29: General Further Education/Tertiary College | G29: FE College - reinspection | H29: 440233 | I29: 2015-02-02 | J29: 2015-02-06 | K29: Published | L29: 2015-04-01 | M29: 7 | N29: Retail and Commercial Enterprise | O29: 400 | P29: Hospitality and Catering | Q29: 2
A30: Report | B30: LeSoCo | C30: 130415 | D30: Lewisham | E30: London | F30: General Further Education/Tertiary College | G30: FE College - reinspection | H30: 440233 | I30: 2015-02-02 | J30: 2015-02-06 | K30: Published | L30: 2015-04-01 | M30: 9 | N30: Arts, Media and Publishing | O30: 100 | P30: Performing Arts | Q30: 2
A31: Report | B31: LeSoCo | C31: 130415 | D31: Lewisham | E31: London | F31: General Further Education/Tertiary College | G31: FE College - reinspection | H31: 440233 | I31: 2015-02-02 | J31: 2015-02-06 | K31: Published | L31: 2015-04-01 | M31: 14 | N31: Preparation for Life and Work | O31: 113 | P31: Foundation mathematics | Q31: 4
A32: Report | B32: Avanta Enterprise Limited | C32: 59173 | D32: Westminster | E32: London | F32: Independent Learning Provider | G32: Work Based Learning - full (national) | H32: 452630 | I32: 2015-02-02 | J32: 2015-02-06 | K32: Published | L32: 2015-03-16 | M32: 15 | N32: Business, Administration and Law | O32: 200 | P32: Administration | Q32: 2
A33: Report | B33: Avanta Enterprise Limited | C33: 59173 | D33: Westminster | E33: London | F33: Independent Learning Provider | G33: Work Based Learning - full (national) | H33: 452630 | I33: 2015-02-02 | J33: 2015-02-06 | K33: Published | L33: 2015-03-16 | M33: 1 | N33: Health, Public Services and Care | O33: 300 | P33: Health and Social Care | Q33: 2
A34: Report | B34: Avanta Enterprise Limited | C34: 59173 | D34: Westminster | E34: London | F34: Independent Learning Provider | G34: Work Based Learning - full (national) | H34: 452630 | I34: 2015-02-02 | J34: 2015-02-06 | K34: Published | L34: 2015-03-16 | M34: 14 | N34: Preparation for Life and Work | O34: 204 | P34: Employability Training | Q34: 2
A35: Report | B35: Avanta Enterprise Limited | C35: 59173 | D35: Westminster | E35: London | F35: Independent Learning Provider | G35: Work Based Learning - full (national) | H35: 452630 | I35: 2015-02-02 | J35: 2015-02-06 | K35: Published | L35: 2015-03-16 | M35: 15 | N35: Business, Administration and Law | O35: 300 | P35: Business Management | Q35: 2
A36: Report | B36: Hounslow Adult and Community Education | C36: 53132 | D36: Hounslow | E36: London | F36: Community Learning and Skills | G36: Adult and Community - full (regional) | H36: 446662 | I36: 2014-12-01 | J36: 2014-12-05 | K36: Published | L36: 2015-01-14 | M36: 7 | N36: Retail and Commercial Enterprise | O36: 302 | P36: Hairdressing | Q36: 2
A37: Report | B37: Hounslow Adult and Community Education | C37: 53132 | D37: Hounslow | E37: London | F37: Community Learning and Skills | G37: Adult and Community - full (regional) | H37: 446662 | I37: 2014-12-01 | J37: 2014-12-05 | K37: Published | L37: 2015-01-14 | M37: 9 | N37: Arts, Media and Publishing | O37: 200 | P37: Visual Arts | Q37: 2
A38: Report | B38: Hounslow Adult and Community Education | C38: 53132 | D38: Hounslow | E38: London | F38: Community Learning and Skills | G38: Adult and Community - full (regional) | H38: 446662 | I38: 2014-12-01 | J38: 2014-12-05 | K38: Published | L38: 2015-01-14 | M38: 14 | N38: Preparation for Life and Work | O38: 103 | P38: ESOL | Q38: 2
A39: Report | B39: Hounslow Adult and Community Education | C39: 53132 | D39: Hounslow | E39: London | F39: Community Learning and Skills | G39: Adult and Community - full (regional) | H39: 446662 | I39: 2014-12-01 | J39: 2014-12-05 | K39: Published | L39: 2015-01-14 | M39: 7 | N39: Retail and Commercial Enterprise | O39: 303 | P39: Beauty Therapy | Q39: 2
A40: Report | B40: DV8 Training Ltd | C40: 51619 | D40: Waltham Forest | E40: London | F40: Independent Learning Provider | G40: WBL - full (regional) | H40: 446600 | I40: 2015-03-09 | J40: 2015-03-13 | K40: Published | L40: 2015-04-22 | M40: 9 | N40: Arts, Media and Publishing | O40: 300 | P40: Media and Communication | Q40: 3
A41: Report | B41: DV8 Training Ltd | C41: 51619 | D41: Waltham Forest | E41: London | F41: Independent Learning Provider | G41: WBL - full (regional) | H41: 446600 | I41: 2015-03-09 | J41: 2015-03-13 | K41: Published | L41: 2015-04-22 | M41: 14 | N41: Preparation for Life and Work | O41: 114 | P41: Foundation English and Mathematics | Q41: 3
A42: Report | B42: DV8 Training Ltd | C42: 51619 | D42: Waltham Forest | E42: London | F42: Independent Learning Provider | G42: WBL - full (regional) | H42: 446600 | I42: 2015-03-09 | J42: 2015-03-13 | K42: Published | L42: 2015-04-22 | M42: 9 | N42: Arts, Media and Publishing | O42: 100 | P42: Performing Arts | Q42: 3
A43: Report | B43: Waltham Forest College | C43: 130456 | D43: Waltham Forest | E43: London | F43: General Further Education/Tertiary College | G43: FE College - requires improvement | H43: 430281 | I43: 2014-10-13 | J43: 2014-10-17 | K43: Published | L43: 2014-11-21 | M43: 7 | N43: Retail and Commercial Enterprise | O43: 400 | P43: Hospitality and Catering | Q43: 2
A44: Report | B44: Waltham Forest College | C44: 130456 | D44: Waltham Forest | E44: London | F44: General Further Education/Tertiary College | G44: FE College - requires improvement | H44: 430281 | I44: 2014-10-13 | J44: 2014-10-17 | K44: Published | L44: 2014-11-21 | M44: 15 | N44: Business, Administration and Law | O44: 500 | P44: Law and Legal Services | Q44: 2
A45: Report | B45: Kingston University | C45: 133825 | D45: Kingston Upon Thames | E45: London | F45: Higher Education Institution | G45: FE in HE - full inspection | H45: 446542 | I45: 2015-01-20 | J45: 2015-01-23 | K45: Published | L45: 2015-03-02 | M45: 9 | N45: Arts, Media and Publishing | O45: 200 | P45: Visual Arts | Q45: 1
A46: Report | B46: Alpha Building Services Engineering Ltd | C46: 59178 | D46: Newham | E46: London | F46: Independent Learning Provider | G46: WBL - full (regional) | H46: 446621 | I46: 2014-11-24 | J46: 2014-11-28 | K46: Published | L46: 2015-02-18 | M46: 5 | N46: Construction, Planning and the Built Environment | O46: 200 | P46: Building and Construction | Q46: 4
A47: Report | B47: Alpha Building Services Engineering Ltd | C47: 59178 | D47: Newham | E47: London | F47: Independent Learning Provider | G47: WBL - full (regional) | H47: 446621 | I47: 2014-11-24 | J47: 2014-11-28 | K47: Published | L47: 2015-02-18 | M47: 4 | N47: Engineering and Manufacturing Technologies | O47: 400 | P47: Transportation operations and maintenance | Q47: 3
A48: Report | B48: Newham Sixth Form College | C48: 130452 | D48: Newham | E48: London | F48: Sixth Form College | G48: SFC - full inspection | H48: 452156 | I48: 2014-09-15 | J48: 2014-09-19 | K48: Published | L48: 2014-10-24 | M48: 2 | N48: Science and Mathematics | O48: 200 | P48: Mathematics and Statistics | Q48: 3
A49: Report | B49: Newham Sixth Form College | C49: 130452 | D49: Newham | E49: London | F49: Sixth Form College | G49: SFC - full inspection | H49: 452156 | I49: 2014-09-15 | J49: 2014-09-19 | K49: Published | L49: 2014-10-24 | M49: 2 | N49: Science and Mathematics | O49: 100 | P49: Science | Q49: 3
A50: Report | B50: Newham Sixth Form College | C50: 130452 | D50: Newham | E50: London | F50: Sixth Form College | G50: SFC - full inspection | H50: 452156 | I50: 2014-09-15 | J50: 2014-09-19 | K50: Published | L50: 2014-10-24 | M50: 6 | N50: Information and Communication Technology | O50: 100 | P50: ICT for practitioners | Q50: 2
A51: Report | B51: Newham Sixth Form College | C51: 130452 | D51: Newham | E51: London | F51: Sixth Form College | G51: SFC - full inspection | H51: 452156 | I51: 2014-09-15 | J51: 2014-09-19 | K51: Published | L51: 2014-10-24 | M51: 15 | N51: Business, Administration and Law | O51: 300 | P51: Business Management | Q51: 3
A52: Report | B52: Newham Sixth Form College | C52: 130452 | D52: Newham | E52: London | F52: Sixth Form College | G52: SFC - full inspection | H52: 452156 | I52: 2014-09-15 | J52: 2014-09-19 | K52: Published | L52: 2014-10-24 | M52: 9 | N52: Arts, Media and Publishing | O52: 200 | P52: Visual Arts | Q52: 2
A53: Report | B53: Newham Sixth Form College | C53: 130452 | D53: Newham | E53: London | F53: Sixth Form College | G53: SFC - full inspection | H53: 452156 | I53: 2014-09-15 | J53: 2014-09-19 | K53: Published | L53: 2014-10-24 | M53: 12 | N53: Languages, Literature and Culture | O53: 100 | P53: English | Q53: 3
A54: Report | B54: Newham Sixth Form College | C54: 130452 | D54: Newham | E54: London | F54: Sixth Form College | G54: SFC - full inspection | H54: 452156 | I54: 2014-09-15 | J54: 2014-09-19 | K54: Published | L54: 2014-10-24 | M54: 15 | N54: Business, Administration and Law | O54: 100 | P54: Accounting and Finance | Q54: 3
A55: Report | B55: Newham Sixth Form College | C55: 130452 | D55: Newham | E55: London | F55: Sixth Form College | G55: SFC - full inspection | H55: 452156 | I55: 2014-09-15 | J55: 2014-09-19 | K55: Published | L55: 2014-10-24 | M55: 6 | N55: Information and Communication Technology | O55: 200 | P55: ICT for Users | Q55: 2
A56: Report | B56: Newham Sixth Form College | C56: 130452 | D56: Newham | E56: London | F56: Sixth Form College | G56: SFC - full inspection | H56: 452156 | I56: 2014-09-15 | J56: 2014-09-19 | K56: Published | L56: 2014-10-24 | M56: 9 | N56: Arts, Media and Publishing | O56: 300 | P56: Media and Communication | Q56: 2
A57: Report | B57: Hereward College of Further Education | C57: 130474 | D57: Coventry | E57: West Midlands | F57: General Further Education/Tertiary College | G57: FE College - requires improvement | H57: 452778 | I57: 2015-01-27 | J57: 2015-01-30 | K57: Published | L57: 2015-03-06 | M57: 14 | N57: Preparation for Life and Work | O57: 108 | P57: Independent living and leisure skills | Q57: 2
A58: Report | B58: Hereward College of Further Education | C58: 130474 | D58: Coventry | E58: West Midlands | F58: General Further Education/Tertiary College | G58: FE College - requires improvement | H58: 452778 | I58: 2015-01-27 | J58: 2015-01-30 | K58: Published | L58: 2015-03-06 | M58: 1 | N58: Health, Public Services and Care | O58: 300 | P58: Health and Social Care | Q58: 3
A59: Report | B59: JBC Computer Training Limited | C59: 59153 | D59: Coventry | E59: West Midlands | F59: Independent Learning Provider | G59: WBL - full (regional) | H59: 446618 | I59: 2014-09-17 | J59: 2014-09-19 | K59: Published | L59: 2014-10-23 | M59: 6 | N59: Information and Communication Technology | O59: 100 | P59: ICT for practitioners | Q59: 2
A60: Report | B60: Sandwell Training Association Limited | C60: 54271 | D60: Sandwell | E60: West Midlands | F60: Community Learning and Skills | G60: WBL - full (regional) | H60: 452616 | I60: 2015-02-16 | J60: 2015-02-20 | K60: Published | L60: 2015-03-20 | M60: 1 | N60: Health, Public Services and Care | O60: 300 | P60: Health and Social Care | Q60: 3
A61: =IF(C61 <> "", HYPERLINK(CONCATENATE("http://reports.ofsted.gov.uk/inspection-reports/find-inspection-report/provider/ELS/",C61),"Report"),"") -> Report | B61: Sandwell Training Association Limited | C61: 54271 | D61: Sandwell | E61: West Midlands | F61: Community Learning and Skills | G61: WBL - full (regional) | H61: 452616 | I61: 2015-02-16 | J61: 2015-02-20 | K61: Published | L61: 2015-03-20 | M61: 15 | N61: Business, Administration and Law | O61: 200 | P61: Administration | Q61: 3
A62: Report | B62: Sandwell Training Association Limited | C62: 54271 | D62: Sandwell | E62: West Midlands | F62: Community Learning and Skills | G62: WBL - full (regional) | H62: 452616 | I62: 2015-02-16 | J62: 2015-02-20 | K62: Published | L62: 2015-03-20 | M62: 15 | N62: Business, Administration and Law | O62: 300 | P62: Business Management | Q62: 3
A63: Report | B63: Stem Academy | C63: 139793 | D63: Islington | E63: London | F63: Free school-16-19 | G63: 16-19 academy - full inspection | H63: 452500 | I63: 2015-01-27 | J63: 2015-01-30 | K63: Published | L63: 2015-03-26 | M63: 2 | N63: Science and Mathematics | O63: 0 | P63: Science and Mathematics | Q63: 4
A64: Report | B64: Stem Academy | C64: 139793 | D64: Islington | E64: London | F64: Free school-16-19 | G64: 16-19 academy - full inspection | H64: 452500 | I64: 2015-01-27 | J64: 2015-01-30 | K64: Published | L64: 2015-03-26 | M64: 2 | N64: Science and Mathematics | O64: 100 | P64: Science | Q64: 4
A65: Report | B65: Stem Academy | C65: 139793 | D65: Islington | E65: London | F65: Free school-16-19 | G65: 16-19 academy - full inspection | H65: 452500 | I65: 2015-01-27 | J65: 2015-01-30 | K65: Published | L65: 2015-03-26 | M65: 6 | N65: Information and Communication Technology | O65: 100 | P65: ICT for practitioners | Q65: 4
A66: Report | B66: London Learning Consortium Community Interest Company | C66: 58611 | D66: Croydon | E66: London | F66: Community Learning and Skills | G66: WBL - requires improvement | H66: 430254 | I66: 2014-11-24 | J66: 2014-11-28 | K66: Published | L66: 2015-01-13 | M66: 1 | N66: Health, Public Services and Care | O66: 300 | P66: Health and Social Care | Q66: 2
A67: Report | B67: London Learning Consortium Community Interest Company | C67: 58611 | D67: Croydon | E67: London | F67: Community Learning and Skills | G67: WBL - requires improvement | H67: 430254 | I67: 2014-11-24 | J67: 2014-11-28 | K67: Published | L67: 2015-01-13 | M67: 5 | N67: Construction, Planning and the Built Environment | O67: 200 | P67: Building and Construction | Q67: 2
A68: Report | B68: London Learning Consortium Community Interest Company | C68: 58611 | D68: Croydon | E68: London | F68: Community Learning and Skills | G68: WBL - requires improvement | H68: 430254 | I68: 2014-11-24 | J68: 2014-11-28 | K68: Published | L68: 2015-01-13 | M68: 15 | N68: Business, Administration and Law | O68: 200 | P68: Administration | Q68: 2
A69: Report | B69: London Learning Consortium Community Interest Company | C69: 58611 | D69: Croydon | E69: London | F69: Community Learning and Skills | G69: WBL - requires improvement | H69: 430254 | I69: 2014-11-24 | J69: 2014-11-28 | K69: Published | L69: 2015-01-13 | M69: 14 | N69: Preparation for Life and Work | O69: 114 | P69: Foundation English and Mathematics | Q69: 2
A70: Report | B70: Haringey London Borough Council | C70: 53124 | D70: Haringey | E70: London | F70: Community Learning and Skills | G70: ACL - requires improvement | H70: 430294 | I70: 2014-11-10 | J70: 2014-11-14 | K70: Published | L70: 2014-12-19 | M70: 6 | N70: Information and Communication Technology | O70: 200 | P70: ICT for Users | Q70: 3
A71: Report | B71: Haringey London Borough Council | C71: 53124 | D71: Haringey | E71: London | F71: Community Learning and Skills | G71: ACL - requires improvement | H71: 430294 | I71: 2014-11-10 | J71: 2014-11-14 | K71: Published | L71: 2014-12-19 | M71: 14 | N71: Preparation for Life and Work | O71: 114 | P71: Foundation English and Mathematics | Q71: 3
A72: Report | B72: Haringey London Borough Council | C72: 53124 | D72: Haringey | E72: London | F72: Community Learning and Skills | G72: ACL - requires improvement | H72: 430294 | I72: 2014-11-10 | J72: 2014-11-14 | K72: Published | L72: 2014-12-19 | M72: 14 | N72: Preparation for Life and Work | O72: 103 | P72: ESOL | Q72: 2
A73: Report | B73: Area 51 Education Ltd | C73: 139243 | D73: Haringey | E73: London | F73: Unknown | G73: ISC - full inspection | H73: 446688 | I73: 2014-11-12 | J73: 2014-11-14 | K73: Published | L73: 2014-12-19 | M73: 14 | N73: Preparation for Life and Work | O73: 108 | P73: Independent living and leisure skills | Q73: 3
A74: Report | B74: Rocket Training Limited | C74: 54158 | D74: Liverpool | E74: North West (EY & ELS) | F74: Independent Learning Provider | G74: WBL - requires improvement | H74: 446603 | I74: 2014-11-24 | J74: 2014-11-28 | K74: Published | L74: 2014-12-24 | M74: 15 | N74: Business, Administration and Law | O74: 200 | P74: Administration | Q74: 3
A75: Report | B75: Rocket Training Limited | C75: 54158 | D75: Liverpool | E75: North West (EY & ELS) | F75: Independent Learning Provider | G75: WBL - requires improvement | H75: 446603 | I75: 2014-11-24 | J75: 2014-11-28 | K75: Published | L75: 2014-12-24 | M75: 14 | N75: Preparation for Life and Work | O75: 204 | P75: Employability Training | Q75: 2
A76: Report | B76: The Communiversity | C76: 58913 | D76: Liverpool | E76: North West (EY & ELS) | F76: Community Learning and Skills | G76: Adult and Community - full (regional) | H76: 455664 | I76: 2015-03-10 | J76: 2015-03-12 | K76: Published | L76: 2015-04-16 | M76: 1 | N76: Health, Public Services and Care | O76: 500 | P76: Early Years and Playwork | Q76: 3
A77: Report | B77: Herbert of Liverpool (Training) Ltd | C77: 50132 | D77: Liverpool | E77: North West (EY & ELS) | F77: Independent Learning Provider | G77: WBL - requires improvement | H77: 455920 | I77: 2015-02-24 | J77: 2015-02-27 | K77: Published | L77: 2015-04-08 | M77: 7 | N77: Retail and Commercial Enterprise | O77: 302 | P77: Hairdressing | Q77: 4
A78: Report | B78: Training Strategies Ltd. | C78: 59129 | D78: Liverpool | E78: North West (EY & ELS) | F78: Independent Learning Provider | G78: WBL - requires improvement | H78: 433767 | I78: 2015-03-10 | J78: 2015-03-13 | K78: Published | L78: 2015-04-17 | M78: 1 | N78: Health, Public Services and Care | O78: 400 | P78: Public Services | Q78: 2
A79: Report | B79: Training Strategies Ltd. | C79: 59129 | D79: Liverpool | E79: North West (EY & ELS) | F79: Independent Learning Provider | G79: WBL - requires improvement | H79: 433767 | I79: 2015-03-10 | J79: 2015-03-13 | K79: Published | L79: 2015-04-17 | M79: 1 | N79: Health, Public Services and Care | O79: 300 | P79: Health and Social Care | Q79: 2
A80: Report | B80: Training Strategies Ltd. | C80: 59129 | D80: Liverpool | E80: North West (EY & ELS) | F80: Independent Learning Provider | G80: WBL - requires improvement | H80: 433767 | I80: 2015-03-10 | J80: 2015-03-13 | K80: Published | L80: 2015-04-17 | M80: 1 | N80: Health, Public Services and Care | O80: 500 | P80: Early Years and Playwork | Q80: 2
A81: Report | B81: Training Strategies Ltd. | C81: 59129 | D81: Liverpool | E81: North West (EY & ELS) | F81: Independent Learning Provider | G81: WBL - requires improvement | H81: 433767 | I81: 2015-03-10 | J81: 2015-03-13 | K81: Published | L81: 2015-04-17 | M81: 15 | N81: Business, Administration and Law | O81: 300 | P81: Business Management | Q81: 3
A82: Report | B82: Team Enterprises Limited | C82: 58515 | D82: St. Helens | E82: North West (EY & ELS) | F82: Independent Learning Provider | G82: WBL - full (regional) | H82: 445777 | I82: 2014-10-27 | J82: 2014-10-31 | K82: Published | L82: 2014-12-09 | M82: 13 | N82: Education and Training | O82: 100 | P82: Teaching and Lecturing | Q82: 3
A83: Report | B83: Team Enterprises Limited | C83: 58515 | D83: St. Helens | E83: North West (EY & ELS) | F83: Independent Learning Provider | G83: WBL - full (regional) | H83: 445777 | I83: 2014-10-27 | J83: 2014-10-31 | K83: Published | L83: 2014-12-09 | M83: 1 | N83: Health, Public Services and Care | O83: 300 | P83: Health and Social Care | Q83: 3
A84: Report | B84: Team Enterprises Limited | C84: 58515 | D84: St. Helens | E84: North West (EY & ELS) | F84: Independent Learning Provider | G84: WBL - full (regional) | H84: 445777 | I84: 2014-10-27 | J84: 2014-10-31 | K84: Published | L84: 2014-12-09 | M84: 14 | N84: Preparation for Life and Work | O84: 204 | P84: Employability Training | Q84: 3
A85: Report | B85: Team Enterprises Limited | C85: 58515 | D85: St. Helens | E85: North West (EY & ELS) | F85: Independent Learning Provider | G85: WBL - full (regional) | H85: 445777 | I85: 2014-10-27 | J85: 2014-10-31 | K85: Published | L85: 2014-12-09 | M85: 15 | N85: Business, Administration and Law | O85: 300 | P85: Business Management | Q85: 3
A86: Report | B86: Joseph Chamberlain Sixth Form College | C86: 130468 | D86: Birmingham | E86: West Midlands | F86: Sixth Form College | G86: FE College - requires improvement | H86: 430285 | I86: 2014-09-16 | J86: 2014-09-19 | K86: Published | L86: 2014-10-23 | M86: 2 | N86: Science and Mathematics | O86: 100 | P86: Science | Q86: 2
A87: Report | B87: Joseph Chamberlain Sixth Form College | C87: 130468 | D87: Birmingham | E87: West Midlands | F87: Sixth Form College | G87: FE College - requires improvement | H87: 430285 | I87: 2014-09-16 | J87: 2014-09-19 | K87: Published | L87: 2014-10-23 | M87: 10 | N87: Humanities | O87: 100 | P87: History | Q87: 1
A88: Report | B88: Joseph Chamberlain Sixth Form College | C88: 130468 | D88: Birmingham | E88: West Midlands | F88: Sixth Form College | G88: FE College - requires improvement | H88: 430285 | I88: 2014-09-16 | J88: 2014-09-19 | K88: Published | L88: 2014-10-23 | M88: 10 | N88: Humanities | O88: 400 | P88: Theology and Religious Studies | Q88: 1
A89: Report | B89: Joseph Chamberlain Sixth Form College | C89: 130468 | D89: Birmingham | E89: West Midlands | F89: Sixth Form College | G89: FE College - requires improvement | H89: 430285 | I89: 2014-09-16 | J89: 2014-09-19 | K89: Published | L89: 2014-10-23 | M89: 6 | N89: Information and Communication Technology | O89: 100 | P89: ICT for practitioners | Q89: 2
A90: Report | B90: Joseph Chamberlain Sixth Form College | C90: 130468 | D90: Birmingham | E90: West Midlands | F90: Sixth Form College | G90: FE College - requires improvement | H90: 430285 | I90: 2014-09-16 | J90: 2014-09-19 | K90: Published | L90: 2014-10-23 | M90: 2 | N90: Science and Mathematics | O90: 200 | P90: Mathematics and Statistics | Q90: 1
A91: Report | B91: Succead Limited | C91: 59159 | D91: Birmingham | E91: West Midlands | F91: Independent Learning Provider | G91: Work Based Learning - full (national) | H91: 452693 | I91: 2014-10-27 | J91: 2014-10-31 | K91: Published | L91: 2014-11-21 | M91: 15 | N91: Business, Administration and Law | O91: 300 | P91: Business Management | Q91: 3
A92: Report | B92: Succead Limited | C92: 59159 | D92: Birmingham | E92: West Midlands | F92: Independent Learning Provider | G92: Work Based Learning - full (national) | H92: 452693 | I92: 2014-10-27 | J92: 2014-10-31 | K92: Published | L92: 2014-11-21 | M92: 4 | N92: Engineering and Manufacturing Technologies | O92: 200 | P92: Manufacturing Technologies | Q92: 3
A93: Report | B93: Succead Limited | C93: 59159 | D93: Birmingham | E93: West Midlands | F93: Independent Learning Provider | G93: Work Based Learning - full (national) | H93: 452693 | I93: 2014-10-27 | J93: 2014-10-31 | K93: Published | L93: 2014-11-21 | M93: 15 | N93: Business, Administration and Law | O93: 200 | P93: Administration | Q93: 3
A94: Report | B94: G B Training (UK) Ltd | C94: 51944 | D94: Birmingham | E94: West Midlands | F94: Independent Learning Provider | G94: WBL - full (regional) | H94: 452603 | I94: 2015-01-19 | J94: 2015-01-23 | K94: Published | L94: 2015-03-03 | M94: 15 | N94: Business, Administration and Law | O94: 300 | P94: Business Management | Q94: 2
A95: Report | B95: G B Training (UK) Ltd | C95: 51944 | D95: Birmingham | E95: West Midlands | F95: Independent Learning Provider | G95: WBL - full (regional) | H95: 452603 | I95: 2015-01-19 | J95: 2015-01-23 | K95: Published | L95: 2015-03-03 | M95: 1 | N95: Health, Public Services and Care | O95: 300 | P95: Health and Social Care | Q95: 2
A96: Report | B96: G B Training (UK) Ltd | C96: 51944 | D96: Birmingham | E96: West Midlands | F96: Independent Learning Provider | G96: WBL - full (regional) | H96: 452603 | I96: 2015-01-19 | J96: 2015-01-23 | K96: Published | L96: 2015-03-03 | M96: 15 | N96: Business, Administration and Law | O96: 200 | P96: Administration | Q96: 2
A97: Report | B97: G B Training (UK) Ltd | C97: 51944 | D97: Birmingham | E97: West Midlands | F97: Independent Learning Provider | G97: WBL - full (regional) | H97: 452603 | I97: 2015-01-19 | J97: 2015-01-23 | K97: Published | L97: 2015-03-03 | M97: 6 | N97: Information and Communication Technology | O97: 100 | P97: ICT for practitioners | Q97: 3
A98: Report | B98: G B Training (UK) Ltd | C98: 51944 | D98: Birmingham | E98: West Midlands | F98: Independent Learning Provider | G98: WBL - full (regional) | H98: 452603 | I98: 2015-01-19 | J98: 2015-01-23 | K98: Published | L98: 2015-03-03 | M98: 7 | N98: Retail and Commercial Enterprise | O98: 400 | P98: Hospitality and Catering | Q98: 2
A99: Report | B99: Sunderland City Metropolitan Borough Council | C99: 54666 | D99: Sunderland | E99: North East, Yorkshire & Humber | F99: Community Learning and Skills | G99: Adult and Community - full (regional) | H99: 446667 | I99: 2014-11-24 | J99: 2014-11-28 | K99: Published | L99: 2014-12-24 | M99: 1 | N99: Health, Public Services and Care | O99: 300 | P99: Health and Social Care | Q99: 2
A100: Report | B100: Sunderland City Metropolitan Borough Council | C100: 54666 | D100: Sunderland | E100: North East, Yorkshire & Humber | F100: Community Learning and Skills | G100: Adult and Community - full (regional) | H100: 446667 | I100: 2014-11-24 | J100: 2014-11-28 | K100: Published | L100: 2014-12-24 | M100: 6 | N100: Information and Communication Technology | O100: 200 | P100: ICT for Users | Q100: 2
A101: Report | B101: Sunderland City Metropolitan Borough Council | C101: 54666 | D101: Sunderland | E101: North East, Yorkshire & Humber | F101: Community Learning and Skills | G101: Adult and Community - full (regional) | H101: 446667 | I101: 2014-11-24 | J101: 2014-11-28 | K101: Published | L101: 2014-12-24 | M101: 17 | N101: Family Learning | O101: 0 | P101: Family Learning | Q101: 2
A102: Report | B102: Barnfield College | C102: 130599 | D102: Luton | E102: East of England | F102: General Further Education/Tertiary College | G102: FE College - full inspection | H102: 447145 | I102: 2014-11-17 | J102: 2014-11-21 | K102: Published | L102: 2015-01-08 | M102: 14 | N102: Preparation for Life and Work | O102: 113 | P102: Foundation mathematics | Q102: 4
A103: Report | B103: Barnfield College | C103: 130599 | D103: Luton | E103: East of England | F103: General Further Education/Tertiary College | G103: FE College - full inspection | H103: 447145 | I103: 2014-11-17 | J103: 2014-11-21 | K103: Published | L103: 2015-01-08 | M103: 5 | N103: Construction, Planning and the Built Environment | O103: 200 | P103: Building and Construction | Q103: 4
A104: Report | B104: Barnfield College | C104: 130599 | D104: Luton | E104: East of England | F104: General Further Education/Tertiary College | G104: FE College - full inspection | H104: 447145 | I104: 2014-11-17 | J104: 2014-11-21 | K104: Published | L104: 2015-01-08 | M104: 7 | N104: Retail and Commercial Enterprise | O104: 301 | P104: Hairdressing and beauty therapy | Q104: 4
A105: Report | B105: Barnfield College | C105: 130599 | D105: Luton | E105: East of England | F105: General Further Education/Tertiary College | G105: FE College - full inspection | H105: 447145 | I105: 2014-11-17 | J105: 2014-11-21 | K105: Published | L105: 2015-01-08 | M105: 9 | N105: Arts, Media and Publishing | O105: 200 | P105: Visual Arts | Q105: 3
A106: Report | B106: Barnfield College | C106: 130599 | D106: Luton | E106: East of England | F106: General Further Education/Tertiary College | G106: FE College - full inspection | H106: 447145 | I106: 2014-11-17 | J106: 2014-11-21 | K106: Published | L106: 2015-01-08 | M106: 1 | N106: Health, Public Services and Care | O106: 300 | P106: Health and Social Care | Q106: 3
A107: Report | B107: East London Advanced Technology Training | C107: 51646 | D107: Hackney | E107: London | F107: Community Learning and Skills | G107: Adult and Community - full (regional) | H107: 452602 | I107: 2015-01-14 | J107: 2015-01-16 | K107: Published | L107: 2015-02-20 | M107: 6 | N107: Information and Communication Technology | O107: 200 | P107: ICT for Users | Q107: 1
A108: Report | B108: East London Advanced Technology Training | C108: 51646 | D108: Hackney | E108: London | F108: Community Learning and Skills | G108: Adult and Community - full (regional) | H108: 452602 | I108: 2015-01-14 | J108: 2015-01-16 | K108: Published | L108: 2015-02-20 | M108: 6 | N108: Information and Communication Technology | O108: 100 | P108: ICT for practitioners | Q108: 1
A109: Report | B109: London Vesta College Limited | C109: 59157 | D109: Tower Hamlets | E109: London | F109: Independent Learning Provider | G109: WBL - full (regional) | H109: 455606 | I109: 2015-03-04 | J109: 2015-03-06 | K109: Published | L109: 2015-04-14 | M109: 6 | N109: Information and Communication Technology | O109: 100 | P109: ICT for practitioners | Q109: 3
A110: Report | B110: City Gateway | C110: 58841 | D110: Tower Hamlets | E110: London | F110: Community Learning and Skills | G110: WBL - full (regional) | H110: 452623 | I110: 2015-03-16 | J110: 2015-03-19 | K110: Published | L110: 2015-04-22 | M110: 14 | N110: Preparation for Life and Work | O110: 113 | P110: Foundation mathematics | Q110: 2
A111: Report | B111: City Gateway | C111: 58841 | D111: Tower Hamlets | E111: London | F111: Community Learning and Skills | G111: WBL - full (regional) | H111: 452623 | I111: 2015-03-16 | J111: 2015-03-19 | K111: Published | L111: 2015-04-22 | M111: 15 | N111: Business, Administration and Law | O111: 200 | P111: Administration | Q111: 2
A112: Report | B112: City Gateway | C112: 58841 | D112: Tower Hamlets | E112: London | F112: Community Learning and Skills | G112: WBL - full (regional) | H112: 452623 | I112: 2015-03-16 | J112: 2015-03-19 | K112: Published | L112: 2015-04-22 | M112: 14 | N112: Preparation for Life and Work | O112: 204 | P112: Employability Training | Q112: 1
A113: Report | B113: CCP GRADUATE SCHOOL LTD | C113: 51090 | D113: Brent | E113: London | F113: Independent Learning Provider | G113: WBL - requires improvement | H113: 430251 | I113: 2014-10-20 | J113: 2014-10-23 | K113: Published | L113: 2014-12-15 | M113: 14 | N113: Preparation for Life and Work | O113: 114 | P113: Foundation English and Mathematics | Q113: 2
A114: Report | B114: Havering London Borough Council | C114: 53127 | D114: Havering | E114: London | F114: Community Learning and Skills | G114: Adult and community - full (national) | H114: 434068 | I114: 2014-10-13 | J114: 2014-10-17 | K114: Published | L114: 2014-12-04 | M114: 14 | N114: Preparation for Life and Work | O114: 111 | P114: Community Learning | Q114: 2
A115: Report | B115: Wolverhampton Adult Education Service | C115: 55413 | D115: Wolverhampton | E115: West Midlands | F115: Community Learning and Skills | G115: Adult and Community - full (regional) | H115: 446669 | I115: 2014-12-08 | J115: 2014-12-12 | K115: Published | L115: 2015-01-15 | M115: 6 | N115: Information and Communication Technology | O115: 200 | P115: ICT for Users | Q115: 2
A116: Report | B116: Wolverhampton Adult Education Service | C116: 55413 | D116: Wolverhampton | E116: West Midlands | F116: Community Learning and Skills | G116: Adult and Community - full (regional) | H116: 446669 | I116: 2014-12-08 | J116: 2014-12-12 | K116: Published | L116: 2015-01-15 | M116: 9 | N116: Arts, Media and Publishing | O116: 200 | P116: Visual Arts | Q116: 1
A117: Report | B117: Wolverhampton Adult Education Service | C117: 55413 | D117: Wolverhampton | E117: West Midlands | F117: Community Learning and Skills | G117: Adult and Community - full (regional) | H117: 446669 | I117: 2014-12-08 | J117: 2014-12-12 | K117: Published | L117: 2015-01-15 | M117: 14 | N117: Preparation for Life and Work | O117: 114 | P117: Foundation English and Mathematics | Q117: 2
A118: Report | B118: City of Wolverhampton College | C118: 130484 | D118: Wolverhampton | E118: West Midlands | F118: General Further Education/Tertiary College | G118: FE College - requires improvement | H118: 430270 | I118: 2014-10-20 | J118: 2014-10-24 | K118: Published | L118: 2014-11-28 | M118: 2 | N118: Science and Mathematics | O118: 100 | P118: Science | Q118: 2
A119: Report | B119: City of Wolverhampton College | C119: 130484 | D119: Wolverhampton | E119: West Midlands | F119: General Further Education/Tertiary College | G119: FE College - requires improvement | H119: 430270 | I119: 2014-10-20 | J119: 2014-10-24 | K119: Published | L119: 2014-11-28 | M119: 5 | N119: Construction, Planning and the Built Environment | O119: 200 | P119: Building and Construction | Q119: 2
A120: Report | B120: City of Wolverhampton College | C120: 130484 | D120: Wolverhampton | E120: West Midlands | F120: General Further Education/Tertiary College | G120: FE College - requires improvement | H120: 430270 | I120: 2014-10-20 | J120: 2014-10-24 | K120: Published | L120: 2014-11-28 | M120: 15 | N120: Business, Administration and Law | O120: 200 | P120: Administration | Q120: 2
A121: =IF(C121 <> "", HYPERLINK(CONCATENATE("http://reports.ofsted.gov.uk/inspection-reports/find-inspection-report/provider/ELS/",C121),"Report"),"") -> Report | B121: City of Wolverhampton College | C121: 130484 | D121: Wolverhampton | E121: West Midlands | F121: General Further Education/Tertiary College | G121: FE College - requires improvement | H121: 430270 | I121: 2014-10-20 | J121: 2014-10-24 | K121: Published | L121: 2014-11-28 | M121: 1 | N121: Health, Public Services and Care | O121: 500 | P121: Early Years and Playwork | Q121: 2
A122: Report | B122: City of Wolverhampton College | C122: 130484 | D122: Wolverhampton | E122: West Midlands | F122: General Further Education/Tertiary College | G122: FE College - requires improvement | H122: 430270 | I122: 2014-10-20 | J122: 2014-10-24 | K122: Published | L122: 2014-11-28 | M122: 2 | N122: Science and Mathematics | O122: 200 | P122: Mathematics and Statistics | Q122: 2
A123: Report | B123: City of Wolverhampton College | C123: 130484 | D123: Wolverhampton | E123: West Midlands | F123: General Further Education/Tertiary College | G123: FE College - requires improvement | H123: 430270 | I123: 2014-10-20 | J123: 2014-10-24 | K123: Published | L123: 2014-11-28 | M123: 7 | N123: Retail and Commercial Enterprise | O123: 301 | P123: Hairdressing and beauty therapy | Q123: 3
A124: Report | B124: City of Wolverhampton College | C124: 130484 | D124: Wolverhampton | E124: West Midlands | F124: General Further Education/Tertiary College | G124: FE College - requires improvement | H124: 430270 | I124: 2014-10-20 | J124: 2014-10-24 | K124: Published | L124: 2014-11-28 | M124: 14 | N124: Preparation for Life and Work | O124: 112 | P124: Foundation English | Q124: 3
A125: Report | B125: City of Wolverhampton College | C125: 130484 | D125: Wolverhampton | E125: West Midlands | F125: General Further Education/Tertiary College | G125: FE College - requires improvement | H125: 430270 | I125: 2014-10-20 | J125: 2014-10-24 | K125: Published | L125: 2014-11-28 | M125: 14 | N125: Preparation for Life and Work | O125: 113 | P125: Foundation mathematics | Q125: 3
A126: Report | B126: City of Wolverhampton College | C126: 130484 | D126: Wolverhampton | E126: West Midlands | F126: General Further Education/Tertiary College | G126: FE College - requires improvement | H126: 430270 | I126: 2014-10-20 | J126: 2014-10-24 | K126: Published | L126: 2014-11-28 | M126: 1 | N126: Health, Public Services and Care | O126: 300 | P126: Health and Social Care | Q126: 2
A127: Report | B127: City of Wolverhampton College | C127: 130484 | D127: Wolverhampton | E127: West Midlands | F127: General Further Education/Tertiary College | G127: FE College - requires improvement | H127: 430270 | I127: 2014-10-20 | J127: 2014-10-24 | K127: Published | L127: 2014-11-28 | M127: 4 | N127: Engineering and Manufacturing Technologies | O127: 100 | P127: Engineering | Q127: 2
A128: Report | B128: The Marine Society College of the Sea | C128: 130414 | D128: Lambeth | E128: London | F128: Not applicable | G128: Adult and Community - full (regional) | H128: 446670 | I128: 2014-10-08 | J128: 2014-10-10 | K128: Published | L128: 2014-11-24 | M128: 14 | N128: Preparation for Life and Work | O128: 111 | P128: Community Learning | Q128: 4
A129: Report | B129: MI ComputSolutions Incorporated | C129: 58370 | D129: Lambeth | E129: London | F129: Independent Learning Provider | G129: WBL - full (regional) | H129: 451598 | I129: 2014-10-27 | J129: 2014-10-31 | K129: Published | L129: 2014-12-05 | M129: 1 | N129: Health, Public Services and Care | O129: 300 | P129: Health and Social Care | Q129: 2
A130: Report | B130: MI ComputSolutions Incorporated | C130: 58370 | D130: Lambeth | E130: London | F130: Independent Learning Provider | G130: WBL - full (regional) | H130: 451598 | I130: 2014-10-27 | J130: 2014-10-31 | K130: Published | L130: 2014-12-05 | M130: 14 | N130: Preparation for Life and Work | O130: 114 | P130: Foundation English and Mathematics | Q130: 2
A131: Report | B131: Roots and Shoots | C131: 54175 | D131: Lambeth | E131: London | F131: Community Learning and Skills | G131: WBL - full (regional) | H131: 434051 | I131: 2014-11-24 | J131: 2014-11-27 | K131: Published | L131: 2015-01-15 | M131: 14 | N131: Preparation for Life and Work | O131: 204 | P131: Employability Training | Q131: 2
A132: Report | B132: Lambeth College | C132: 130413 | D132: Lambeth | E132: London | F132: General Further Education/Tertiary College | G132: FE College - requires improvement | H132: 429287 | I132: 2014-12-08 | J132: 2014-12-12 | K132: Published | L132: 2015-01-23 | M132: 14 | N132: Preparation for Life and Work | O132: 113 | P132: Foundation mathematics | Q132: 2
A133: Report | B133: Lambeth College | C133: 130413 | D133: Lambeth | E133: London | F133: General Further Education/Tertiary College | G133: FE College - requires improvement | H133: 429287 | I133: 2014-12-08 | J133: 2014-12-12 | K133: Published | L133: 2015-01-23 | M133: 4 | N133: Engineering and Manufacturing Technologies | O133: 100 | P133: Engineering | Q133: 3
A134: Report | B134: Lambeth College | C134: 130413 | D134: Lambeth | E134: London | F134: General Further Education/Tertiary College | G134: FE College - requires improvement | H134: 429287 | I134: 2014-12-08 | J134: 2014-12-12 | K134: Published | L134: 2015-01-23 | M134: 14 | N134: Preparation for Life and Work | O134: 103 | P134: ESOL | Q134: 3
A135: Report | B135: Lambeth College | C135: 130413 | D135: Lambeth | E135: London | F135: General Further Education/Tertiary College | G135: FE College - requires improvement | H135: 429287 | I135: 2014-12-08 | J135: 2014-12-12 | K135: Published | L135: 2015-01-23 | M135: 15 | N135: Business, Administration and Law | O135: 600 | P135: Business | Q135: 3
A136: Report | B136: Lambeth College | C136: 130413 | D136: Lambeth | E136: London | F136: General Further Education/Tertiary College | G136: FE College - requires improvement | H136: 429287 | I136: 2014-12-08 | J136: 2014-12-12 | K136: Published | L136: 2015-01-23 | M136: 4 | N136: Engineering and Manufacturing Technologies | O136: 300 | P136: Motor vehicle | Q136: 3
A137: Report | B137: Lambeth College | C137: 130413 | D137: Lambeth | E137: London | F137: General Further Education/Tertiary College | G137: FE College - requires improvement | H137: 429287 | I137: 2014-12-08 | J137: 2014-12-12 | K137: Published | L137: 2015-01-23 | M137: 5 | N137: Construction, Planning and the Built Environment | O137: 200 | P137: Building and Construction | Q137: 3
A138: Report | B138: Lambeth College | C138: 130413 | D138: Lambeth | E138: London | F138: General Further Education/Tertiary College | G138: FE College - requires improvement | H138: 429287 | I138: 2014-12-08 | J138: 2014-12-12 | K138: Published | L138: 2015-01-23 | M138: 1 | N138: Health, Public Services and Care | O138: 300 | P138: Health and Social Care | Q138: 2
A139: Report | B139: Lambeth College | C139: 130413 | D139: Lambeth | E139: London | F139: General Further Education/Tertiary College | G139: FE College - requires improvement | H139: 429287 | I139: 2014-12-08 | J139: 2014-12-12 | K139: Published | L139: 2015-01-23 | M139: 14 | N139: Preparation for Life and Work | O139: 108 | P139: Independent living and leisure skills | Q139: 2
A140: Report | B140: Skills Team Ltd | C140: 58340 | D140: Ealing | E140: London | F140: Independent Learning Provider | G140: WBL - requires improvement | H140: 430259 | I140: 2014-10-13 | J140: 2014-10-17 | K140: Published | L140: 2014-11-27 | M140: 6 | N140: Information and Communication Technology | O140: 200 | P140: ICT for Users | Q140: 3
A141: Report | B141: Skills Team Ltd | C141: 58340 | D141: Ealing | E141: London | F141: Independent Learning Provider | G141: WBL - requires improvement | H141: 430259 | I141: 2014-10-13 | J141: 2014-10-17 | K141: Published | L141: 2014-11-27 | M141: 15 | N141: Business, Administration and Law | O141: 300 | P141: Business Management | Q141: 2
A142: Report | B142: Four Counties Training Limited | C142: 51893 | D142: Ealing | E142: London | F142: Independent Learning Provider | G142: Work Based Learning - full (national) | H142: 446601 | I142: 2014-12-01 | J142: 2014-12-05 | K142: Published | L142: 2015-01-21 | M142: 4 | N142: Engineering and Manufacturing Technologies | O142: 400 | P142: Transportation operations and maintenance | Q142: 4
A143: Report | B143: Four Counties Training Limited | C143: 51893 | D143: Ealing | E143: London | F143: Independent Learning Provider | G143: Work Based Learning - full (national) | H143: 446601 | I143: 2014-12-01 | J143: 2014-12-05 | K143: Published | L143: 2015-01-21 | M143: 15 | N143: Business, Administration and Law | O143: 300 | P143: Business Management | Q143: 3
A144: Report | B144: Four Counties Training Limited | C144: 51893 | D144: Ealing | E144: London | F144: Independent Learning Provider | G144: Work Based Learning - full (national) | H144: 446601 | I144: 2014-12-01 | J144: 2014-12-05 | K144: Published | L144: 2015-01-21 | M144: 15 | N144: Business, Administration and Law | O144: 401 | P144: Customer service | Q144: 4
A145: Report | B145: Four Counties Training Limited | C145: 51893 | D145: Ealing | E145: London | F145: Independent Learning Provider | G145: Work Based Learning - full (national) | H145: 446601 | I145: 2014-12-01 | J145: 2014-12-05 | K145: Published | L145: 2015-01-21 | M145: 1 | N145: Health, Public Services and Care | O145: 300 | P145: Health and Social Care | Q145: 3
A146: Report | B146: Norman Mackie & Associates Limited | C146: 58507 | D146: Tameside | E146: North West (EY & ELS) | F146: Independent Learning Provider | G146: Work Based Learning - full (national) | H146: 451204 | I146: 2014-11-10 | J146: 2014-11-12 | K146: Published | L146: 2014-12-15 | M146: 14 | N146: Preparation for Life and Work | O146: 204 | P146: Employability Training | Q146: 2
A147: Report | B147: Tameside College | C147: 130516 | D147: Tameside | E147: North West (EY & ELS) | F147: General Further Education/Tertiary College | G147: FE College - full inspection | H147: 452546 | I147: 2015-03-02 | J147: 2015-03-06 | K147: Published | L147: 2015-04-10 | M147: 2 | N147: Science and Mathematics | O147: 200 | P147: Mathematics and Statistics | Q147: 3
A148: Report | B148: Tameside College | C148: 130516 | D148: Tameside | E148: North West (EY & ELS) | F148: General Further Education/Tertiary College | G148: FE College - full inspection | H148: 452546 | I148: 2015-03-02 | J148: 2015-03-06 | K148: Published | L148: 2015-04-10 | M148: 4 | N148: Engineering and Manufacturing Technologies | O148: 300 | P148: Motor vehicle | Q148: 1
A149: Report | B149: Tameside College | C149: 130516 | D149: Tameside | E149: North West (EY & ELS) | F149: General Further Education/Tertiary College | G149: FE College - full inspection | H149: 452546 | I149: 2015-03-02 | J149: 2015-03-06 | K149: Published | L149: 2015-04-10 | M149: 2 | N149: Science and Mathematics | O149: 100 | P149: Science | Q149: 3
A150: Report | B150: North Yorkshire County Council | C150: 50229 | D150: North Yorkshire | E150: North East, Yorkshire & Humber | F150: Community Learning and Skills | G150: ACL - requires improvement | H150: 446660 | I150: 2014-11-03 | J150: 2014-11-07 | K150: Published | L150: 2014-12-10 | M150: 6 | N150: Information and Communication Technology | O150: 200 | P150: ICT for Users | Q150: 2
A151: Report | B151: North Yorkshire County Council | C151: 50229 | D151: North Yorkshire | E151: North East, Yorkshire & Humber | F151: Community Learning and Skills | G151: ACL - requires improvement | H151: 446660 | I151: 2014-11-03 | J151: 2014-11-07 | K151: Published | L151: 2014-12-10 | M151: 14 | N151: Preparation for Life and Work | O151: 114 | P151: Foundation English and Mathematics | Q151: 2
A152: Report | B152: Ministry of Defence (Navy) | C152: 58403 | D152: Portsmouth | E152: South East | F152: Employer | G152: WBL - full (regional) | H152: 452622 | I152: 2015-03-09 | J152: 2015-03-13 | K152: Published | L152: 2015-04-21 | M152: 1 | N152: Health, Public Services and Care | O152: 400 | P152: Public Services | Q152: 1
A153: Report | B153: Ministry of Defence (Navy) | C153: 58403 | D153: Portsmouth | E153: South East | F153: Employer | G153: WBL - full (regional) | H153: 452622 | I153: 2015-03-09 | J153: 2015-03-13 | K153: Published | L153: 2015-04-21 | M153: 6 | N153: Information and Communication Technology | O153: 101 | P153: Communications Technology | Q153: 2
A154: Report | B154: Ministry of Defence (Navy) | C154: 58403 | D154: Portsmouth | E154: South East | F154: Employer | G154: WBL - full (regional) | H154: 452622 | I154: 2015-03-09 | J154: 2015-03-13 | K154: Published | L154: 2015-04-21 | M154: 4 | N154: Engineering and Manufacturing Technologies | O154: 100 | P154: Engineering | Q154: 2
